Workbook

Sheet 綜合報表
A1: 代碼對照表 | D1: 2885 | E1: 5852 | F1: Z1435 | U1: ※2013年以後公司皆只公告"以合併為主"之月盈餘 | Z1: 單位:百萬 | AA1: =銀行_月營收!A1 -> 5852 元大銀 | AB1: 產業 | AC1: =IF(銀行_基本資料!B8="無資料","",MIDB(銀行_基本資料!G3,FIND(" ",銀行_基本資料!G3)+1,20)) -> 本國銀行 | AD1: =銀行_基本資料!D2 -> 實收資本額(元) | AF1: =IF(銀行_基本資料!B8="無資料","",TEXT(ROUND(銀行_基本資料!D3/1000000,2),"###,###.## (百萬元)")) -> 39,183.62 (百萬元) | AP1: =保險_月營收!A1 -> Z1435 元大人壽保險 | AQ1: 產業 | AR1: =IF(保險_基本資料!B6="無資料","",MIDB(保險_基本資料!G3,FIND(" ",保險_基本資料!G3)+1,20)) -> 壽險業 | AT1: =保險_基本資料!D2 -> 實收資本額(元) | AV1: =IF(保險_基本資料!B6="無資料","",TEXT(ROUND(保險_基本資料!D3/1000000,2),"###,###.## (百萬元)")) -> . (百萬元) | AX1: ='合併財務報表(累)'!$A$1 -> 2885 元大金 | BD1: ='合併財務報表(單)'!A1 -> 2885 元大金 | BN1: ='合併財務報表(累)'!$A$1 -> 2885 元大金
A2: 金控公司 | B2: 銀行 | C2: 保險 | D2: 金控代碼 | E2: 銀行代碼 | F2: 保險代號 | U2: 月盈餘 | V2: 稅後盈餘 | W2: 累計稅後盈餘 | X2: 稅前盈餘 | Y2: 累計稅前盈餘 | Z2: 合併 | AB2: =銀行_基本資料!H2 -> 主要產品比重 | AC2: =IF(銀行_基本資料!B8="無資料","",銀行_基本資料!H3) -> 2014/12:淨利息收益(61.4%),手續費收入(18.1%),透過損益按FV衡量(7.4%) | AQ2: =保險_基本資料!H2 -> 主要產品比重 | AR2: =IF(保險_基本資料!B6="無資料","",保險_基本資料!H3) -> 2014/12:個人壽險保費收入(80%),利息收入(14.9%),兌換利益(11.5%)
A3: 2880 華南金 | B3: 5835 華銀 | C3: 2848 華南保 | D3: =基本資料!A1 -> 2885 元大金 | G3: 實收資本額 | H3: =TEXT(ROUND(基本資料!C3/1000000,2),"###,###.## (百萬元)") -> 120,986.48 (百萬元) | U3: =TEXT(月盈餘!$A3,"YYYY/MM") -> 2016/05 | V3: =IF(月盈餘!$B3="","",月盈餘!$B3) -> 1039 | W3: =IF(月盈餘!$C3="","",月盈餘!$C3) -> 5510 | X3: =IF(月盈餘!$D3="","",月盈餘!$D3) -> 1416.179 | Y3: =IF(月盈餘!$E3="","",月盈餘!$E3) -> 6752.689 | Z3: =IF(月盈餘!$F3="Y","合併",IF(月盈餘!$F3="N","非合併","")) ->  | AB3: =銀行_基本資料!A2 -> 董事長 | AC3: =IF(銀行_基本資料!B8="無資料","",銀行_基本資料!A3) -> 范志強 | AD3: =銀行_基本資料!E2 -> 電話 | AE3: =IF(銀行_基本資料!B8="無資料","",銀行_基本資料!E3) -> 02-21736699 | AQ3: =保險_基本資料!A2 -> 董事長 | AR3: =IF(保險_基本資料!B6="無資料","",保險_基本資料!A3) -> 江朝國 | AT3: =保險_基本資料!E2 -> 電話 | AU3: =IF(保險_基本資料!B6="無資料","",保險_基本資料!E3) -> 02-27195277 | AX3: 資產負債表(累)單位：千元 | AY3: =TEXT('合併財務報表(累)'!B$2,"YYYY/MM") -> 2012/12 | AZ3: =TEXT('合併財務報表(累)'!C$2,"YYYY/MM") -> 2013/12 | BA3: =TEXT('合併財務報表(累)'!D$2,"YYYY/MM") -> 2014/12 | BB3: =TEXT('合併財務報表(累)'!E$2,"YYYY/MM") -> 2015/12 | BD3: 損益表(單)單位：千元 | BE3: =TEXT('合併財務報表(單)'!B$2,"YYYY/MM") -> 2014/06 | BF3: =TEXT('合併財務報表(單)'!C$2,"YYYY/MM") -> 2014/09 | BG3: =TEXT('合併財務報表(單)'!D$2,"YYYY/MM") -> 2014/12 | BH3: =TEXT('合併財務報表(單)'!E$2,"YYYY/MM") -> 2015/03 | BI3: =TEXT('合併財務報表(單)'!F$2,"YYYY/MM") -> 2015/06 | BJ3: =TEXT('合併財務報表(單)'!G$2,"YYYY/MM") -> 2015/09 | BK3: =TEXT('合併財務報表(單)'!H$2,"YYYY/MM") -> 2015/12 | BL3: =TEXT('合併財務報表(單)'!I$2,"YYYY/MM") -> 2016/03 | BN3: 損益表(累)單位：千元 | BO3: =TEXT('合併財務報表(累)'!O$2,"YYYY/MM") -> 2012/12 | BP3: =TEXT('合併財務報表(累)'!P$2,"YYYY/MM") -> 2013/12 | BQ3: =TEXT('合併財務報表(累)'!Q$2,"YYYY/MM") -> 2014/12
A4: 2881 富邦金 | B4: 2842 台北富邦銀 | C4: 5828 富邦保 | D4: 市 場 別 | E4: =IF(基本資料!A3<>"",IF(基本資料!A3="TSE","上市",IF(基本資料!A3="OTC","上櫃",IF(基本資料!A3="ROTC","興櫃","其他"))),"") -> 上市 | G4: 上 市 日 期 | H4: =IF(基本資料!A3="TSE",基本資料!D3,IF(基本資料!A3="OTC",基本資料!E3,IF(基本資料!A3="ROTC",基本資料!F3,""))) -> 2002-02-04 | U4: =TEXT(月盈餘!$A4,"YYYY/MM") -> 2016/04 | V4: =IF(月盈餘!$B4="","",月盈餘!$B4) -> 1006 | W4: =IF(月盈餘!$C4="","",月盈餘!$C4) -> 4471 | X4: =IF(月盈餘!$D4="","",月盈餘!$D4) -> 1106.655 | Y4: =IF(月盈餘!$E4="","",月盈餘!$E4) -> 5336.51 | Z4: =IF(月盈餘!$F4="Y","合併",IF(月盈餘!$F4="N","非合併","")) ->  | AB4: =銀行_基本資料!B2 -> 總經理 | AC4: =IF(銀行_基本資料!B8="無資料","",銀行_基本資料!B3) -> 張財育 | AD4: =銀行_基本資料!F2 -> 公司地址 | AE4: =IF(銀行_基本資料!B8="無資料","",銀行_基本資料!F3) -> 台北市大安區敦化南路一段66號1-3 樓 | AQ4: =保險_基本資料!B2 -> 總經理 | AR4: =IF(保險_基本資料!B6="無資料","",保險_基本資料!B3) -> 高添福 | AT4: =保險_基本資料!F2 -> 公司地址 | AU4: =IF(保險_基本資料!B6="無資料","",保險_基本資料!F3) -> 台北市松山區民生東路三段133 號14樓 | AX4: ='合併財務報表(累)'!A3 -> 現金及約當現金 | AY4: ='合併財務報表(累)'!B3 -> 36695058 | AZ4: ='合併財務報表(累)'!C3 -> 27229111 | BA4: ='合併財務報表(累)'!D3 -> 47061183 | BB4: ='合併財務報表(累)'!E3 -> 41773169 | BD4: ='合併財務報表(單)'!A3 -> 利息收入 | BE4: ='合併財務報表(單)'!B3 -> 4579136 | BF4: ='合併財務報表(單)'!C3 -> 5579960 | BG4: ='合併財務報表(單)'!D3 -> 5629688 | BH4: ='合併財務報表(單)'!E3 -> 5916785 | BI4: ='合併財務報表(單)'!F3 -> 6277218 | BJ4: ='合併財務報表(單)'!G3 -> 6251170 | BK4: ='合併財務報表(單)'!H3 -> 6191672 | BL4: ='合併財務報表(單)'!I3 -> 6502115 | BN4: ='合併財務報表(累)'!N3 -> 淨利息收益 | BO4: ='合併財務報表(累)'!O3 -> 10171744 | BP4: ='合併財務報表(累)'!P3 -> 9461591 | BQ4: ='合併財務報表(累)'!Q3 -> 13361073
A5: 2882 國泰金 | B5: 2835 國泰世華 | C5: 5846 國壽 | D5: 發 言 人 | E5: =LEFT(基本資料!B3,FIND("(",基本資料!B3)-1) -> 陳修偉 | G5: 電 話 | H5: =IF(基本資料!G3<>"",基本資料!G3,"") -> 02-27811999 | U5: =TEXT(月盈餘!$A5,"YYYY/MM") -> 2016/03 | V5: =IF(月盈餘!$B5="","",月盈餘!$B5) -> 1751 | W5: =IF(月盈餘!$C5="","",月盈餘!$C5) -> 3312.457 | X5: =IF(月盈餘!$D5="","",月盈餘!$D5) -> 2104.681 | Y5: =IF(月盈餘!$E5="","",月盈餘!$E5) -> 4077.143 | Z5: =IF(月盈餘!$F5="Y","合併",IF(月盈餘!$F5="N","非合併","")) ->  | AB5: =銀行_基本資料!C2 -> 發言人 | AC5: =IF(銀行_基本資料!B8="無資料","",銀行_基本資料!C3) -> 莊有德(執行副總經理) | AD5: 員工人數 | AE5: =IF(銀行_基本資料!B8="無資料","",銀行_基本資料!I3) -> 2754 | AQ5: =保險_基本資料!C2 -> 發言人 | AR5: =IF(保險_基本資料!B6="無資料","",保險_基本資料!C3) -> 高添福(執行副總經理) | AT5: 員工人數 | AU5: =IF(保險_基本資料!B6="無資料","",保險_基本資料!I3) -> 995 | AX5: ='合併財務報表(累)'!A4 -> 存放及拆放同業 | AY5: ='合併財務報表(累)'!B4 -> 75523478 | AZ5: ='合併財務報表(累)'!C4 -> 85619265 | BA5: ='合併財務報表(累)'!D4 -> 79450468 | BB5: ='合併財務報表(累)'!E4 -> 80771635 | BD5: ='合併財務報表(單)'!A4 -> 利息支出 | BE5: ='合併財務報表(單)'!B4 -> 1303004 | BF5: ='合併財務報表(單)'!C4 -> 2060539 | BG5: ='合併財務報表(單)'!D4 -> 2217394 | BH5: ='合併財務報表(單)'!E4 -> 2168121 | BI5: ='合併財務報表(單)'!F4 -> 2273247 | BJ5: ='合併財務報表(單)'!G4 -> 2107708 | BK5: ='合併財務報表(單)'!H4 -> 2243425 | BL5: ='合併財務報表(單)'!I4 -> 2326593 | BN5: ='合併財務報表(累)'!N4 -> 手續費淨收益 | BO5: ='合併財務報表(累)'!O4 -> 10652821 | BP5: ='合併財務報表(累)'!P4 -> 10110462 | BQ5: ='合併財務報表(累)'!Q4 -> 12366026
A6: 2883 開發金 | B6: 5839 開發 | D6: 地 址 | E6: =IF(基本資料!H3<>"",基本資料!H3,"") -> 台北市松山區敦化南路一段66號4 樓、10樓、12樓及13樓 | U6: =TEXT(月盈餘!$A6,"YYYY/MM") -> 2016/02 | V6: =IF(月盈餘!$B6="","",月盈餘!$B6) -> 801 | W6: =IF(月盈餘!$C6="","",月盈餘!$C6) -> 1714 | X6: =IF(月盈餘!$D6="","",月盈餘!$D6) -> 799.093 | Y6: =IF(月盈餘!$E6="","",月盈餘!$E6) -> 2125.174 | Z6: =IF(月盈餘!$F6="Y","合併",IF(月盈餘!$F6="N","非合併","")) ->  | AA6: ※2013年以後公司皆只公告"以合併為主"之月盈餘 | AF6: 單位:百萬 | AP6: ※2013年以後公司皆只公告"以合併為主"之月盈餘 | AW6: 單位:百萬 | AX6: ='合併財務報表(累)'!A5 -> 公平價值變動－損益－金資 | AY6: ='合併財務報表(累)'!B5 -> 86217206 | AZ6: ='合併財務報表(累)'!C5 -> 91573183 | BA6: ='合併財務報表(累)'!D5 -> 260202179 | BB6: ='合併財務報表(累)'!E5 -> 364746108 | BD6: ='合併財務報表(單)'!A5 -> 淨利息收益 | BE6: ='合併財務報表(單)'!B5 -> 3276132 | BF6: ='合併財務報表(單)'!C5 -> 3519421 | BG6: ='合併財務報表(單)'!D5 -> 3412294 | BH6: ='合併財務報表(單)'!E5 -> 3748664 | BI6: ='合併財務報表(單)'!F5 -> 4003971 | BJ6: ='合併財務報表(單)'!G5 -> 4143462 | BK6: ='合併財務報表(單)'!H5 -> 3948247 | BL6: ='合併財務報表(單)'!I5 -> 4175522 | BN6: ='合併財務報表(累)'!N5 -> 保險業務收益 | BO6: ='合併財務報表(累)'!O5 -> 0 | BP6: ='合併財務報表(累)'!P5 -> 0 | BQ6: ='合併財務報表(累)'!Q5 -> 9092537
A7: 2884 玉山金 | B7: 5847 玉山銀 | C7: 19BAC 玉山保險經紀 | D7: 產 業 別 | E7: =IF(基本資料!I3<>"",基本資料!I3,"") -> M2800 金融業 | H7: 員工人數 | I7: =IF(基本資料!K3="","",基本資料!K3) -> 15295 | U7: =TEXT(月盈餘!$A7,"YYYY/MM") -> 2016/01 | V7: =IF(月盈餘!$B7="","",月盈餘!$B7) -> 913 | W7: =IF(月盈餘!$C7="","",月盈餘!$C7) -> 913 | X7: =IF(月盈餘!$D7="","",月盈餘!$D7) -> 1326.081 | Y7: =IF(月盈餘!$E7="","",月盈餘!$E7) -> 1326.081 | Z7: =IF(月盈餘!$F7="Y","合併",IF(月盈餘!$F7="N","非合併","")) ->  | AA7: 月盈餘 | AB7: 稅後盈餘 | AC7: 累計稅後盈餘 | AD7: 稅前盈餘 | AE7: 累計稅前盈餘 | AF7: 合併 | AP7: 月盈餘 | AQ7: 稅後盈餘 | AS7: 累計稅後盈餘 | AU7: 稅前盈餘 | AV7: 累計稅前盈餘 | AW7: 合併 | AX7: ='合併財務報表(累)'!A6 -> 附賣回票券及債券投資 | AY7: ='合併財務報表(累)'!B6 -> 201015 | AZ7: ='合併財務報表(累)'!C6 -> 250724 | BA7: ='合併財務報表(累)'!D6 -> 17643207 | BB7: ='合併財務報表(累)'!E6 -> 27052332 | BD7: ='合併財務報表(單)'!A6 -> 手續費淨收益 | BE7: ='合併財務報表(單)'!B6 -> 2726668 | BF7: ='合併財務報表(單)'!C6 -> 3701768 | BG7: ='合併財務報表(單)'!D6 -> 3167767 | BH7: ='合併財務報表(單)'!E6 -> 3647065 | BI7: ='合併財務報表(單)'!F6 -> 4598553 | BJ7: ='合併財務報表(單)'!G6 -> 3446529 | BK7: ='合併財務報表(單)'!H6 -> 1590951 | BL7: ='合併財務報表(單)'!I6 -> 3397124 | BN7: ='合併財務報表(累)'!N44 -> 其他收益 | BO7: ='合併財務報表(累)'!O44 -> 7647207 | BP7: ='合併財務報表(累)'!P44 -> 9125516 | BQ7: ='合併財務報表(累)'!Q44 -> 19790297
A8: 2885 元大金 | B8: 5852 元大銀 | C8: Z1435 元大人壽保險 | D8: 主要產品 | E8: =IF(基本資料!J3<>"",基本資料!J3,"") -> 2014/12:淨利息收益(24.3%),手續費收入(23.3%),保險業務淨收益(16.5%) | U8: =TEXT(月盈餘!$A8,"YYYY/MM") -> 2015/12 | V8: =IF(月盈餘!$B8="","",月盈餘!$B8) -> -558 | W8: =IF(月盈餘!$C8="","",月盈餘!$C8) -> 10814.545 | X8: =IF(月盈餘!$D8="","",月盈餘!$D8) -> -505.043 | Y8: =IF(月盈餘!$E8="","",月盈餘!$E8) -> 13116.553 | Z8: =IF(月盈餘!$F8="Y","合併",IF(月盈餘!$F8="N","非合併","")) ->  | AA8: =TEXT(銀行_月營收!$A3,"YYYY/MM") -> 2016/05 | AB8: =IF(銀行_月營收!$B3="","",銀行_月營收!$B3) -> 493 | AC8: =IF(銀行_月營收!$C3="","",銀行_月營收!$C3) -> 2450 | AD8: =IF(銀行_月營收!$D3="","",銀行_月營收!$D3) -> 553.671 | AE8: =IF(銀行_月營收!$E3="","",銀行_月營收!$E3) -> 2802.834 | AF8: =IF(銀行_月營收!$F3="Y","合併",IF(銀行_月營收!$F3="N","非合併","")) ->  | AP8: =TEXT(保險_月營收!$A3,"YYYY/MM") -> 2016/05 | AQ8: =IF(保險_月營收!$B18="","",保險_月營收!$B18) ->  | AS8: =IF(保險_月營收!$C3="","",保險_月營收!$C3) ->  | AU8: =IF(保險_月營收!$D3="","",保險_月營收!$D3) ->  | AV8: =IF(保險_月營收!$E3="","",保險_月營收!$E3) ->  | AW8: =IF(保險_月營收!$F3="Y","合併",IF(保險_月營收!$F3="N","非合併","")) ->  | AX8: ='合併財務報表(累)'!A7 -> 應收款項 | AY8: ='合併財務報表(累)'!B7 -> 70389705 | AZ8: ='合併財務報表(累)'!C7 -> 98302239 | BA8: ='合併財務報表(累)'!D7 -> 120807089 | BB8: ='合併財務報表(累)'!E7 -> 118852607 | BD8: ='合併財務報表(單)'!A7 -> 保險業務收益 | BE8: ='合併財務報表(單)'!B7 -> 3180944 | BF8: ='合併財務報表(單)'!C7 -> 3022471 | BG8: ='合併財務報表(單)'!D7 -> 1628260 | BH8: ='合併財務報表(單)'!E7 -> 1725829 | BI8: ='合併財務報表(單)'!F7 -> 4312233 | BJ8: ='合併財務報表(單)'!G7 -> 7432611 | BK8: ='合併財務報表(單)'!H7 -> 11308536 | BL8: ='合併財務報表(單)'!I7 -> 4564454 | BN8: ='合併財務報表(累)'!N25 -> 淨收益 | BO8: ='合併財務報表(累)'!O25 -> 28471772 | BP8: ='合併財務報表(累)'!P25 -> 28697569 | BQ8: ='合併財務報表(累)'!Q25 -> 54609933
A9: 2886 兆豐金 | B9: 5843 兆豐商銀 | C9: 5834 兆豐保險 | U9: =TEXT(月盈餘!$A9,"YYYY/MM") -> 2015/11 | V9: =IF(月盈餘!$B9="","",月盈餘!$B9) -> 437 | W9: =IF(月盈餘!$C9="","",月盈餘!$C9) -> 11461 | X9: =IF(月盈餘!$D9="","",月盈餘!$D9) -> 520.602 | Y9: =IF(月盈餘!$E9="","",月盈餘!$E9) -> 13732.868 | Z9: =IF(月盈餘!$F9="Y","合併",IF(月盈餘!$F9="N","非合併","")) ->  | AA9: =TEXT(銀行_月營收!$A4,"YYYY/MM") -> 2016/04 | AB9: =IF(銀行_月營收!$B4="","",銀行_月營收!$B4) -> 507 | AC9: =IF(銀行_月營收!$C4="","",銀行_月營收!$C4) -> 1957 | AD9: =IF(銀行_月營收!$D4="","",銀行_月營收!$D4) -> 580.183 | AE9: =IF(銀行_月營收!$E4="","",銀行_月營收!$E4) -> 2249.163 | AF9: =IF(銀行_月營收!$F4="Y","合併",IF(銀行_月營收!$F4="N","非合併","")) ->  | AP9: =TEXT(保險_月營收!$A4,"YYYY/MM") -> 2016/04 | AQ9: =IF(保險_月營收!$B19="","",保險_月營收!$B19) ->  | AS9: =IF(保險_月營收!$C4="","",保險_月營收!$C4) ->  | AU9: =IF(保險_月營收!$D4="","",保險_月營收!$D4) ->  | AV9: =IF(保險_月營收!$E4="","",保險_月營收!$E4) ->  | AW9: =IF(保險_月營收!$F4="Y","合併",IF(保險_月營收!$F4="N","非合併","")) ->  | AX9: ='合併財務報表(累)'!A8 -> 貼現及放款 | AY9: ='合併財務報表(累)'!B8 -> 375712974 | AZ9: ='合併財務報表(累)'!C8 -> 397268743 | BA9: ='合併財務報表(累)'!D8 -> 451629582 | BB9: ='合併財務報表(累)'!E8 -> 485843127 | BD9: ='合併財務報表(單)'!A8 -> FV變動-損益-金資及金債利益 | BE9: ='合併財務報表(單)'!B8 -> 2056439 | BF9: ='合併財務報表(單)'!C8 -> 1108945 | BG9: ='合併財務報表(單)'!D8 -> 485501 | BH9: ='合併財務報表(單)'!E8 -> 3051415 | BI9: ='合併財務報表(單)'!F8 -> 2574008 | BJ9: ='合併財務報表(單)'!G8 -> -483865 | BK9: ='合併財務報表(單)'!H8 -> 2844971 | BL9: ='合併財務報表(單)'!I8 -> 3342670 | BN9: ='合併財務報表(累)'!N26 -> 信用卡呆帳費用 | BO9: ='合併財務報表(累)'!O26 -> 38162 | BP9: ='合併財務報表(累)'!P26 -> -9121 | BQ9: ='合併財務報表(累)'!Q26 -> 392778
A10: 2887 台新金 | B10: 5848 台新銀 | C10: 19AXL 台新保險經紀 | D10: 收盤價 | E10: ='圖-報酬率'!B3 -> 10.25 | G10: 法人買賣超合計(近一日) | I10: =IF(法人動向!$E$3="", IF(法人動向!E4>0,"買超"&ABS(法人動向!E4)&"張",IF(法人動向!E4<0,"賣超"&ABS(法人動向!E4)&"張","")), IF(法人動向!E3>0,"買超"&ABS(法人動向!E3)&"張",IF(法人動向!E3<0,"賣超"&ABS(法人動向!E3)&"張",""))) -> 賣超17421張 | U10: =TEXT(月盈餘!$A10,"YYYY/MM") -> 2015/10 | V10: =IF(月盈餘!$B10="","",月盈餘!$B10) -> 600 | W10: =IF(月盈餘!$C10="","",月盈餘!$C10) -> 11024 | X10: =IF(月盈餘!$D10="","",月盈餘!$D10) -> 704.427 | Y10: =IF(月盈餘!$E10="","",月盈餘!$E10) -> 13212.267 | Z10: =IF(月盈餘!$F10="Y","合併",IF(月盈餘!$F10="N","非合併","")) ->  | AA10: =TEXT(銀行_月營收!$A5,"YYYY/MM") -> 2016/03 | AB10: =IF(銀行_月營收!$B5="","",銀行_月營收!$B5) -> 537 | AC10: =IF(銀行_月營收!$C5="","",銀行_月營收!$C5) -> 1450.078 | AD10: =IF(銀行_月營收!$D5="","",銀行_月營收!$D5) -> 614.155 | AE10: =IF(銀行_月營收!$E5="","",銀行_月營收!$E5) -> 1668.98 | AF10: =IF(銀行_月營收!$F5="Y","合併",IF(銀行_月營收!$F5="N","非合併","")) ->  | AP10: =TEXT(保險_月營收!$A5,"YYYY/MM") -> 2016/03 | AQ10: =IF(保險_月營收!$B20="","",保險_月營收!$B20) ->  | AS10: =IF(保險_月營收!$C5="","",保險_月營收!$C5) -> -385 | AU10: =IF(保險_月營收!$D5="","",保險_月營收!$D5) ->  | AV10: =IF(保險_月營收!$E5="","",保險_月營收!$E5) -> -457 | AW10: =IF(保險_月營收!$F5="Y","合併",IF(保險_月營收!$F5="N","非合併","")) ->  | AX10: ='合併財務報表(累)'!A9 -> 備供出售－金融資產 | AY10: ='合併財務報表(累)'!B9 -> 55519030 | AZ10: ='合併財務報表(累)'!C9 -> 43612700 | BA10: ='合併財務報表(累)'!D9 -> 114343183 | BB10: ='合併財務報表(累)'!E9 -> 136286218 | BD10: ='合併財務報表(單)'!A9 -> 備供出售金融資產已實現利益 | BE10: ='合併財務報表(單)'!B9 -> 407412 | BF10: ='合併財務報表(單)'!C9 -> 640454 | BG10: ='合併財務報表(單)'!D9 -> 47626 | BH10: ='合併財務報表(單)'!E9 -> 506455 | BI10: ='合併財務報表(單)'!F9 -> 618717 | BJ10: ='合併財務報表(單)'!G9 -> 1494923 | BK10: ='合併財務報表(單)'!H9 -> 376930 | BL10: ='合併財務報表(單)'!I9 -> 1674285 | BN10: ='合併財務報表(累)'!N27 -> 放款呆帳費用 | BO10: ='合併財務報表(累)'!O27 -> 562763 | BP10: ='合併財務報表(累)'!P27 -> 731672 | BQ10: ='合併財務報表(累)'!Q27 -> 864276
A11: 2888 新光金 | B11: 2893 新光銀 | C11: 5831 新壽 | D11: 券資比 | E11: ='圖-報酬率'!B4 -> 0.2 | G11: 法人買賣超合計(近一週) | I11: =IF(法人動向!$E$3="", IF(SUM(WEEK2)>0,"買超"&ABS(SUM(WEEK2))&"張",IF(SUM(WEEK2)<0,"賣超"&ABS(SUM(WEEK2))&"張","")), IF(SUM(WEEK1)>0,"買超"&ABS(SUM(WEEK1))&"張",IF(SUM(WEEK1)<0,"賣超"&ABS(SUM(WEEK1))&"張",""))) -> 賣超68991張 | U11: =TEXT(月盈餘!$A11,"YYYY/MM") -> 2015/09 | V11: =IF(月盈餘!$B11="","",月盈餘!$B11) -> 916 | W11: =IF(月盈餘!$C11="","",月盈餘!$C11) -> 10424.23 | X11: =IF(月盈餘!$D11="","",月盈餘!$D11) -> 1622.135 | Y11: =IF(月盈餘!$E11="","",月盈餘!$E11) -> 12507.84 | Z11: =IF(月盈餘!$F11="Y","合併",IF(月盈餘!$F11="N","非合併","")) ->  | AA11: =TEXT(銀行_月營收!$A6,"YYYY/MM") -> 2016/02 | AB11: =IF(銀行_月營收!$B6="","",銀行_月營收!$B6) -> 432 | AC11: =IF(銀行_月營收!$C6="","",銀行_月營收!$C6) -> 913 | AD11: =IF(銀行_月營收!$D6="","",銀行_月營收!$D6) -> 498.689 | AE11: =IF(銀行_月營收!$E6="","",銀行_月營收!$E6) -> 1054.825 | AF11: =IF(銀行_月營收!$F6="Y","合併",IF(銀行_月營收!$F6="N","非合併","")) ->  | AP11: =TEXT(保險_月營收!$A6,"YYYY/MM") -> 2016/02 | AQ11: =IF(保險_月營收!$B21="","",保險_月營收!$B21) ->  | AS11: =IF(保險_月營收!$C6="","",保險_月營收!$C6) ->  | AU11: =IF(保險_月營收!$D6="","",保險_月營收!$D6) ->  | AV11: =IF(保險_月營收!$E6="","",保險_月營收!$E6) ->  | AW11: =IF(保險_月營收!$F6="Y","合併",IF(保險_月營收!$F6="N","非合併","")) ->  | AX11: ='合併財務報表(累)'!A10 -> 持至到期－金融資產 | AY11: ='合併財務報表(累)'!B10 -> 2472129 | AZ11: ='合併財務報表(累)'!C10 -> 7204646 | BA11: ='合併財務報表(累)'!D10 -> 51295128 | BB11: ='合併財務報表(累)'!E10 -> 83479054 | BD11: ='合併財務報表(單)'!A10 -> 持至到期日金融資產已實現利益 | BE11: ='合併財務報表(單)'!B10 -> 27150 | BF11: ='合併財務報表(單)'!C10 -> 3912 | BG11: ='合併財務報表(單)'!D10 -> -7068 | BH11: ='合併財務報表(單)'!E10 -> 5523 | BI11: ='合併財務報表(單)'!F10 -> 24215 | BJ11: ='合併財務報表(單)'!G10 -> 2851 | BK11: ='合併財務報表(單)'!H10 -> 0 | BL11: ='合併財務報表(單)'!I10 -> 13455 | BN11: ='合併財務報表(累)'!N28 -> 提存各項保險責任金 | BO11: ='合併財務報表(累)'!O28 -> 0 | BP11: ='合併財務報表(累)'!P28 -> 0 | BQ11: ='合併財務報表(累)'!Q28 -> 9681361
A12: 2889 國票金 | D12: 現金股利率 | E12: ='圖-報酬率'!B5 -> 3.52 | G12: 法人買賣超合計(近一月) | I12: =IF(法人動向!$E$3="", IF(SUM(MONTH2)>0,"買超"&ABS(SUM(MONTH2))&"張",IF(SUM(MONTH2)<0,"賣超"&ABS(SUM(MONTH2))&"張","")), IF(SUM(MONTH1)>0,"買超"&ABS(SUM(MONTH1))&"張",IF(SUM(MONTH1)<0,"賣超"&ABS(SUM(MONTH1))&"張",""))) -> 買超136730張 | U12: =TEXT(月盈餘!$A12,"YYYY/MM") -> 2015/08 | V12: =IF(月盈餘!$B12="","",月盈餘!$B12) -> 500 | W12: =IF(月盈餘!$C12="","",月盈餘!$C12) -> 9508 | X12: =IF(月盈餘!$D12="","",月盈餘!$D12) -> 189.657 | Y12: =IF(月盈餘!$E12="","",月盈餘!$E12) -> 10885.705 | Z12: =IF(月盈餘!$F12="Y","合併",IF(月盈餘!$F12="N","非合併","")) ->  | AA12: =TEXT(銀行_月營收!$A7,"YYYY/MM") -> 2016/01 | AB12: =IF(銀行_月營收!$B7="","",銀行_月營收!$B7) -> 481 | AC12: =IF(銀行_月營收!$C7="","",銀行_月營收!$C7) -> 481 | AD12: =IF(銀行_月營收!$D7="","",銀行_月營收!$D7) -> 556.136 | AE12: =IF(銀行_月營收!$E7="","",銀行_月營收!$E7) -> 556.136 | AF12: =IF(銀行_月營收!$F7="Y","合併",IF(銀行_月營收!$F7="N","非合併","")) ->  | AP12: =TEXT(保險_月營收!$A7,"YYYY/MM") -> 2016/01 | AQ12: =IF(保險_月營收!$B22="","",保險_月營收!$B22) ->  | AS12: =IF(保險_月營收!$C7="","",保險_月營收!$C7) ->  | AU12: =IF(保險_月營收!$D7="","",保險_月營收!$D7) ->  | AV12: =IF(保險_月營收!$E7="","",保險_月營收!$E7) ->  | AW12: =IF(保險_月營收!$F7="Y","合併",IF(保險_月營收!$F7="N","非合併","")) ->  | AX12: ='合併財務報表(累)'!A11 -> 採權益法之長期股權投資 | AY12: ='合併財務報表(累)'!B11 -> 495769 | AZ12: ='合併財務報表(累)'!C11 -> 805483 | BA12: ='合併財務報表(累)'!D11 -> 1927479 | BB12: ='合併財務報表(累)'!E11 -> 2054034 | BD12: ='合併財務報表(單)'!A11 -> 權益法認列投資損益 | BE12: ='合併財務報表(單)'!B11 -> -7239 | BF12: ='合併財務報表(單)'!C11 -> 11116 | BG12: ='合併財務報表(單)'!D11 -> -421 | BH12: ='合併財務報表(單)'!E11 -> -1353 | BI12: ='合併財務報表(單)'!F11 -> 73068 | BJ12: ='合併財務報表(單)'!G11 -> 40882 | BK12: ='合併財務報表(單)'!H11 -> -55518 | BL12: ='合併財務報表(單)'!I11 -> 87725 | BN12: ='合併財務報表(累)'!N29 -> 營業費用合計(I/S) | BO12: ='合併財務報表(累)'!O29 -> 19434985 | BP12: ='合併財務報表(累)'!P29 -> 18878147 | BQ12: ='合併財務報表(累)'!Q29 -> 25780738
A13: 2890 永豐金 | B13: 5849 永豐銀行 | D13: 股利殖利率 | E13: ='圖-報酬率'!B6 -> 3.51 | G13: =IF(法人動向!B3="", IF(法人動向!B4>=2,"外資連"&ABS(法人動向!B4)&"買",IF(法人動向!B4<=-2,"外資連"&ABS(法人動向!B4)&"賣","")), IF(法人動向!B3>2,"外資連"&ABS(法人動向!B3)&"買",IF(法人動向!B3<-2,"外資連"&ABS(法人動向!B3)&"賣",""))) -> 外資連4賣 | H13: =IF(法人動向!C3="", IF(法人動向!C4>=2,"投信連"&ABS(法人動向!C4)&"買",IF(法人動向!C4<=-2,"投信連"&ABS(法人動向!C4)&"賣","")), IF(法人動向!C3>2,"投信連"&ABS(法人動向!C3)&"買",IF(法人動向!C3<-2,"投信連"&ABS(法人動向!C3)&"賣",""))) ->  | I13: =IF(法人動向!D3="", IF(法人動向!D4>=2,"自營連"&ABS(法人動向!D4)&"買",IF(法人動向!D4<=-2,"自營連"&ABS(法人動向!D4)&"賣","")), IF(法人動向!D3>2,"自營連"&ABS(法人動向!D3)&"買",IF(法人動向!D3<-2,"自營連"&ABS(法人動向!D3)&"賣",""))) ->  | U13: =TEXT(月盈餘!$A13,"YYYY/MM") -> 2015/07 | V13: =IF(月盈餘!$B13="","",月盈餘!$B13) -> 1423 | W13: =IF(月盈餘!$C13="","",月盈餘!$C13) -> 9008 | X13: =IF(月盈餘!$D13="","",月盈餘!$D13) -> 1932.688 | Y13: =IF(月盈餘!$E13="","",月盈餘!$E13) -> 10696.047 | Z13: =IF(月盈餘!$F13="Y","合併",IF(月盈餘!$F13="N","非合併","")) ->  | AA13: =TEXT(銀行_月營收!$A8,"YYYY/MM") -> 2015/12 | AB13: =IF(銀行_月營收!$B8="","",銀行_月營收!$B8) -> 40 | AC13: =IF(銀行_月營收!$C8="","",銀行_月營收!$C8) -> 4949.974 | AD13: =IF(銀行_月營收!$D8="","",銀行_月營收!$D8) -> 38.188 | AE13: =IF(銀行_月營收!$E8="","",銀行_月營收!$E8) -> 5640.072 | AF13: =IF(銀行_月營收!$F8="Y","合併",IF(銀行_月營收!$F8="N","非合併","")) ->  | AP13: =TEXT(保險_月營收!$A8,"YYYY/MM") -> 2015/12 | AQ13: =IF(保險_月營收!$B23="","",保險_月營收!$B23) ->  | AS13: =IF(保險_月營收!$C8="","",保險_月營收!$C8) -> -2263 | AU13: =IF(保險_月營收!$D8="","",保險_月營收!$D8) ->  | AV13: =IF(保險_月營收!$E8="","",保險_月營收!$E8) -> -2730 | AW13: =IF(保險_月營收!$F8="Y","合併",IF(保險_月營收!$F8="N","非合併","")) ->  | AX13: ='合併財務報表(累)'!A12 -> 其他金融資產 | AY13: ='合併財務報表(累)'!B12 -> 35933660 | AZ13: ='合併財務報表(累)'!C12 -> 60599155 | BA13: ='合併財務報表(累)'!D12 -> 76858249 | BB13: ='合併財務報表(累)'!E12 -> 129945260 | BD13: ='合併財務報表(單)'!A12 -> 股利收入 | BE13: ='合併財務報表(單)'!B12 -> 0 | BF13: ='合併財務報表(單)'!C12 -> 0 | BG13: ='合併財務報表(單)'!D12 -> 0 | BH13: ='合併財務報表(單)'!E12 -> 0 | BI13: ='合併財務報表(單)'!F12 -> 0 | BJ13: ='合併財務報表(單)'!G12 -> 0 | BK13: ='合併財務報表(單)'!H12 -> 0 | BL13: ='合併財務報表(單)'!I12 -> 0 | BN13: ='合併財務報表(累)'!N30 -> 繼續營業部門稅前純益 | BO13: ='合併財務報表(累)'!O30 -> 8435862 | BP13: ='合併財務報表(累)'!P30 -> 9096871 | BQ13: ='合併財務報表(累)'!Q30 -> 17890780
A14: 2891 中信金 | B14: 5841 中信銀 | C14: 2833 中信人壽 | U14: =TEXT(月盈餘!$A14,"YYYY/MM") -> 2015/06 | V14: =IF(月盈餘!$B14="","",月盈餘!$B14) -> 1022 | W14: =IF(月盈餘!$C14="","",月盈餘!$C14) -> 7585.412 | X14: =IF(月盈餘!$D14="","",月盈餘!$D14) -> 1532.738 | Y14: =IF(月盈餘!$E14="","",月盈餘!$E14) -> 8763.36 | Z14: =IF(月盈餘!$F14="Y","合併",IF(月盈餘!$F14="N","非合併","")) ->  | AA14: =TEXT(銀行_月營收!$A9,"YYYY/MM") -> 2015/11 | AB14: =IF(銀行_月營收!$B9="","",銀行_月營收!$B9) -> 441 | AC14: =IF(銀行_月營收!$C9="","",銀行_月營收!$C9) -> 4911 | AD14: =IF(銀行_月營收!$D9="","",銀行_月營收!$D9) -> 502.733 | AE14: =IF(銀行_月營收!$E9="","",銀行_月營收!$E9) -> 5607.904 | AF14: =IF(銀行_月營收!$F9="Y","合併",IF(銀行_月營收!$F9="N","非合併","")) ->  | AP14: =TEXT(保險_月營收!$A9,"YYYY/MM") -> 2015/11 | AQ14: =IF(保險_月營收!$B24="","",保險_月營收!$B24) ->  | AS14: =IF(保險_月營收!$C9="","",保險_月營收!$C9) ->  | AU14: =IF(保險_月營收!$D9="","",保險_月營收!$D9) ->  | AV14: =IF(保險_月營收!$E9="","",保險_月營收!$E9) ->  | AW14: =IF(保險_月營收!$F9="Y","合併",IF(保險_月營收!$F9="N","非合併","")) ->  | AX14: ='合併財務報表(累)'!A13 -> 不動產投資 | AY14: ='合併財務報表(累)'!B13 -> 0 | AZ14: ='合併財務報表(累)'!C13 -> 4222882 | BA14: ='合併財務報表(累)'!D13 -> 7976225 | BB14: ='合併財務報表(累)'!E13 -> 6396805 | BD14: ='合併財務報表(單)'!A13 -> 不動產投資損益 | BE14: ='合併財務報表(單)'!B13 -> -109659 | BF14: ='合併財務報表(單)'!C13 -> 336385 | BG14: ='合併財務報表(單)'!D13 -> 1349172 | BH14: ='合併財務報表(單)'!E13 -> 51781 | BI14: ='合併財務報表(單)'!F13 -> 97535 | BJ14: ='合併財務報表(單)'!G13 -> 40812 | BK14: ='合併財務報表(單)'!H13 -> 98536 | BL14: ='合併財務報表(單)'!I13 -> 42266 | BN14: ='合併財務報表(累)'!N31 -> 所得稅費用 | BO14: ='合併財務報表(累)'!O31 -> 1919060 | BP14: ='合併財務報表(累)'!P31 -> 1019550 | BQ14: ='合併財務報表(累)'!Q31 -> 1463407
A15: 2892 第一金 | B15: 5844 一銀 | C15: 58CNG 第一金人壽 | D15: 股利年度 | E15: 現金股利(元) | G15: 股票股利(元) | H15: 除權日 | I15: 除息日 | U15: =TEXT(月盈餘!$A15,"YYYY/MM") -> 2015/05 | V15: =IF(月盈餘!$B15="","",月盈餘!$B15) -> 1104 | W15: =IF(月盈餘!$C15="","",月盈餘!$C15) -> 6564 | X15: =IF(月盈餘!$D15="","",月盈餘!$D15) -> 1470.407 | Y15: =IF(月盈餘!$E15="","",月盈餘!$E15) -> 7230.621 | Z15: =IF(月盈餘!$F15="Y","合併",IF(月盈餘!$F15="N","非合併","")) ->  | AA15: =TEXT(銀行_月營收!$A10,"YYYY/MM") -> 2015/10 | AB15: =IF(銀行_月營收!$B10="","",銀行_月營收!$B10) -> 483 | AC15: =IF(銀行_月營收!$C10="","",銀行_月營收!$C10) -> 4470 | AD15: =IF(銀行_月營收!$D10="","",銀行_月營收!$D10) -> 561.066 | AE15: =IF(銀行_月營收!$E10="","",銀行_月營收!$E10) -> 5105.171 | AF15: =IF(銀行_月營收!$F10="Y","合併",IF(銀行_月營收!$F10="N","非合併","")) ->  | AP15: =TEXT(保險_月營收!$A10,"YYYY/MM") -> 2015/10 | AQ15: =IF(保險_月營收!$B25="","",保險_月營收!$B25) ->  | AS15: =IF(保險_月營收!$C10="","",保險_月營收!$C10) ->  | AU15: =IF(保險_月營收!$D10="","",保險_月營收!$D10) ->  | AV15: =IF(保險_月營收!$E10="","",保險_月營收!$E10) ->  | AW15: =IF(保險_月營收!$F10="Y","合併",IF(保險_月營收!$F10="N","非合併","")) ->  | AX15: ='合併財務報表(累)'!A14 -> 固定資產 | AY15: ='合併財務報表(累)'!B14 -> 13224427 | AZ15: ='合併財務報表(累)'!C14 -> 12417996 | BA15: ='合併財務報表(累)'!D14 -> 13379104 | BB15: ='合併財務報表(累)'!E14 -> 17311422 | BD15: ='合併財務報表(單)'!A14 -> 兌換損益 | BE15: ='合併財務報表(單)'!B14 -> -500303 | BF15: ='合併財務報表(單)'!C14 -> 428184 | BG15: ='合併財務報表(單)'!D14 -> 1469899 | BH15: ='合併財務報表(單)'!E14 -> 375805 | BI15: ='合併財務報表(單)'!F14 -> -508170 | BJ15: ='合併財務報表(單)'!G14 -> 2682337 | BK15: ='合併財務報表(單)'!H14 -> -691303 | BL15: ='合併財務報表(單)'!I14 -> -2209833 | BN15: ='合併財務報表(累)'!N32 -> 合併總損益 | BO15: ='合併財務報表(累)'!O32 -> 6516802 | BP15: ='合併財務報表(累)'!P32 -> 8077321 | BQ15: ='合併財務報表(累)'!Q32 -> 16427373
A16: 5820 日盛金 | B16: 5850 日盛銀行 | D16: =IF(股息股利!A3="","",YEAR(股息股利!A3)) -> 2015 | E16: =IF(股息股利!C3="","",股息股利!C3) -> 0.361 | G16: =IF(股息股利!D3="","",股息股利!D3) -> 0 | H16: =IF(股息股利!E3="","",股息股利!E3) ->  | I16: =IF(股息股利!F3="","",股息股利!F3) ->  | U16: =TEXT(月盈餘!$A16,"YYYY/MM") -> 2015/04 | V16: =IF(月盈餘!$B16="","",月盈餘!$B16) -> 1406 | W16: =IF(月盈餘!$C16="","",月盈餘!$C16) -> 5459 | X16: =IF(月盈餘!$D16="","",月盈餘!$D16) -> 1070.913 | Y16: =IF(月盈餘!$E16="","",月盈餘!$E16) -> 5760.214 | Z16: =IF(月盈餘!$F16="Y","合併",IF(月盈餘!$F16="N","非合併","")) ->  | AA16: =TEXT(銀行_月營收!$A11,"YYYY/MM") -> 2015/09 | AB16: =IF(銀行_月營收!$B11="","",銀行_月營收!$B11) -> 389 | AC16: =IF(銀行_月營收!$C11="","",銀行_月營收!$C11) -> 3986.486 | AD16: =IF(銀行_月營收!$D11="","",銀行_月營收!$D11) -> 503.543 | AE16: =IF(銀行_月營收!$E11="","",銀行_月營收!$E11) -> 4539.352 | AF16: =IF(銀行_月營收!$F11="Y","合併",IF(銀行_月營收!$F11="N","非合併","")) ->  | AP16: =TEXT(保險_月營收!$A11,"YYYY/MM") -> 2015/09 | AQ16: =IF(保險_月營收!$B26="","",保險_月營收!$B26) ->  | AS16: =IF(保險_月營收!$C11="","",保險_月營收!$C11) -> -215 | AU16: =IF(保險_月營收!$D11="","",保險_月營收!$D11) ->  | AV16: =IF(保險_月營收!$E11="","",保險_月營收!$E11) -> -295 | AW16: =IF(保險_月營收!$F11="Y","合併",IF(保險_月營收!$F11="N","非合併","")) ->  | AX16: ='合併財務報表(累)'!A15 -> 無形資產 | AY16: ='合併財務報表(累)'!B15 -> 27287092 | AZ16: ='合併財務報表(累)'!C15 -> 25497006 | BA16: ='合併財務報表(累)'!D15 -> 27042475 | BB16: ='合併財務報表(累)'!E15 -> 26198945 | BD16: ='合併財務報表(單)'!A15 -> 資產減損/ 迴轉 | BE16: ='合併財務報表(單)'!B15 -> 27997 | BF16: ='合併財務報表(單)'!C15 -> -17672 | BG16: ='合併財務報表(單)'!D15 -> -225811 | BH16: ='合併財務報表(單)'!E15 -> -60619 | BI16: ='合併財務報表(單)'!F15 -> -20573 | BJ16: ='合併財務報表(單)'!G15 -> -61970 | BK16: ='合併財務報表(單)'!H15 -> -165517 | BL16: ='合併財務報表(單)'!I15 -> -98577 | BN16: ='合併財務報表(累)'!N33 -> 本期稅後淨利 (母公司) | BO16: ='合併財務報表(累)'!O33 -> 6129872 | BP16: ='合併財務報表(累)'!P33 -> 7709994 | BQ16: ='合併財務報表(累)'!Q33 -> 16474314
A17: 5868 臺灣金控 | B17: 5858 臺銀 | C17: 6025 臺銀人壽 | D17: =IF(股息股利!A4="","",YEAR(股息股利!A4)) -> 2014 | E17: =IF(股息股利!C4="","",股息股利!C4) -> 0.617839 | G17: =IF(股息股利!D4="","",股息股利!D4) -> 0.26229 | H17: =IF(股息股利!E4="","",股息股利!E4) -> 2015-08-13 | I17: =IF(股息股利!F4="","",股息股利!F4) -> 2015-07-16 | U17: =TEXT(月盈餘!$A17,"YYYY/MM") -> 2015/03 | V17: =IF(月盈餘!$B17="","",月盈餘!$B17) -> 1900 | W17: =IF(月盈餘!$C17="","",月盈餘!$C17) -> 4107.975 | X17: =IF(月盈餘!$D17="","",月盈餘!$D17) -> 2063.633 | Y17: =IF(月盈餘!$E17="","",月盈餘!$E17) -> 4688.98 | Z17: =IF(月盈餘!$F17="Y","合併",IF(月盈餘!$F17="N","非合併","")) ->  | AA17: =TEXT(銀行_月營收!$A12,"YYYY/MM") -> 2015/08 | AB17: =IF(銀行_月營收!$B12="","",銀行_月營收!$B12) -> 408 | AC17: =IF(銀行_月營收!$C12="","",銀行_月營收!$C12) -> 3597 | AD17: =IF(銀行_月營收!$D12="","",銀行_月營收!$D12) -> 483.64 | AE17: =IF(銀行_月營收!$E12="","",銀行_月營收!$E12) -> 4040.562 | AF17: =IF(銀行_月營收!$F12="Y","合併",IF(銀行_月營收!$F12="N","非合併","")) ->  | AP17: =TEXT(保險_月營收!$A12,"YYYY/MM") -> 2015/08 | AQ17: =IF(保險_月營收!$B27="","",保險_月營收!$B27) ->  | AS17: =IF(保險_月營收!$C12="","",保險_月營收!$C12) ->  | AU17: =IF(保險_月營收!$D12="","",保險_月營收!$D12) ->  | AV17: =IF(保險_月營收!$E12="","",保險_月營收!$E12) ->  | AW17: =IF(保險_月營收!$F12="Y","合併",IF(保險_月營收!$F12="N","非合併","")) ->  | AX17: ='合併財務報表(累)'!A16 -> 其他資產 | AY17: ='合併財務報表(累)'!B16 -> 7348176 | AZ17: ='合併財務報表(累)'!C16 -> 9181869 | BA17: ='合併財務報表(累)'!D16 -> 22115916 | BB17: ='合併財務報表(累)'!E16 -> 30434486 | BD17: ='合併財務報表(單)'!A16 -> 待處分資產減損損失 | BE17: ='合併財務報表(單)'!B16 -> 0 | BF17: ='合併財務報表(單)'!C16 -> 0 | BG17: ='合併財務報表(單)'!D16 -> 0 | BH17: ='合併財務報表(單)'!E16 -> 0 | BI17: ='合併財務報表(單)'!F16 -> 0 | BJ17: ='合併財務報表(單)'!G16 -> 0 | BK17: ='合併財務報表(單)'!H16 -> 0 | BL17: ='合併財務報表(單)'!I16 -> 0 | BN17: ='合併財務報表(累)'!N34 -> 少數股權淨利(損) | BO17: ='合併財務報表(累)'!O34 -> 386930 | BP17: ='合併財務報表(累)'!P34 -> 367327 | BQ17: ='合併財務報表(累)'!Q34 -> -46941
A18: 5880 合庫金 | B18: 5854 合庫 | C18: 28744 合作金庫人壽 | D18: =IF(股息股利!A5="","",YEAR(股息股利!A5)) -> 2013 | E18: =IF(股息股利!C5="","",股息股利!C5) -> 0.65 | G18: =IF(股息股利!D5="","",股息股利!D5) -> 0.25 | H18: =IF(股息股利!E5="","",股息股利!E5) -> 2014-08-20 | I18: =IF(股息股利!F5="","",股息股利!F5) -> 2014-06-26 | U18: =TEXT(月盈餘!$A18,"YYYY/MM") -> 2015/02 | V18: =IF(月盈餘!$B18="","",月盈餘!$B18) -> 963 | W18: =IF(月盈餘!$C18="","",月盈餘!$C18) -> 2153 | X18: =IF(月盈餘!$D18="","",月盈餘!$D18) -> 1210.297 | Y18: =IF(月盈餘!$E18="","",月盈餘!$E18) -> 2692.543 | Z18: =IF(月盈餘!$F18="Y","合併",IF(月盈餘!$F18="N","非合併","")) ->  | AA18: =TEXT(銀行_月營收!$A13,"YYYY/MM") -> 2015/07 | AB18: =IF(銀行_月營收!$B13="","",銀行_月營收!$B13) -> 515 | AC18: =IF(銀行_月營收!$C13="","",銀行_月營收!$C13) -> 3189 | AD18: =IF(銀行_月營收!$D13="","",銀行_月營收!$D13) -> 638.837 | AE18: =IF(銀行_月營收!$E13="","",銀行_月營收!$E13) -> 3556.922 | AF18: =IF(銀行_月營收!$F13="Y","合併",IF(銀行_月營收!$F13="N","非合併","")) ->  | AP18: =TEXT(保險_月營收!$A13,"YYYY/MM") -> 2015/07 | AQ18: =IF(保險_月營收!$B28="","",保險_月營收!$B28) ->  | AS18: =IF(保險_月營收!$C13="","",保險_月營收!$C13) ->  | AU18: =IF(保險_月營收!$D13="","",保險_月營收!$D13) ->  | AV18: =IF(保險_月營收!$E13="","",保險_月營收!$E13) ->  | AW18: =IF(保險_月營收!$F13="Y","合併",IF(保險_月營收!$F13="N","非合併","")) ->  | AX18: ='合併財務報表(累)'!A17 -> 資產總額 | AY18: ='合併財務報表(累)'!B17 -> 788559333 | AZ18: ='合併財務報表(累)'!C17 -> 865094056 | BA18: ='合併財務報表(累)'!D17 -> 1291764563 | BB18: ='合併財務報表(累)'!E17 -> 1551145202 | BD18: ='合併財務報表(單)'!A17 -> 待處分長投減損 | BE18: ='合併財務報表(單)'!B17 -> 0 | BF18: ='合併財務報表(單)'!C17 -> 0 | BG18: ='合併財務報表(單)'!D17 -> 0 | BH18: ='合併財務報表(單)'!E17 -> 0 | BI18: ='合併財務報表(單)'!F17 -> 0 | BJ18: ='合併財務報表(單)'!G17 -> 0 | BK18: ='合併財務報表(單)'!H17 -> 0 | BL18: ='合併財務報表(單)'!I17 -> 0 | BN18: ='合併財務報表(累)'!N35 -> 每股盈餘（元） | BO18: ='合併財務報表(累)'!O35 -> 0.61 | BP18: ='合併財務報表(累)'!P35 -> 0.78 | BQ18: ='合併財務報表(累)'!Q35 -> 1.62
D19: =IF(股息股利!A6="","",YEAR(股息股利!A6)) -> 2012 | E19: =IF(股息股利!C6="","",股息股利!C6) -> 0.55 | G19: =IF(股息股利!D6="","",股息股利!D6) -> 0 | H19: =IF(股息股利!E6="","",股息股利!E6) ->  | I19: =IF(股息股利!F6="","",股息股利!F6) -> 2013-07-23 | U19: =TEXT(月盈餘!$A19,"YYYY/MM") -> 2015/01 | V19: =IF(月盈餘!$B19="","",月盈餘!$B19) -> 1190 | W19: =IF(月盈餘!$C19="","",月盈餘!$C19) -> 1190 | X19: =IF(月盈餘!$D19="","",月盈餘!$D19) -> 1482.245 | Y19: =IF(月盈餘!$E19="","",月盈餘!$E19) -> 1482.245 | Z19: =IF(月盈餘!$F19="Y","合併",IF(月盈餘!$F19="N","非合併","")) ->  | AA19: =TEXT(銀行_月營收!$A14,"YYYY/MM") -> 2015/06 | AB19: =IF(銀行_月營收!$B14="","",銀行_月營收!$B14) -> 405 | AC19: =IF(銀行_月營收!$C14="","",銀行_月營收!$C14) -> 2674.285 | AD19: =IF(銀行_月營收!$D14="","",銀行_月營收!$D14) -> 515.414 | AE19: =IF(銀行_月營收!$E14="","",銀行_月營收!$E14) -> 2918.085 | AF19: =IF(銀行_月營收!$F14="Y","合併",IF(銀行_月營收!$F14="N","非合併","")) ->  | AP19: =TEXT(保險_月營收!$A14,"YYYY/MM") -> 2015/06 | AQ19: =IF(保險_月營收!$B29="","",保險_月營收!$B29) ->  | AS19: =IF(保險_月營收!$C14="","",保險_月營收!$C14) -> 72 | AU19: =IF(保險_月營收!$D14="","",保險_月營收!$D14) ->  | AV19: =IF(保險_月營收!$E14="","",保險_月營收!$E14) -> 56 | AW19: =IF(保險_月營收!$F14="Y","合併",IF(保險_月營收!$F14="N","非合併","")) ->  | AX19: ='合併財務報表(累)'!A18 -> 央行及同業存款 | AY19: ='合併財務報表(累)'!B18 -> 13070340 | AZ19: ='合併財務報表(累)'!C18 -> 13072480 | BA19: ='合併財務報表(累)'!D18 -> 5681005 | BB19: ='合併財務報表(累)'!E18 -> 32744363 | BD19: ='合併財務報表(單)'!A18 -> 租金收支 | BE19: ='合併財務報表(單)'!B18 -> 0 | BF19: ='合併財務報表(單)'!C18 -> 0 | BG19: ='合併財務報表(單)'!D18 -> 0 | BH19: ='合併財務報表(單)'!E18 -> 0 | BI19: ='合併財務報表(單)'!F18 -> 0 | BJ19: ='合併財務報表(單)'!G18 -> 0 | BK19: ='合併財務報表(單)'!H18 -> 0 | BL19: ='合併財務報表(單)'!I18 -> 0 | BN19: =金融業與保險業!$A$1 -> 5852 元大銀
U20: =TEXT(月盈餘!$A20,"YYYY/MM") -> 2014/12 | V20: =IF(月盈餘!$B20="","",月盈餘!$B20) -> 523 | W20: =IF(月盈餘!$C20="","",月盈餘!$C20) -> 16474.314 | X20: =IF(月盈餘!$D20="","",月盈餘!$D20) -> 461.212 | Y20: =IF(月盈餘!$E20="","",月盈餘!$E20) -> 17890.78 | Z20: =IF(月盈餘!$F20="Y","合併",IF(月盈餘!$F20="N","非合併","")) ->  | AA20: =TEXT(銀行_月營收!$A15,"YYYY/MM") -> 2015/05 | AB20: =IF(銀行_月營收!$B15="","",銀行_月營收!$B15) -> 541 | AC20: =IF(銀行_月營收!$C15="","",銀行_月營收!$C15) -> 2270 | AD20: =IF(銀行_月營收!$D15="","",銀行_月營收!$D15) -> 520.254 | AE20: =IF(銀行_月營收!$E15="","",銀行_月營收!$E15) -> 2402.671 | AF20: =IF(銀行_月營收!$F15="Y","合併",IF(銀行_月營收!$F15="N","非合併","")) ->  | AX20: ='合併財務報表(累)'!A19 -> 央行及同業融資 | AY20: ='合併財務報表(累)'!B19 -> 0 | AZ20: ='合併財務報表(累)'!C19 -> 0 | BA20: ='合併財務報表(累)'!D19 -> 0 | BB20: ='合併財務報表(累)'!E19 -> 0 | BD20: ='合併財務報表(單)'!A19 -> 處分固定資產損益 | BE20: ='合併財務報表(單)'!B19 -> 0 | BF20: ='合併財務報表(單)'!C19 -> 0 | BG20: ='合併財務報表(單)'!D19 -> 0 | BH20: ='合併財務報表(單)'!E19 -> 0 | BI20: ='合併財務報表(單)'!F19 -> 0 | BJ20: ='合併財務報表(單)'!G19 -> 0 | BK20: ='合併財務報表(單)'!H19 -> 0 | BL20: ='合併財務報表(單)'!I19 -> 0
D21: =IF(新聞!C3="","",新聞!C3) -> 2016-06-08 | E21: =IF(新聞!D3="","",新聞!D3) -> 元大金 5月份營收計 5,886,594千元, 比去年同期成長 9.53 %, 累計105 年 1月至 5月月營收計 27,835,295千元, 比去年同期成長 14.30 %。 | U21: =TEXT(月盈餘!$A21,"YYYY/MM") -> 2014/11 | V21: =IF(月盈餘!$B21="","",月盈餘!$B21) -> 903 | W21: =IF(月盈餘!$C21="","",月盈餘!$C21) -> 16015 | X21: =IF(月盈餘!$D21="","",月盈餘!$D21) -> 912.308 | Y21: =IF(月盈餘!$E21="","",月盈餘!$E21) -> 17543.934 | Z21: =IF(月盈餘!$F21="Y","合併",IF(月盈餘!$F21="N","非合併","")) ->  | AA21: =TEXT(銀行_月營收!$A16,"YYYY/MM") -> 2015/04 | AB21: =IF(銀行_月營收!$B16="","",銀行_月營收!$B16) -> 413 | AC21: =IF(銀行_月營收!$C16="","",銀行_月營收!$C16) -> 1728 | AD21: =IF(銀行_月營收!$D16="","",銀行_月營收!$D16) -> 432.111 | AE21: =IF(銀行_月營收!$E16="","",銀行_月營收!$E16) -> 1882.417 | AF21: =IF(銀行_月營收!$F16="Y","合併",IF(銀行_月營收!$F16="N","非合併","")) ->  | AX21: ='合併財務報表(累)'!A20 -> 附買回票債券負債 | AY21: ='合併財務報表(累)'!B20 -> 30678684 | AZ21: ='合併財務報表(累)'!C20 -> 23440116 | BA21: ='合併財務報表(累)'!D20 -> 89313850 | BB21: ='合併財務報表(累)'!E20 -> 154992859 | BD21: ='合併財務報表(單)'!A20 -> 處分擔保品損益 | BE21: ='合併財務報表(單)'!B20 -> 0 | BF21: ='合併財務報表(單)'!C20 -> 0 | BG21: ='合併財務報表(單)'!D20 -> 0 | BH21: ='合併財務報表(單)'!E20 -> 0 | BI21: ='合併財務報表(單)'!F20 -> 0 | BJ21: ='合併財務報表(單)'!G20 -> 0 | BK21: ='合併財務報表(單)'!H20 -> 0 | BL21: ='合併財務報表(單)'!I20 -> 0 | BN21: =MIDB(BN19,FIND(" ",BN19)+1,20)&" 財務分析 單位：千元" -> 元大銀 財務分析 單位：千元 | BO21: =TEXT(金融業與保險業!B$2,"YYYY/MM") -> 2013/12 | BP21: =TEXT(金融業與保險業!C$2,"YYYY/MM") -> 2014/12 | BQ21: =TEXT(金融業與保險業!D$2,"YYYY/MM") -> 2015/12
D22: =IF(新聞!C4="","",新聞!C4) -> 2016-06-06 | E22: =IF(新聞!D4="","",新聞!D4) -> 元大金財務公告未經會計師核閱數， 累計 105/01 至 105 /05稅後盈餘 551,000萬元，每股稅後盈餘 .46元。 | U22: =TEXT(月盈餘!$A22,"YYYY/MM") -> 2014/10 | V22: =IF(月盈餘!$B22="","",月盈餘!$B22) -> 1215 | W22: =IF(月盈餘!$C22="","",月盈餘!$C22) -> 15113 | X22: =IF(月盈餘!$D22="","",月盈餘!$D22) -> 1345.708 | Y22: =IF(月盈餘!$E22="","",月盈餘!$E22) -> 16631.626 | Z22: =IF(月盈餘!$F22="Y","合併",IF(月盈餘!$F22="N","非合併","")) ->  | AA22: =TEXT(銀行_月營收!$A17,"YYYY/MM") -> 2015/03 | AB22: =IF(銀行_月營收!$B17="","",銀行_月營收!$B17) -> 567 | AC22: =IF(銀行_月營收!$C17="","",銀行_月營收!$C17) -> 1315.622 | AD22: =IF(銀行_月營收!$D17="","",銀行_月營收!$D17) -> 613.045 | AE22: =IF(銀行_月營收!$E17="","",銀行_月營收!$E17) -> 1450.497 | AF22: =IF(銀行_月營收!$F17="Y","合併",IF(銀行_月營收!$F17="N","非合併","")) ->  | AX22: ='合併財務報表(累)'!A21 -> 存款及匯款 | AY22: ='合併財務報表(累)'!B21 -> 435399630 | AZ22: ='合併財務報表(累)'!C21 -> 470505829 | BA22: ='合併財務報表(累)'!D21 -> 555769170 | BB22: ='合併財務報表(累)'!E21 -> 625561930 | BD22: ='合併財務報表(單)'!A21 -> 攤銷出售不良債權損失 | BE22: ='合併財務報表(單)'!B21 -> 283256 | BF22: ='合併財務報表(單)'!C21 -> 129667 | BG22: ='合併財務報表(單)'!D21 -> 106957 | BH22: ='合併財務報表(單)'!E21 -> 106840 | BI22: ='合併財務報表(單)'!F21 -> 107505 | BJ22: ='合併財務報表(單)'!G21 -> 91396 | BK22: ='合併財務報表(單)'!H21 -> 106758 | BL22: ='合併財務報表(單)'!I21 -> 82306 | BN22: =金融業與保險業!A3 -> 合併(Y/N) | BO22: =IF(金融業與保險業!B3="Y","合併","非合併") -> 合併 | BP22: =IF(金融業與保險業!C3="Y","合併","非合併") -> 合併 | BQ22: =IF(金融業與保險業!D3="Y","合併","非合併") -> 合併
D23: =IF(新聞!C5="","",新聞!C5) -> 2016-06-06 | E23: =IF(新聞!D5="","",新聞!D5) -> 元大金財務公告未經會計師核閱數， 105/05 合併稅前盈餘 141,618萬元，累計 105/01 至 105 /05合併稅前盈餘 675,269萬元，比去年同期衰退 6.61%。 累計 105/01 至 105 /05稅後盈餘 551,000萬元，每股稅後盈餘 .46元。 | U23: =TEXT(月盈餘!$A23,"YYYY/MM") -> 2014/09 | V23: =IF(月盈餘!$B23="","",月盈餘!$B23) -> 611 | W23: =IF(月盈餘!$C23="","",月盈餘!$C23) -> 13897.657 | X23: =IF(月盈餘!$D23="","",月盈餘!$D23) -> 706.579 | Y23: =IF(月盈餘!$E23="","",月盈餘!$E23) -> 15286.316 | Z23: =IF(月盈餘!$F23="Y","合併",IF(月盈餘!$F23="N","非合併","")) ->  | AA23: =TEXT(銀行_月營收!$A18,"YYYY/MM") -> 2015/02 | AB23: =IF(銀行_月營收!$B18="","",銀行_月營收!$B18) -> 327 | AC23: =IF(銀行_月營收!$C18="","",銀行_月營收!$C18) -> 749 | AD23: =IF(銀行_月營收!$D18="","",銀行_月營收!$D18) -> 358.112 | AE23: =IF(銀行_月營收!$E18="","",銀行_月營收!$E18) -> 837.261 | AF23: =IF(銀行_月營收!$F18="Y","合併",IF(銀行_月營收!$F18="N","非合併","")) ->  | AX23: ='合併財務報表(累)'!A22 -> 什項負債 | AY23: ='合併財務報表(累)'!B22 -> 17286508 | AZ23: ='合併財務報表(累)'!C22 -> 14180114 | BA23: ='合併財務報表(累)'!D22 -> 14350786 | BB23: ='合併財務報表(累)'!E22 -> 24645625 | BD23: ='合併財務報表(單)'!A22 -> 其他各項提存 | BE23: ='合併財務報表(單)'!B22 -> 0 | BF23: ='合併財務報表(單)'!C22 -> 0 | BG23: ='合併財務報表(單)'!D22 -> 0 | BH23: ='合併財務報表(單)'!E22 -> 0 | BI23: ='合併財務報表(單)'!F22 -> 0 | BJ23: ='合併財務報表(單)'!G22 -> 0 | BK23: ='合併財務報表(單)'!H22 -> 0 | BL23: ='合併財務報表(單)'!I22 -> 0 | BN23: =金融業與保險業!A4 -> 淨利息收益 | BO23: =金融業與保險業!B4 -> 6115427 | BP23: =金融業與保險業!C4 -> 7000215 | BQ23: =金融業與保險業!D4 -> 7745571
D24: =IF(新聞!C6="","",新聞!C6) -> 2016-06-03 | E24: =IF(新聞!D6="","",新聞!D6) -> 凱雷釋股變現逾29億元 元大金爆33.2萬張史上最大量 | U24: =TEXT(月盈餘!$A24,"YYYY/MM") -> 2014/08 | V24: =IF(月盈餘!$B24="","",月盈餘!$B24) -> 6350 | W24: =IF(月盈餘!$C24="","",月盈餘!$C24) -> 13287 | X24: =IF(月盈餘!$D24="","",月盈餘!$D24) -> 6445.329 | Y24: =IF(月盈餘!$E24="","",月盈餘!$E24) -> 14579.339 | Z24: =IF(月盈餘!$F24="Y","合併",IF(月盈餘!$F24="N","非合併","")) ->  | AA24: =TEXT(銀行_月營收!$A19,"YYYY/MM") -> 2015/01 | AB24: =IF(銀行_月營收!$B19="","",銀行_月營收!$B19) -> 422 | AC24: =IF(銀行_月營收!$C19="","",銀行_月營收!$C19) -> 422 | AD24: =IF(銀行_月營收!$D19="","",銀行_月營收!$D19) -> 479.149 | AE24: =IF(銀行_月營收!$E19="","",銀行_月營收!$E19) -> 479.149 | AF24: =IF(銀行_月營收!$F19="Y","合併",IF(銀行_月營收!$F19="N","非合併","")) ->  | AX24: ='合併財務報表(累)'!A44 -> 其它負債(準備金) | AY24: ='合併財務報表(累)'!B44 -> 136203596 | AZ24: ='合併財務報表(累)'!C44 -> 182263054 | BA24: ='合併財務報表(累)'!D44 -> 441611354 | BB24: ='合併財務報表(累)'!E44 -> 515836375 | BD24: ='合併財務報表(單)'!A23 -> 收回呆帳及過期帳 | BE24: ='合併財務報表(單)'!B23 -> 0 | BF24: ='合併財務報表(單)'!C23 -> 0 | BG24: ='合併財務報表(單)'!D23 -> 0 | BH24: ='合併財務報表(單)'!E23 -> 0 | BI24: ='合併財務報表(單)'!F23 -> 0 | BJ24: ='合併財務報表(單)'!G23 -> 0 | BK24: ='合併財務報表(單)'!H23 -> 0 | BL24: ='合併財務報表(單)'!I23 -> 0 | BN24: =金融業與保險業!A5 -> 手續費淨收益 | BO24: =金融業與保險業!B5 -> 1689385 | BP24: =金融業與保險業!C5 -> 2063634 | BQ24: =金融業與保險業!D5 -> 2580988
D25: =IF(新聞!C7="","",新聞!C7) -> 2016-06-01 | E25: =IF(新聞!D7="","",新聞!D7) -> 元大金財務公告累計 105/01 至 105 /03稅前盈餘 330,096萬元，比去年同期衰退 18.51%。 累計 105/01 至 105 /03稅後盈餘 331,246萬元，每股稅前盈餘 .30元，每股稅後盈餘 .31元。 | U25: =TEXT(月盈餘!$A25,"YYYY/MM") -> 2014/07 | V25: =IF(月盈餘!$B25="","",月盈餘!$B25) -> 901 | W25: =IF(月盈餘!$C25="","",月盈餘!$C25) -> 6937 | X25: =IF(月盈餘!$D25="","",月盈餘!$D25) -> 1025.47 | Y25: =IF(月盈餘!$E25="","",月盈餘!$E25) -> 8134.009 | Z25: =IF(月盈餘!$F25="Y","合併",IF(月盈餘!$F25="N","非合併","")) ->  | AA25: =TEXT(銀行_月營收!$A20,"YYYY/MM") -> 2014/12 | AB25: =IF(銀行_月營收!$B20="","",銀行_月營收!$B20) -> 265 | AC25: =IF(銀行_月營收!$C20="","",銀行_月營收!$C20) -> 4546.935 | AD25: =IF(銀行_月營收!$D20="","",銀行_月營收!$D20) -> 298.452 | AE25: =IF(銀行_月營收!$E20="","",銀行_月營收!$E20) -> 5010.738 | AF25: =IF(銀行_月營收!$F20="Y","合併",IF(銀行_月營收!$F20="N","非合併","")) ->  | AX25: ='合併財務報表(累)'!A23 -> 負債總額 | AY25: ='合併財務報表(累)'!B23 -> 632638758 | AZ25: ='合併財務報表(累)'!C23 -> 703461593 | BA25: ='合併財務報表(累)'!D23 -> 1106726165 | BB25: ='合併財務報表(累)'!E23 -> 1353781152 | BD25: ='合併財務報表(單)'!A24 -> 處分投資損益 | BE25: ='合併財務報表(單)'!B24 -> 0 | BF25: ='合併財務報表(單)'!C24 -> 0 | BG25: ='合併財務報表(單)'!D24 -> 0 | BH25: ='合併財務報表(單)'!E24 -> 0 | BI25: ='合併財務報表(單)'!F24 -> 0 | BJ25: ='合併財務報表(單)'!G24 -> 0 | BK25: ='合併財務報表(單)'!H24 -> 0 | BL25: ='合併財務報表(單)'!I24 -> 0 | BN25: =金融業與保險業!A6 -> 淨收益 | BO25: =金融業與保險業!B6 -> 9368593 | BP25: =金融業與保險業!C6 -> 11400848 | BQ25: =金融業與保險業!D6 -> 12932764
AA26: =TEXT(銀行_月營收!$A21,"YYYY/MM") -> 2014/11 | AB26: =IF(銀行_月營收!$B21="","",銀行_月營收!$B21) -> 370 | AC26: =IF(銀行_月營收!$C21="","",銀行_月營收!$C21) -> 4282 | AD26: =IF(銀行_月營收!$D21="","",銀行_月營收!$D21) -> 362.849 | AE26: =IF(銀行_月營收!$E21="","",銀行_月營收!$E21) -> 4714.447 | AF26: =IF(銀行_月營收!$F21="Y","合併",IF(銀行_月營收!$F21="N","非合併","")) ->  | AX26: ='合併財務報表(累)'!A24 -> 普通股股本 | AY26: ='合併財務報表(累)'!B24 -> 100162105 | AZ26: ='合併財務報表(累)'!C24 -> 98937235 | BA26: ='合併財務報表(累)'!D24 -> 101410666 | BB26: ='合併財務報表(累)'!E24 -> 107129605 | BD26: ='合併財務報表(單)'!A25 -> 提存保險準備金(置淨收益) | BE26: ='合併財務報表(單)'!B25 -> 0 | BF26: ='合併財務報表(單)'!C25 -> 0 | BG26: ='合併財務報表(單)'!D25 -> 0 | BH26: ='合併財務報表(單)'!E25 -> 0 | BI26: ='合併財務報表(單)'!F25 -> 0 | BJ26: ='合併財務報表(單)'!G25 -> 0 | BK26: ='合併財務報表(單)'!H25 -> 0 | BL26: ='合併財務報表(單)'!I25 -> 0 | BN26: =金融業與保險業!A7 -> 信用卡呆帳費用 | BO26: =金融業與保險業!B7 -> 0 | BP26: =金融業與保險業!C7 -> 0 | BQ26: =金融業與保險業!D7 -> 0
AM27: 淨利差&淨息差 | AX27: ='合併財務報表(累)'!A25 -> 資本公積合計 | AY27: ='合併財務報表(累)'!B25 -> 34766307 | AZ27: ='合併財務報表(累)'!C25 -> 33634947 | BA27: ='合併財務報表(累)'!D25 -> 33648021 | BB27: ='合併財務報表(累)'!E25 -> 35845672 | BD27: ='合併財務報表(單)'!A26 -> 其他非利息淨損益 | BE27: ='合併財務報表(單)'!B26 -> 6182868 | BF27: ='合併財務報表(單)'!C26 -> 728950 | BG27: ='合併財務報表(單)'!D26 -> 890767 | BH27: ='合併財務報表(單)'!E26 -> 787470 | BI27: ='合併財務報表(單)'!F26 -> 664021 | BJ27: ='合併財務報表(單)'!G26 -> 347736 | BK27: ='合併財務報表(單)'!H26 -> 757779 | BL27: ='合併財務報表(單)'!I26 -> 1369940 | BN27: =金融業與保險業!A8 -> 放款呆帳費用 | BO27: =金融業與保險業!B8 -> 720371 | BP27: =金融業與保險業!C8 -> 757128 | BQ27: =金融業與保險業!D8 -> 886889
AM28: 年/月 | AN28: 淨利息收益率(NIM) | AO28: 存放款利差(NIS) | AX28: ='合併財務報表(累)'!A26 -> 法定盈餘公積 | AY28: ='合併財務報表(累)'!B26 -> 3646713 | AZ28: ='合併財務報表(累)'!C26 -> 4259700 | BA28: ='合併財務報表(累)'!D26 -> 5030700 | BB28: ='合併財務報表(累)'!E26 -> 6677902 | BD28: ='合併財務報表(單)'!A27 -> 淨收益 | BE28: ='合併財務報表(單)'!B27 -> 17551665 | BF28: ='合併財務報表(單)'!C27 -> 13613601 | BG28: ='合併財務報表(單)'!D27 -> 12324943 | BH28: ='合併財務報表(單)'!E27 -> 13944875 | BI28: ='合併財務報表(單)'!F27 -> 16545083 | BJ28: ='合併財務報表(單)'!G27 -> 19177704 | BK28: ='合併財務報表(單)'!H27 -> 20120370 | BL28: ='合併財務報表(單)'!I27 -> 16441337 | BN28: =金融業與保險業!A9 -> 營業費用合計(I/S) | BO28: =金融業與保險業!B9 -> 5239500 | BP28: =金融業與保險業!C9 -> 5632982 | BQ28: =金融業與保險業!D9 -> 6405803
AM29: ='銀行_NIM&NIS'!A3 -> 2013-12-31 | AN29: ='銀行_NIM&NIS'!B3 -> 0.29 | AO29: ='銀行_NIM&NIS'!C3 -> 1.51 | AX29: ='合併財務報表(累)'!A27 -> 特別盈餘公積 | AY29: ='合併財務報表(累)'!B27 -> 2437871 | AZ29: ='合併財務報表(累)'!C27 -> 2772158 | BA29: ='合併財務報表(累)'!D27 -> 909427 | BB29: ='合併財務報表(累)'!E27 -> 6549234 | BD29: ='合併財務報表(單)'!A28 -> 信用卡呆帳費用 | BE29: ='合併財務報表(單)'!B28 -> 1449 | BF29: ='合併財務報表(單)'!C28 -> 555186 | BG29: ='合併財務報表(單)'!D28 -> -218348 | BH29: ='合併財務報表(單)'!E28 -> 65547 | BI29: ='合併財務報表(單)'!F28 -> 17600 | BJ29: ='合併財務報表(單)'!G28 -> 135332 | BK29: ='合併財務報表(單)'!H28 -> 381057 | BL29: ='合併財務報表(單)'!I28 -> 400935 | BN29: =金融業與保險業!A10 -> 繼續營業部門稅前純益 | BO29: =金融業與保險業!B10 -> 3408722 | BP29: =金融業與保險業!C10 -> 5010738 | BQ29: =金融業與保險業!D10 -> 5640072
AM30: ='銀行_NIM&NIS'!A4 -> 2014-03-31 | AN30: ='銀行_NIM&NIS'!B4 -> 0.29 | AO30: ='銀行_NIM&NIS'!C4 -> 1.52 | AX30: ='合併財務報表(累)'!A28 -> 未分配盈餘 | AY30: ='合併財務報表(累)'!B28 -> 14406709 | AZ30: ='合併財務報表(累)'!C28 -> 15653335 | BA30: ='合併財務報表(累)'!D28 -> 24180163 | BB30: ='合併財務報表(累)'!E28 -> 18234604 | BD30: ='合併財務報表(單)'!A29 -> 放款呆帳費用 | BE30: ='合併財務報表(單)'!B29 -> 7186 | BF30: ='合併財務報表(單)'!C29 -> -440110 | BG30: ='合併財務報表(單)'!D29 -> 905015 | BH30: ='合併財務報表(單)'!E29 -> -49680 | BI30: ='合併財務報表(單)'!F29 -> 216848 | BJ30: ='合併財務報表(單)'!G29 -> -26606 | BK30: ='合併財務報表(單)'!H29 -> 354789 | BL30: ='合併財務報表(單)'!I29 -> -94051 | BN30: =金融業與保險業!A11 -> 所得稅費用 | BO30: =金融業與保險業!B11 -> 356517 | BP30: =金融業與保險業!C11 -> 468340 | BQ30: =金融業與保險業!D11 -> 696099
AM31: ='銀行_NIM&NIS'!A5 -> 2014-06-30 | AN31: ='銀行_NIM&NIS'!B5 -> 0.3 | AO31: ='銀行_NIM&NIS'!C5 -> 1.56 | AX31: ='合併財務報表(累)'!A29 -> 少數股權 | AY31: ='合併財務報表(累)'!B29 -> 3090675 | AZ31: ='合併財務報表(累)'!C29 -> 3221217 | BA31: ='合併財務報表(累)'!D29 -> 15337405 | BB31: ='合併財務報表(累)'!E29 -> 15253874 | BD31: ='合併財務報表(單)'!A30 -> 提存各項保險責任金 | BE31: ='合併財務報表(單)'!B30 -> 3107666 | BF31: ='合併財務報表(單)'!C30 -> 3170005 | BG31: ='合併財務報表(單)'!D30 -> 1885496 | BH31: ='合併財務報表(單)'!E30 -> 1821569 | BI31: ='合併財務報表(單)'!F30 -> 4456639 | BJ31: ='合併財務報表(單)'!G30 -> 7459769 | BK31: ='合併財務報表(單)'!H30 -> 11136445 | BL31: ='合併財務報表(單)'!I30 -> 4500653 | BN31: =金融業與保險業!A12 -> 本期稅後淨利 (母公司) | BO31: =金融業與保險業!B12 -> 3052205 | BP31: =金融業與保險業!C12 -> 4546935 | BQ31: =金融業與保險業!D12 -> 4949974
AM32: ='銀行_NIM&NIS'!A6 -> 2014-09-30 | AN32: ='銀行_NIM&NIS'!B6 -> 0.29 | AO32: ='銀行_NIM&NIS'!C6 -> 1.56 | AX32: ='合併財務報表(累)'!A30 -> 股東權益總額 | AY32: ='合併財務報表(累)'!B30 -> 155920575 | AZ32: ='合併財務報表(累)'!C30 -> 161632463 | BA32: ='合併財務報表(累)'!D30 -> 185038398 | BB32: ='合併財務報表(累)'!E30 -> 197364050 | BD32: ='合併財務報表(單)'!A31 -> 營業費用- 用人費用 | BE32: ='合併財務報表(單)'!B31 -> 3398453 | BF32: ='合併財務報表(單)'!C31 -> 4235735 | BG32: ='合併財務報表(單)'!D31 -> 3947005 | BH32: ='合併財務報表(單)'!E31 -> 4378117 | BI32: ='合併財務報表(單)'!F31 -> 4665826 | BJ32: ='合併財務報表(單)'!G31 -> 4552092 | BK32: ='合併財務報表(單)'!H31 -> 4247077 | BL32: ='合併財務報表(單)'!I31 -> 4238852 | BN32: =金融業與保險業!A13 -> 每股盈餘（元） | BO32: =金融業與保險業!B13 -> 0.84 | BP32: =金融業與保險業!C13 -> 1.21 | BQ32: =金融業與保險業!D13 -> 1.26
AM33: ='銀行_NIM&NIS'!A7 -> 2014-12-31 | AN33: ='銀行_NIM&NIS'!B7 -> 0.28 | AO33: ='銀行_NIM&NIS'!C7 -> 1.49 | BD33: ='合併財務報表(單)'!A32 -> 營業費用- 折舊及攤銷 | BE33: ='合併財務報表(單)'!B32 -> 545757 | BF33: ='合併財務報表(單)'!C32 -> 661455 | BG33: ='合併財務報表(單)'!D32 -> 636634 | BH33: ='合併財務報表(單)'!E32 -> 619926 | BI33: ='合併財務報表(單)'!F32 -> 527660 | BJ33: ='合併財務報表(單)'!G32 -> 508661 | BK33: ='合併財務報表(單)'!H32 -> 495877 | BL33: ='合併財務報表(單)'!I32 -> 486041 | BN33: =金融業與保險業!A14 -> 自有資本比率 | BO33: =金融業與保險業!B14 -> 12.92 | BP33: =金融業與保險業!C14 -> 12.83 | BQ33: =金融業與保險業!D14 -> 12.98
AM34: ='銀行_NIM&NIS'!A8 -> 2015-03-31 | AN34: ='銀行_NIM&NIS'!B8 -> 0.26 | AO34: ='銀行_NIM&NIS'!C8 -> 1.47 | AX34: ='合併財務報表(累)'!$A$1 -> 2885 元大金 | BD34: ='合併財務報表(單)'!A33 -> 營業費用- 業務及管理費 | BE34: ='合併財務報表(單)'!B33 -> 1961020 | BF34: ='合併財務報表(單)'!C33 -> 2923841 | BG34: ='合併財務報表(單)'!D33 -> 2564677 | BH34: ='合併財務報表(單)'!E33 -> 2420416 | BI34: ='合併財務報表(單)'!F33 -> 2586130 | BJ34: ='合併財務報表(單)'!G33 -> 2803976 | BK34: ='合併財務報表(單)'!H33 -> 2896412 | BL34: ='合併財務報表(單)'!I33 -> 2831764 | BN34: =金融業與保險業!A15 -> 第一類資本占風險性資產比 | BO34: =金融業與保險業!B15 -> 10.18 | BP34: =金融業與保險業!C15 -> 9.19 | BQ34: =金融業與保險業!D15 -> 9.49
AM35: ='銀行_NIM&NIS'!A9 -> 2015-06-30 | AN35: ='銀行_NIM&NIS'!B9 -> 0.27 | AO35: ='銀行_NIM&NIS'!C9 -> 1.5 | BD35: ='合併財務報表(單)'!A34 -> 營業費用合計(I/S) | BE35: ='合併財務報表(單)'!B34 -> 5905230 | BF35: ='合併財務報表(單)'!C34 -> 7821031 | BG35: ='合併財務報表(單)'!D34 -> 7148316 | BH35: ='合併財務報表(單)'!E34 -> 7418459 | BI35: ='合併財務報表(單)'!F34 -> 7779616 | BJ35: ='合併財務報表(單)'!G34 -> 7864729 | BK35: ='合併財務報表(單)'!H34 -> 7639366 | BL35: ='合併財務報表(單)'!I34 -> 7556657 | BN35: =金融業與保險業!A16 -> 逾期放款比率 | BO35: =金融業與保險業!B16 -> 0.31 | BP35: =金融業與保險業!C16 -> 0.21 | BQ35: =金融業與保險業!D16 -> 0.2
AM36: ='銀行_NIM&NIS'!A10 -> 2015-09-30 | AN36: ='銀行_NIM&NIS'!B10 -> 0.28 | AO36: ='銀行_NIM&NIS'!C10 -> 1.58 | AX36: =MIDB(AX34,FIND(" ",AX34)+1,20)&" 財務分析 單位：千元" -> 元大金 財務分析 單位：千元 | AY36: =TEXT('合併財務報表(累)'!W$2,"YYYY/MM") -> 2012/12 | AZ36: =TEXT('合併財務報表(累)'!X$2,"YYYY/MM") -> 2013/12 | BA36: =TEXT('合併財務報表(累)'!Y$2,"YYYY/MM") -> 2014/12 | BB36: =TEXT('合併財務報表(累)'!Z$2,"YYYY/MM") -> 2015/12 | BD36: ='合併財務報表(單)'!A35 -> 繼續營業部門稅前純益 | BE36: ='合併財務報表(單)'!B35 -> 8530134 | BF36: ='合併財務報表(單)'!C35 -> 2507489 | BG36: ='合併財務報表(單)'!D35 -> 2604464 | BH36: ='合併財務報表(單)'!E35 -> 4688980 | BI36: ='合併財務報表(單)'!F35 -> 4074380 | BJ36: ='合併財務報表(單)'!G35 -> 3744480 | BK36: ='合併財務報表(單)'!H35 -> 608713 | BL36: ='合併財務報表(單)'!I35 -> 4077143 | BN36: =金融業與保險業!A17 -> 備抵呆帳覆蓋率 | BO36: =金融業與保險業!B17 -> 404.96 | BP36: =金融業與保險業!C17 -> 606.61 | BQ36: =金融業與保險業!D17 -> 671.17
AM37: ='銀行_NIM&NIS'!A11 -> 2015-12-31 | AN37: ='銀行_NIM&NIS'!B11 -> 0.28 | AO37: ='銀行_NIM&NIS'!C11 -> 1.6 | AX37: ='合併財務報表(累)'!V3 -> 稅後淨利成長率 | AY37: ='合併財務報表(累)'!W3 -> -52 | AZ37: ='合併財務報表(累)'!X3 -> 19.95 | BA37: ='合併財務報表(累)'!Y3 -> 103.38 | BB37: ='合併財務報表(累)'!Z3 -> -26.97 | BD37: ='合併財務報表(單)'!A36 -> 所得稅費用 | BE37: ='合併財務報表(單)'!B36 -> 490703 | BF37: ='合併財務報表(單)'!C36 -> 423177 | BG37: ='合併財務報表(單)'!D36 -> 90777 | BH37: ='合併財務報表(單)'!E36 -> 455876 | BI37: ='合併財務報表(單)'!F36 -> 217047 | BJ37: ='合併財務報表(單)'!G36 -> 408571 | BK37: ='合併財務報表(單)'!H36 -> 37584 | BL37: ='合併財務報表(單)'!I36 -> 564967 | BN37: =金融業與保險業!$I$1 -> Z1435 元大人壽保險
AM38: ='銀行_NIM&NIS'!A12 -> 2016-03-31 | AN38: ='銀行_NIM&NIS'!B12 -> 0.27 | AO38: ='銀行_NIM&NIS'!C12 -> 1.59 | AX38: ='合併財務報表(累)'!V4 -> ROA(A)稅後息前% | AY38: ='合併財務報表(累)'!W4 -> 0.84 | AZ38: ='合併財務報表(累)'!X4 -> 0.96 | BA38: ='合併財務報表(累)'!Y4 -> 1.52 | BB38: ='合併財務報表(累)'!Z4 -> 0.84 | BD38: ='合併財務報表(單)'!A37 -> 繼續營業部門純益 | BE38: ='合併財務報表(單)'!B37 -> 8039431 | BF38: ='合併財務報表(單)'!C37 -> 2084312 | BG38: ='合併財務報表(單)'!D37 -> 2513687 | BH38: ='合併財務報表(單)'!E37 -> 4233104 | BI38: ='合併財務報表(單)'!F37 -> 3857333 | BJ38: ='合併財務報表(單)'!G37 -> 3335909 | BK38: ='合併財務報表(單)'!H37 -> 571129 | BL38: ='合併財務報表(單)'!I37 -> 3512176
AK39: 逾放比&備抵呆帳覆蓋率 | AX39: ='合併財務報表(累)'!V5 -> ROE－稅後 | AY39: ='合併財務報表(累)'!W5 -> 4.23 | AZ39: ='合併財務報表(累)'!X5 -> 5.01 | BA39: ='合併財務報表(累)'!Y5 -> 9.48 | BB39: ='合併財務報表(累)'!Z5 -> 6.27 | BD39: ='合併財務報表(單)'!A38 -> 停業單位損益 | BE39: ='合併財務報表(單)'!B38 -> 0 | BF39: ='合併財務報表(單)'!C38 -> 0 | BG39: ='合併財務報表(單)'!D38 -> 0 | BH39: ='合併財務報表(單)'!E38 -> 0 | BI39: ='合併財務報表(單)'!F38 -> 0 | BJ39: ='合併財務報表(單)'!G38 -> 0 | BK39: ='合併財務報表(單)'!H38 -> 0 | BL39: ='合併財務報表(單)'!I38 -> 0 | BN39: =MIDB(BN37,FIND(" ",BN37)+1,20)&" 財務分析 單位：千元" -> 元大人壽保險 財務分析 單位：千元 | BO39: =TEXT(金融業與保險業!J$2,"YYYY/MM") -> 2013/12 | BP39: =TEXT(金融業與保險業!K$2,"YYYY/MM") -> 2014/12 | BQ39: =TEXT(金融業與保險業!L$2,"YYYY/MM") -> 2015/12
AL40: ='銀行_備呆&逾放'!R1 -> 元大銀 | AM40: ='銀行_備呆&逾放'!S1 -> 本國小計 | AN40: ='銀行_備呆&逾放'!T1 -> 元大銀 | AO40: ='銀行_備呆&逾放'!U1 -> 本國小計 | AX40: ='合併財務報表(累)'!V6 -> 自有資本比率 | AY40: ='合併財務報表(累)'!W6 -> 147.61 | AZ40: ='合併財務報表(累)'!X6 -> 148.68 | BA40: ='合併財務報表(累)'!Y6 -> 146.66 | BB40: ='合併財務報表(累)'!Z6 -> 141.87 | BD40: ='合併財務報表(單)'!A39 -> 非常項目 | BE40: ='合併財務報表(單)'!B39 -> 0 | BF40: ='合併財務報表(單)'!C39 -> 0 | BG40: ='合併財務報表(單)'!D39 -> 0 | BH40: ='合併財務報表(單)'!E39 -> 0 | BI40: ='合併財務報表(單)'!F39 -> 0 | BJ40: ='合併財務報表(單)'!G39 -> 0 | BK40: ='合併財務報表(單)'!H39 -> 0 | BL40: ='合併財務報表(單)'!I39 -> 0 | BN40: =金融業與保險業!I3 -> 合併(Y/N) | BO40: =IF(金融業與保險業!J3="Y","合併","非合併") -> 非合併 | BP40: =IF(金融業與保險業!K3="Y","合併","非合併") -> 非合併 | BQ40: =IF(金融業與保險業!L3="Y","合併","非合併") -> 非合併
AL41: ='銀行_備呆&逾放'!R2 -> 逾放比率 | AM41: ='銀行_備呆&逾放'!S2 -> 逾放比率 | AN41: ='銀行_備呆&逾放'!T2 -> 呆帳覆蓋率 | AO41: ='銀行_備呆&逾放'!U2 -> 呆帳覆蓋率 | AX41: ='合併財務報表(累)'!V7 -> 每股淨值 (B) | AY41: ='合併財務報表(累)'!W7 -> 15.33 | AZ41: ='合併財務報表(累)'!X7 -> 16.01 | BA41: ='合併財務報表(累)'!Y7 -> 16.73 | BB41: ='合併財務報表(累)'!Z7 -> 17.02 | BD41: ='合併財務報表(單)'!A40 -> 累計影響數 | BE41: ='合併財務報表(單)'!B40 -> 0 | BF41: ='合併財務報表(單)'!C40 -> 0 | BG41: ='合併財務報表(單)'!D40 -> 0 | BH41: ='合併財務報表(單)'!E40 -> 0 | BI41: ='合併財務報表(單)'!F40 -> 0 | BJ41: ='合併財務報表(單)'!G40 -> 0 | BK41: ='合併財務報表(單)'!H40 -> 0 | BL41: ='合併財務報表(單)'!I40 -> 0 | BN41: =金融業與保險業!I4 -> 保費收入 | BO41: =金融業與保險業!J4 -> 10125865 | BP41: =金融業與保險業!K4 -> 13538045 | BQ41: =金融業與保險業!L4 -> 30264276
AK42: ='銀行_備呆&逾放'!Q3 -> 2016-04-29 | AL42: ='銀行_備呆&逾放'!R3 -> 0.22 | AM42: ='銀行_備呆&逾放'!S3 -> 0.28 | AN42: ='銀行_備呆&逾放'!T3 -> 579.4444444 | AO42: ='銀行_備呆&逾放'!U3 -> 477.9628837 | AX42: ='合併財務報表(累)'!V8 -> 每股盈餘（元） | AY42: ='合併財務報表(累)'!W8 -> 0.61 | AZ42: ='合併財務報表(累)'!X8 -> 0.78 | BA42: ='合併財務報表(累)'!Y8 -> 1.62 | BB42: ='合併財務報表(累)'!Z8 -> 1.02 | BD42: ='合併財務報表(單)'!A41 -> 子公司董監酬勞及紅利 | BE42: ='合併財務報表(單)'!B41 -> 0 | BF42: ='合併財務報表(單)'!C41 -> 0 | BG42: ='合併財務報表(單)'!D41 -> 0 | BH42: ='合併財務報表(單)'!E41 -> 0 | BI42: ='合併財務報表(單)'!F41 -> 0 | BJ42: ='合併財務報表(單)'!G41 -> 0 | BK42: ='合併財務報表(單)'!H41 -> 0 | BL42: ='合併財務報表(單)'!I41 -> 0 | BN42: =金融業與保險業!I5 -> 手續費收入 | BO42: =金融業與保險業!J5 -> 38936 | BP42: =金融業與保險業!K5 -> 32370 | BQ42: =金融業與保險業!L5 -> 30289
AK43: ='銀行_備呆&逾放'!Q4 -> 2016-03-31 | AL43: ='銀行_備呆&逾放'!R4 -> 0.2 | AM43: ='銀行_備呆&逾放'!S4 -> 0.26 | AN43: ='銀行_備呆&逾放'!T4 -> 661.7860852 | AO43: ='銀行_備呆&逾放'!U4 -> 510.5539332 | AX43: ='合併財務報表(累)'!V9 -> 普通股每股現金股利(元) | AY43: ='合併財務報表(累)'!W9 -> 0.55 | AZ43: ='合併財務報表(累)'!X9 -> 0.65 | BA43: ='合併財務報表(累)'!Y9 -> 0.64 | BB43: ='合併財務報表(累)'!Z9 -> 0.36 | BD43: ='合併財務報表(單)'!A42 -> 合併總損益 | BE43: ='合併財務報表(單)'!B42 -> 8039431 | BF43: ='合併財務報表(單)'!C42 -> 2084312 | BG43: ='合併財務報表(單)'!D42 -> 2513687 | BH43: ='合併財務報表(單)'!E42 -> 4233104 | BI43: ='合併財務報表(單)'!F42 -> 3857333 | BJ43: ='合併財務報表(單)'!G42 -> 3335909 | BK43: ='合併財務報表(單)'!H42 -> 571129 | BL43: ='合併財務報表(單)'!I42 -> 3512176 | BN43: =金融業與保險業!I6 -> 利息收入 | BO43: =金融業與保險業!J6 -> 2313434 | BP43: =金融業與保險業!K6 -> 2512274 | BQ43: =金融業與保險業!L6 -> 3400981
AK44: ='銀行_備呆&逾放'!Q5 -> 2016-02-26 | AL44: ='銀行_備呆&逾放'!R5 -> 0.2 | AM44: ='銀行_備呆&逾放'!S5 -> 0.26 | AN44: ='銀行_備呆&逾放'!T5 -> 663.4554974 | AO44: ='銀行_備呆&逾放'!U5 -> 510.7901991 | BD44: ='合併財務報表(單)'!A43 -> 本期稅後淨利 (母公司) | BE44: ='合併財務報表(單)'!B43 -> 8114029 | BF44: ='合併財務報表(單)'!C43 -> 2175982 | BG44: ='合併財務報表(單)'!D43 -> 2576657 | BH44: ='合併財務報表(單)'!E43 -> 4107975 | BI44: ='合併財務報表(單)'!F43 -> 3477437 | BJ44: ='合併財務報表(單)'!G43 -> 2838818 | BK44: ='合併財務報表(單)'!H43 -> 390315 | BL44: ='合併財務報表(單)'!I43 -> 3312457 | BN44: =金融業與保險業!I7 -> 營業收入淨額 | BO44: =金融業與保險業!J7 -> 13244110 | BP44: =金融業與保險業!K7 -> 16900944 | BQ44: =金融業與保險業!L7 -> 34044079
AK45: ='銀行_備呆&逾放'!Q6 -> 2016-01-30 | AL45: ='銀行_備呆&逾放'!R6 -> 0.18 | AM45: ='銀行_備呆&逾放'!S6 -> 0.25 | AN45: ='銀行_備呆&逾放'!T6 -> 716.5914221 | AO45: ='銀行_備呆&逾放'!U6 -> 535.8825696 | BD45: ='合併財務報表(單)'!A44 -> 少數股權淨利(損) | BE45: ='合併財務報表(單)'!B44 -> -74598 | BF45: ='合併財務報表(單)'!C44 -> -91670 | BG45: ='合併財務報表(單)'!D44 -> -62970 | BH45: ='合併財務報表(單)'!E44 -> 125129 | BI45: ='合併財務報表(單)'!F44 -> 379896 | BJ45: ='合併財務報表(單)'!G44 -> 497091 | BK45: ='合併財務報表(單)'!H44 -> 180814 | BL45: ='合併財務報表(單)'!I44 -> 199719 | BN45: =金融業與保險業!I8 -> 營業費用 | BO45: =金融業與保險業!J8 -> 839188 | BP45: =金融業與保險業!K8 -> 956350 | BQ45: =金融業與保險業!L8 -> 1269345
AK46: ='銀行_備呆&逾放'!Q7 -> 2015-12-31 | AL46: ='銀行_備呆&逾放'!R7 -> 0.18 | AM46: ='銀行_備呆&逾放'!S7 -> 0.23 | AN46: ='銀行_備呆&逾放'!T7 -> 720.361991 | AO46: ='銀行_備呆&逾放'!U7 -> 555.4319317 | BD46: ='合併財務報表(單)'!A45 -> 每股盈餘（元） | BE46: ='合併財務報表(單)'!B45 -> 0.8 | BF46: ='合併財務報表(單)'!C45 -> 0.21 | BG46: ='合併財務報表(單)'!D45 -> 0.25 | BH46: ='合併財務報表(單)'!E45 -> 0.41 | BI46: ='合併財務報表(單)'!F45 -> 0.33 | BJ46: ='合併財務報表(單)'!G45 -> 0.26 | BK46: ='合併財務報表(單)'!H45 -> 0.04 | BL46: ='合併財務報表(單)'!I45 -> 0.31 | BN46: =金融業與保險業!I9 -> 本期稅後淨利 (母公司) | BO46: =金融業與保險業!J9 -> 130596 | BP46: =金融業與保險業!K9 -> -251600 | BQ46: =金融業與保險業!L9 -> -2263406
D47: 十大股東 | G47: 身份別 | I47: 持股數(張) | J47: 持股率% | K47: 選任持股% | L47: 質押/持股比 | M47: 排名 | AK47: ='銀行_備呆&逾放'!Q8 -> 2015-11-30 | AL47: ='銀行_備呆&逾放'!R8 -> 0.19 | AM47: ='銀行_備呆&逾放'!S8 -> 0.24 | AN47: ='銀行_備呆&逾放'!T8 -> 678.4598214 | AO47: ='銀行_備呆&逾放'!U8 -> 532.9955247 | BD47: ='合併財務報表(單)'!A46 -> 每股盈餘－完全稀釋 | BE47: ='合併財務報表(單)'!B46 -> 0 | BF47: ='合併財務報表(單)'!C46 -> 0 | BG47: ='合併財務報表(單)'!D46 -> 0 | BH47: ='合併財務報表(單)'!E46 -> 0 | BI47: ='合併財務報表(單)'!F46 -> 0 | BJ47: ='合併財務報表(單)'!G46 -> 0 | BK47: ='合併財務報表(單)'!H46 -> 0 | BL47: ='合併財務報表(單)'!I46 -> 0 | BN47: =金融業與保險業!I10 -> 每股盈餘（元） | BO47: =金融業與保險業!J10 -> 0.2 | BP47: =金融業與保險業!K10 -> -0.72 | BQ47: =金融業與保險業!L10 -> -2.79
D48: =IF(OR(十大股東!$H3="",十大股東!$H3="-"),"",十大股東!B3) -> 尊爵投資(股) 方俊龍 | G48: =IF(ISERROR(IF(OR(十大股東!$H3="",十大股東!$H3="-"),"", IF(LEFT(十大股東!C3,3)="大股東",LEFT(十大股東!C3,4)&MID(十大股東!C3,FIND("(",十大股東!C3)+1,7),十大股東!C3))),十大股東!C3,IF(OR(十大股東!$H3="",十大股東!$H3="-"),"", IF(LEFT(十大股東!C3,3)="大股東",LEFT(十大股東!C3,4)&MID(十大股東!C3,FIND("(",十大股東!C3)+1,7),十大股東!C3))) -> 董事 | I48: =IF(OR(十大股東!$H3="",十大股東!$H3="-"),"",十大股東!D3) -> 404221 | J48: =IF(OR(十大股東!$H3="",十大股東!$H3="-"),"",十大股東!E3) -> 3.37 | K48: =IF(OR(十大股東!$H3="",十大股東!$H3="-"),"",十大股東!F3) -> 3.88 | L48: =IF(OR(十大股東!$H3="",十大股東!$H3="-"),"",十大股東!G3) -> 32.12 | M48: =IF(OR(十大股東!$H3="",十大股東!$H3="-"),"",十大股東!H3) -> 1 | AK48: ='銀行_備呆&逾放'!Q9 -> 2015-10-30 | AL48: ='銀行_備呆&逾放'!R9 -> 0.19 | AM48: ='銀行_備呆&逾放'!S9 -> 0.25 | AN48: ='銀行_備呆&逾放'!T9 -> 664.2070485 | AO48: ='銀行_備呆&逾放'!U9 -> 520.7554393 | BD48: ='合併財務報表(單)'!A47 -> 加權平均股本 | BE48: ='合併財務報表(單)'!B47 -> 101410670 | BF48: ='合併財務報表(單)'!C47 -> 101410670 | BG48: ='合併財務報表(單)'!D47 -> 101410670 | BH48: ='合併財務報表(單)'!E47 -> 101410670 | BI48: ='合併財務報表(單)'!F47 -> 104422590 | BJ48: ='合併財務報表(單)'!G47 -> 105334840 | BK48: ='合併財務報表(單)'!H47 -> 105783370 | BL48: ='合併財務報表(單)'!I47 -> 108253050 | BN48: =金融業與保險業!I11 -> 保險業資本適足率(以上) | BO48: =金融業與保險業!J11 -> 150 | BP48: =金融業與保險業!K11 -> 300 | BQ48: =金融業與保險業!L11 -> 410.38
D49: =IF(OR(十大股東!$H4="",十大股東!$H4="-"),"",十大股東!B4) -> 尊爵投資(股) 馬維辰 | G49: =IF(ISERROR(IF(OR(十大股東!$H4="",十大股東!$H4="-"),"", IF(LEFT(十大股東!C4,3)="大股東",LEFT(十大股東!C4,4)&MID(十大股東!C4,FIND("(",十大股東!C4)+1,7),十大股東!C4))),十大股東!C4,IF(OR(十大股東!$H4="",十大股東!$H4="-"),"", IF(LEFT(十大股東!C4,3)="大股東",LEFT(十大股東!C4,4)&MID(十大股東!C4,FIND("(",十大股東!C4)+1,7),十大股東!C4))) -> 董事 | I49: =IF(OR(十大股東!$H4="",十大股東!$H4="-"),"",十大股東!D4) -> 404221 | J49: =IF(OR(十大股東!$H4="",十大股東!$H4="-"),"",十大股東!E4) -> 3.37 | K49: =IF(OR(十大股東!$H4="",十大股東!$H4="-"),"",十大股東!F4) -> 3.88 | L49: =IF(OR(十大股東!$H4="",十大股東!$H4="-"),"",十大股東!G4) -> 32.12 | M49: =IF(OR(十大股東!$H4="",十大股東!$H4="-"),"",十大股東!H4) -> 1 | AK49: ='銀行_備呆&逾放'!Q10 -> 2015-09-30 | AL49: ='銀行_備呆&逾放'!R10 -> 0.19 | AM49: ='銀行_備呆&逾放'!S10 -> 0.25 | AN49: ='銀行_備呆&逾放'!T10 -> 655.2401747 | AO49: ='銀行_備呆&逾放'!U10 -> 509.128689 | BD49: ='合併財務報表(單)'!A48 -> 發放特別股股息 | BE49: ='合併財務報表(單)'!B48 -> 0 | BF49: ='合併財務報表(單)'!C48 -> 0 | BG49: ='合併財務報表(單)'!D48 -> 0 | BH49: ='合併財務報表(單)'!E48 -> 0 | BI49: ='合併財務報表(單)'!F48 -> 0 | BJ49: ='合併財務報表(單)'!G48 -> 0 | BK49: ='合併財務報表(單)'!H48 -> 0 | BL49: ='合併財務報表(單)'!I48 -> 0
D50: =IF(OR(十大股東!$H5="",十大股東!$H5="-"),"",十大股東!B5) -> 渣打梵加德指 渣打梵加德指 | G50: =IF(ISERROR(IF(OR(十大股東!$H5="",十大股東!$H5="-"),"", IF(LEFT(十大股東!C5,3)="大股東",LEFT(十大股東!C5,4)&MID(十大股東!C5,FIND("(",十大股東!C5)+1,7),十大股東!C5))),十大股東!C5,IF(OR(十大股東!$H5="",十大股東!$H5="-"),"", IF(LEFT(十大股東!C5,3)="大股東",LEFT(十大股東!C5,4)&MID(十大股東!C5,FIND("(",十大股東!C5)+1,7),十大股東!C5))) -> 大股東-2015/09 | I50: =IF(OR(十大股東!$H5="",十大股東!$H5="-"),"",十大股東!D5) -> 175771 | J50: =IF(OR(十大股東!$H5="",十大股東!$H5="-"),"",十大股東!E5) -> 1.46 | K50: =IF(OR(十大股東!$H5="",十大股東!$H5="-"),"",十大股東!F5) -> 0 | L50: =IF(OR(十大股東!$H5="",十大股東!$H5="-"),"",十大股東!G5) -> 0 | M50: =IF(OR(十大股東!$H5="",十大股東!$H5="-"),"",十大股東!H5) -> 10 | AK50: ='銀行_備呆&逾放'!Q11 -> 2015-08-31 | AL50: ='銀行_備呆&逾放'!R11 -> 0.19 | AM50: ='銀行_備呆&逾放'!S11 -> 0.25 | AN50: ='銀行_備呆&逾放'!T11 -> 661.6483516 | AO50: ='銀行_備呆&逾放'!U11 -> 502.9437753 | BD50: ='合併財務報表(單)'!A49 -> 稅前淨利(無保留意見) | BE50: ='合併財務報表(單)'!B49 -> 8530134 | BF50: ='合併財務報表(單)'!C49 -> 2507489 | BG50: ='合併財務報表(單)'!D49 -> 2604464 | BH50: ='合併財務報表(單)'!E49 -> 4688980 | BI50: ='合併財務報表(單)'!F49 -> 4074380 | BJ50: ='合併財務報表(單)'!G49 -> 3744480 | BK50: ='合併財務報表(單)'!H49 -> 608713 | BL50: ='合併財務報表(單)'!I49 -> 4077143
D51: =IF(OR(十大股東!$H6="",十大股東!$H6="-"),"",十大股東!B6) -> 元宏投資(股) 元宏投資 | G51: =IF(ISERROR(IF(OR(十大股東!$H6="",十大股東!$H6="-"),"", IF(LEFT(十大股東!C6,3)="大股東",LEFT(十大股東!C6,4)&MID(十大股東!C6,FIND("(",十大股東!C6)+1,7),十大股東!C6))),十大股東!C6,IF(OR(十大股東!$H6="",十大股東!$H6="-"),"", IF(LEFT(十大股東!C6,3)="大股東",LEFT(十大股東!C6,4)&MID(十大股東!C6,FIND("(",十大股東!C6)+1,7),十大股東!C6))) -> 大股東-2015/09 | I51: =IF(OR(十大股東!$H6="",十大股東!$H6="-"),"",十大股東!D6) -> 352374 | J51: =IF(OR(十大股東!$H6="",十大股東!$H6="-"),"",十大股東!E6) -> 2.94 | K51: =IF(OR(十大股東!$H6="",十大股東!$H6="-"),"",十大股東!F6) -> 0 | L51: =IF(OR(十大股東!$H6="",十大股東!$H6="-"),"",十大股東!G6) -> 0 | M51: =IF(OR(十大股東!$H6="",十大股東!$H6="-"),"",十大股東!H6) -> 2 | AK51: ='銀行_備呆&逾放'!Q12 -> 2015-07-31 | AL51: ='銀行_備呆&逾放'!R12 -> 0.19 | AM51: ='銀行_備呆&逾放'!S12 -> 0.25 | AN51: ='銀行_備呆&逾放'!T12 -> 645.9194777 | AO51: ='銀行_備呆&逾放'!U12 -> 505.3215498 | BD51: ='合併財務報表(單)'!A50 -> 稅後淨利(無保留意見) | BE51: ='合併財務報表(單)'!B50 -> 8114029 | BF51: ='合併財務報表(單)'!C50 -> 2175982 | BG51: ='合併財務報表(單)'!D50 -> 2576657 | BH51: ='合併財務報表(單)'!E50 -> 4107975 | BI51: ='合併財務報表(單)'!F50 -> 3477437 | BJ51: ='合併財務報表(單)'!G50 -> 2838818 | BK51: ='合併財務報表(單)'!H50 -> 390315 | BL51: ='合併財務報表(單)'!I50 -> 3312457
D52: =IF(OR(十大股東!$H7="",十大股東!$H7="-"),"",十大股東!B7) -> 元翔投資(股) 元翔投資 | G52: =IF(ISERROR(IF(OR(十大股東!$H7="",十大股東!$H7="-"),"", IF(LEFT(十大股東!C7,3)="大股東",LEFT(十大股東!C7,4)&MID(十大股東!C7,FIND("(",十大股東!C7)+1,7),十大股東!C7))),十大股東!C7,IF(OR(十大股東!$H7="",十大股東!$H7="-"),"", IF(LEFT(十大股東!C7,3)="大股東",LEFT(十大股東!C7,4)&MID(十大股東!C7,FIND("(",十大股東!C7)+1,7),十大股東!C7))) -> 大股東-2015/09 | I52: =IF(OR(十大股東!$H7="",十大股東!$H7="-"),"",十大股東!D7) -> 297159 | J52: =IF(OR(十大股東!$H7="",十大股東!$H7="-"),"",十大股東!E7) -> 2.48 | K52: =IF(OR(十大股東!$H7="",十大股東!$H7="-"),"",十大股東!F7) -> 0 | L52: =IF(OR(十大股東!$H7="",十大股東!$H7="-"),"",十大股東!G7) -> 0 | M52: =IF(OR(十大股東!$H7="",十大股東!$H7="-"),"",十大股東!H7) -> 3 | AK52: ='銀行_備呆&逾放'!Q13 -> 2015-06-30 | AL52: ='銀行_備呆&逾放'!R13 -> 0.2 | AM52: ='銀行_備呆&逾放'!S13 -> 0.25 | AN52: ='銀行_備呆&逾放'!T13 -> 610.3773585 | AO52: ='銀行_備呆&逾放'!U13 -> 501.1375716 | BD52: ='合併財務報表(單)'!A51 -> 每股盈餘－員工分紅費用化 | BE52: ='合併財務報表(單)'!B51 -> 0 | BF52: ='合併財務報表(單)'!C51 -> 0 | BG52: ='合併財務報表(單)'!D51 -> 0 | BH52: ='合併財務報表(單)'!E51 -> 0 | BI52: ='合併財務報表(單)'!F51 -> 0 | BJ52: ='合併財務報表(單)'!G51 -> 0 | BK52: ='合併財務報表(單)'!H51 -> 0 | BL52: ='合併財務報表(單)'!I51 -> 0
D53: =IF(OR(十大股東!$H8="",十大股東!$H8="-"),"",十大股東!B8) -> 裕陽投資(股) 裕陽投資 | G53: =IF(ISERROR(IF(OR(十大股東!$H8="",十大股東!$H8="-"),"", IF(LEFT(十大股東!C8,3)="大股東",LEFT(十大股東!C8,4)&MID(十大股東!C8,FIND("(",十大股東!C8)+1,7),十大股東!C8))),十大股東!C8,IF(OR(十大股東!$H8="",十大股東!$H8="-"),"", IF(LEFT(十大股東!C8,3)="大股東",LEFT(十大股東!C8,4)&MID(十大股東!C8,FIND("(",十大股東!C8)+1,7),十大股東!C8))) -> 大股東-2015/09 | I53: =IF(OR(十大股東!$H8="",十大股東!$H8="-"),"",十大股東!D8) -> 290578 | J53: =IF(OR(十大股東!$H8="",十大股東!$H8="-"),"",十大股東!E8) -> 2.42 | K53: =IF(OR(十大股東!$H8="",十大股東!$H8="-"),"",十大股東!F8) -> 0 | L53: =IF(OR(十大股東!$H8="",十大股東!$H8="-"),"",十大股東!G8) -> 0 | M53: =IF(OR(十大股東!$H8="",十大股東!$H8="-"),"",十大股東!H8) -> 4 | AK53: ='銀行_備呆&逾放'!Q14 -> 2015-05-29 | AL53: ='銀行_備呆&逾放'!R14 -> 0.21 | AM53: ='銀行_備呆&逾放'!S14 -> 0.26 | AN53: ='銀行_備呆&逾放'!T14 -> 587.9132231 | AO53: ='銀行_備呆&逾放'!U14 -> 490.5508292 | BD53: ='合併財務報表(單)'!A52 -> 庫藏股數－母公司 | BE53: ='合併財務報表(單)'!B52 -> 0 | BF53: ='合併財務報表(單)'!C52 -> 0 | BG53: ='合併財務報表(單)'!D52 -> 0 | BH53: ='合併財務報表(單)'!E52 -> 0 | BI53: ='合併財務報表(單)'!F52 -> 0 | BJ53: ='合併財務報表(單)'!G52 -> 0 | BK53: ='合併財務報表(單)'!H52 -> 15621 | BL53: ='合併財務報表(單)'!I52 -> 15621
D54: =IF(OR(十大股東!$H9="",十大股東!$H9="-"),"",十大股東!B9) -> 兆豐管兆豐香 兆豐管兆豐香 | G54: =IF(ISERROR(IF(OR(十大股東!$H9="",十大股東!$H9="-"),"", IF(LEFT(十大股東!C9,3)="大股東",LEFT(十大股東!C9,4)&MID(十大股東!C9,FIND("(",十大股東!C9)+1,7),十大股東!C9))),十大股東!C9,IF(OR(十大股東!$H9="",十大股東!$H9="-"),"", IF(LEFT(十大股東!C9,3)="大股東",LEFT(十大股東!C9,4)&MID(十大股東!C9,FIND("(",十大股東!C9)+1,7),十大股東!C9))) -> 大股東-2015/09 | I54: =IF(OR(十大股東!$H9="",十大股東!$H9="-"),"",十大股東!D9) -> 288310 | J54: =IF(OR(十大股東!$H9="",十大股東!$H9="-"),"",十大股東!E9) -> 2.4 | K54: =IF(OR(十大股東!$H9="",十大股東!$H9="-"),"",十大股東!F9) -> 0 | L54: =IF(OR(十大股東!$H9="",十大股東!$H9="-"),"",十大股東!G9) -> 0 | M54: =IF(OR(十大股東!$H9="",十大股東!$H9="-"),"",十大股東!H9) -> 5 | BD54: ='合併財務報表(單)'!A53 -> 庫藏股數－子公司持有 | BE54: ='合併財務報表(單)'!B53 -> 0 | BF54: ='合併財務報表(單)'!C53 -> 0 | BG54: ='合併財務報表(單)'!D53 -> 0 | BH54: ='合併財務報表(單)'!E53 -> 0 | BI54: ='合併財務報表(單)'!F53 -> 0 | BJ54: ='合併財務報表(單)'!G53 -> 0 | BK54: ='合併財務報表(單)'!H53 -> 0 | BL54: ='合併財務報表(單)'!I53 -> 110254
D55: =IF(OR(十大股東!$H10="",十大股東!$H10="-"),"",十大股東!B10) -> 臺銀(股) 臺銀 | G55: =IF(ISERROR(IF(OR(十大股東!$H10="",十大股東!$H10="-"),"", IF(LEFT(十大股東!C10,3)="大股東",LEFT(十大股東!C10,4)&MID(十大股東!C10,FIND("(",十大股東!C10)+1,7),十大股東!C10))),十大股東!C10,IF(OR(十大股東!$H10="",十大股東!$H10="-"),"", IF(LEFT(十大股東!C10,3)="大股東",LEFT(十大股東!C10,4)&MID(十大股東!C10,FIND("(",十大股東!C10)+1,7),十大股東!C10))) -> 大股東-2015/09 | I55: =IF(OR(十大股東!$H10="",十大股東!$H10="-"),"",十大股東!D10) -> 242813 | J55: =IF(OR(十大股東!$H10="",十大股東!$H10="-"),"",十大股東!E10) -> 2.02 | K55: =IF(OR(十大股東!$H10="",十大股東!$H10="-"),"",十大股東!F10) -> 0 | L55: =IF(OR(十大股東!$H10="",十大股東!$H10="-"),"",十大股東!G10) -> 0 | M55: =IF(OR(十大股東!$H10="",十大股東!$H10="-"),"",十大股東!H10) -> 6 | BD55: ='合併財務報表(單)'!A54 -> 稅前息前淨利 | BE55: ='合併財務報表(單)'!B54 -> 9833138 | BF55: ='合併財務報表(單)'!C54 -> 4568028 | BG55: ='合併財務報表(單)'!D54 -> 4821858 | BH55: ='合併財務報表(單)'!E54 -> 6857101 | BI55: ='合併財務報表(單)'!F54 -> 6347627 | BJ55: ='合併財務報表(單)'!G54 -> 5852188 | BK55: ='合併財務報表(單)'!H54 -> 2852138 | BL55: ='合併財務報表(單)'!I54 -> 6403736
D56: =IF(OR(十大股東!$H11="",十大股東!$H11="-"),"",十大股東!B11) -> 聯達投資(股) 聯達投資 | G56: =IF(ISERROR(IF(OR(十大股東!$H11="",十大股東!$H11="-"),"", IF(LEFT(十大股東!C11,3)="大股東",LEFT(十大股東!C11,4)&MID(十大股東!C11,FIND("(",十大股東!C11)+1,7),十大股東!C11))),十大股東!C11,IF(OR(十大股東!$H11="",十大股東!$H11="-"),"", IF(LEFT(十大股東!C11,3)="大股東",LEFT(十大股東!C11,4)&MID(十大股東!C11,FIND("(",十大股東!C11)+1,7),十大股東!C11))) -> 大股東-2015/09 | I56: =IF(OR(十大股東!$H11="",十大股東!$H11="-"),"",十大股東!D11) -> 237460 | J56: =IF(OR(十大股東!$H11="",十大股東!$H11="-"),"",十大股東!E11) -> 1.98 | K56: =IF(OR(十大股東!$H11="",十大股東!$H11="-"),"",十大股東!F11) -> 0 | L56: =IF(OR(十大股東!$H11="",十大股東!$H11="-"),"",十大股東!G11) -> 0 | M56: =IF(OR(十大股東!$H11="",十大股東!$H11="-"),"",十大股東!H11) -> 7 | BD56: ='合併財務報表(單)'!A55 -> 稅前息前折舊前淨利 | BE56: ='合併財務報表(單)'!B55 -> 10378895 | BF56: ='合併財務報表(單)'!C55 -> 5229483 | BG56: ='合併財務報表(單)'!D55 -> 5458492 | BH56: ='合併財務報表(單)'!E55 -> 7477027 | BI56: ='合併財務報表(單)'!F55 -> 6875287 | BJ56: ='合併財務報表(單)'!G55 -> 6360849 | BK56: ='合併財務報表(單)'!H55 -> 3348015 | BL56: ='合併財務報表(單)'!I55 -> 6889777
D57: =IF(OR(十大股東!$H12="",十大股東!$H12="-"),"",十大股東!B12) -> 花旗台新加坡 花旗台新加坡 | G57: =IF(ISERROR(IF(OR(十大股東!$H12="",十大股東!$H12="-"),"", IF(LEFT(十大股東!C12,3)="大股東",LEFT(十大股東!C12,4)&MID(十大股東!C12,FIND("(",十大股東!C12)+1,7),十大股東!C12))),十大股東!C12,IF(OR(十大股東!$H12="",十大股東!$H12="-"),"", IF(LEFT(十大股東!C12,3)="大股東",LEFT(十大股東!C12,4)&MID(十大股東!C12,FIND("(",十大股東!C12)+1,7),十大股東!C12))) -> 大股東-2015/09 | I57: =IF(OR(十大股東!$H12="",十大股東!$H12="-"),"",十大股東!D12) -> 227905 | J57: =IF(OR(十大股東!$H12="",十大股東!$H12="-"),"",十大股東!E12) -> 1.9 | K57: =IF(OR(十大股東!$H12="",十大股東!$H12="-"),"",十大股東!F12) -> 0 | L57: =IF(OR(十大股東!$H12="",十大股東!$H12="-"),"",十大股東!G12) -> 0 | M57: =IF(OR(十大股東!$H12="",十大股東!$H12="-"),"",十大股東!H12) -> 8 | BD57: ='合併財務報表(單)'!A56 -> 常續性稅後淨利 | BE57: ='合併財務報表(單)'!B56 -> 8039431 | BF57: ='合併財務報表(單)'!C56 -> 2084312 | BG57: ='合併財務報表(單)'!D56 -> 2513687 | BH57: ='合併財務報表(單)'!E56 -> 4233104 | BI57: ='合併財務報表(單)'!F56 -> 3857333 | BJ57: ='合併財務報表(單)'!G56 -> 3335909 | BK57: ='合併財務報表(單)'!H56 -> 571129 | BL57: ='合併財務報表(單)'!I56 -> 3512176
D58: =IF(OR(十大股東!$H13="",十大股東!$H13="-"),"",十大股東!B13) -> 元大託財產戶 元大託財產戶 | G58: =IF(ISERROR(IF(OR(十大股東!$H13="",十大股東!$H13="-"),"", IF(LEFT(十大股東!C13,3)="大股東",LEFT(十大股東!C13,4)&MID(十大股東!C13,FIND("(",十大股東!C13)+1,7),十大股東!C13))),十大股東!C13,IF(OR(十大股東!$H13="",十大股東!$H13="-"),"", IF(LEFT(十大股東!C13,3)="大股東",LEFT(十大股東!C13,4)&MID(十大股東!C13,FIND("(",十大股東!C13)+1,7),十大股東!C13))) -> 大股東-2015/09 | I58: =IF(OR(十大股東!$H13="",十大股東!$H13="-"),"",十大股東!D13) -> 178677 | J58: =IF(OR(十大股東!$H13="",十大股東!$H13="-"),"",十大股東!E13) -> 1.49 | K58: =IF(OR(十大股東!$H13="",十大股東!$H13="-"),"",十大股東!F13) -> 0 | L58: =IF(OR(十大股東!$H13="",十大股東!$H13="-"),"",十大股東!G13) -> 0 | M58: =IF(OR(十大股東!$H13="",十大股東!$H13="-"),"",十大股東!H13) -> 9
D59: =IF(OR(十大股東!$H14="",十大股東!$H14="-"),"",十大股東!B14) ->  | G59: =IF(ISERROR(IF(OR(十大股東!$H14="",十大股東!$H14="-"),"", IF(LEFT(十大股東!C14,3)="大股東",LEFT(十大股東!C14,4)&MID(十大股東!C14,FIND("(",十大股東!C14)+1,7),十大股東!C14))),十大股東!C14,IF(OR(十大股東!$H14="",十大股東!$H14="-"),"", IF(LEFT(十大股東!C14,3)="大股東",LEFT(十大股東!C14,4)&MID(十大股東!C14,FIND("(",十大股東!C14)+1,7),十大股東!C14))) ->  | I59: =IF(OR(十大股東!$H14="",十大股東!$H14="-"),"",十大股東!D14) ->  | J59: =IF(OR(十大股東!$H14="",十大股東!$H14="-"),"",十大股東!E14) ->  | K59: =IF(OR(十大股東!$H14="",十大股東!$H14="-"),"",十大股東!F14) ->  | L59: =IF(OR(十大股東!$H14="",十大股東!$H14="-"),"",十大股東!G14) ->  | M59: =IF(OR(十大股東!$H14="",十大股東!$H14="-"),"",十大股東!H14) -> 
D60: =IF(OR(十大股東!$H15="",十大股東!$H15="-"),"",十大股東!B15) ->  | G60: =IF(ISERROR(IF(OR(十大股東!$H15="",十大股東!$H15="-"),"", IF(LEFT(十大股東!C15,3)="大股東",LEFT(十大股東!C15,4)&MID(十大股東!C15,FIND("(",十大股東!C15)+1,7),十大股東!C15))),十大股東!C15,IF(OR(十大股東!$H15="",十大股東!$H15="-"),"", IF(LEFT(十大股東!C15,3)="大股東",LEFT(十大股東!C15,4)&MID(十大股東!C15,FIND("(",十大股東!C15)+1,7),十大股東!C15))) ->  | I60: =IF(OR(十大股東!$H15="",十大股東!$H15="-"),"",十大股東!D15) ->  | J60: =IF(OR(十大股東!$H15="",十大股東!$H15="-"),"",十大股東!E15) ->  | K60: =IF(OR(十大股東!$H15="",十大股東!$H15="-"),"",十大股東!F15) ->  | L60: =IF(OR(十大股東!$H15="",十大股東!$H15="-"),"",十大股東!G15) ->  | M60: =IF(OR(十大股東!$H15="",十大股東!$H15="-"),"",十大股東!H15) -> 
D61: =IF(OR(十大股東!$H16="",十大股東!$H16="-"),"",十大股東!B16) ->  | G61: =IF(ISERROR(IF(OR(十大股東!$H16="",十大股東!$H16="-"),"", IF(LEFT(十大股東!C16,3)="大股東",LEFT(十大股東!C16,4)&MID(十大股東!C16,FIND("(",十大股東!C16)+1,7),十大股東!C16))),十大股東!C16,IF(OR(十大股東!$H16="",十大股東!$H16="-"),"", IF(LEFT(十大股東!C16,3)="大股東",LEFT(十大股東!C16,4)&MID(十大股東!C16,FIND("(",十大股東!C16)+1,7),十大股東!C16))) ->  | I61: =IF(OR(十大股東!$H16="",十大股東!$H16="-"),"",十大股東!D16) ->  | J61: =IF(OR(十大股東!$H16="",十大股東!$H16="-"),"",十大股東!E16) ->  | K61: =IF(OR(十大股東!$H16="",十大股東!$H16="-"),"",十大股東!F16) ->  | L61: =IF(OR(十大股東!$H16="",十大股東!$H16="-"),"",十大股東!G16) ->  | M61: =IF(OR(十大股東!$H16="",十大股東!$H16="-"),"",十大股東!H16) -> 
D62: =IF(OR(十大股東!$H17="",十大股東!$H17="-"),"",十大股東!B17) ->  | G62: =IF(ISERROR(IF(OR(十大股東!$H17="",十大股東!$H17="-"),"", IF(LEFT(十大股東!C17,3)="大股東",LEFT(十大股東!C17,4)&MID(十大股東!C17,FIND("(",十大股東!C17)+1,7),十大股東!C17))),十大股東!C17,IF(OR(十大股東!$H17="",十大股東!$H17="-"),"", IF(LEFT(十大股東!C17,3)="大股東",LEFT(十大股東!C17,4)&MID(十大股東!C17,FIND("(",十大股東!C17)+1,7),十大股東!C17))) ->  | I62: =IF(OR(十大股東!$H17="",十大股東!$H17="-"),"",十大股東!D17) ->  | J62: =IF(OR(十大股東!$H17="",十大股東!$H17="-"),"",十大股東!E17) ->  | K62: =IF(OR(十大股東!$H17="",十大股東!$H17="-"),"",十大股東!F17) ->  | L62: =IF(OR(十大股東!$H17="",十大股東!$H17="-"),"",十大股東!G17) ->  | M62: =IF(OR(十大股東!$H17="",十大股東!$H17="-"),"",十大股東!H17) -> 
D63: =IF(OR(十大股東!$H18="",十大股東!$H18="-"),"",十大股東!B18) ->  | G63: =IF(ISERROR(IF(OR(十大股東!$H18="",十大股東!$H18="-"),"", IF(LEFT(十大股東!C18,3)="大股東",LEFT(十大股東!C18,4)&MID(十大股東!C18,FIND("(",十大股東!C18)+1,7),十大股東!C18))),十大股東!C18,IF(OR(十大股東!$H18="",十大股東!$H18="-"),"", IF(LEFT(十大股東!C18,3)="大股東",LEFT(十大股東!C18,4)&MID(十大股東!C18,FIND("(",十大股東!C18)+1,7),十大股東!C18))) ->  | I63: =IF(OR(十大股東!$H18="",十大股東!$H18="-"),"",十大股東!D18) ->  | J63: =IF(OR(十大股東!$H18="",十大股東!$H18="-"),"",十大股東!E18) ->  | K63: =IF(OR(十大股東!$H18="",十大股東!$H18="-"),"",十大股東!F18) ->  | L63: =IF(OR(十大股東!$H18="",十大股東!$H18="-"),"",十大股東!G18) ->  | M63: =IF(OR(十大股東!$H18="",十大股東!$H18="-"),"",十大股東!H18) -> 
D64: =IF(OR(十大股東!$H19="",十大股東!$H19="-"),"",十大股東!B19) ->  | G64: =IF(ISERROR(IF(OR(十大股東!$H19="",十大股東!$H19="-"),"", IF(LEFT(十大股東!C19,3)="大股東",LEFT(十大股東!C19,4)&MID(十大股東!C19,FIND("(",十大股東!C19)+1,7),十大股東!C19))),十大股東!C19,IF(OR(十大股東!$H19="",十大股東!$H19="-"),"", IF(LEFT(十大股東!C19,3)="大股東",LEFT(十大股東!C19,4)&MID(十大股東!C19,FIND("(",十大股東!C19)+1,7),十大股東!C19))) ->  | I64: =IF(OR(十大股東!$H19="",十大股東!$H19="-"),"",十大股東!D19) ->  | J64: =IF(OR(十大股東!$H19="",十大股東!$H19="-"),"",十大股東!E19) ->  | K64: =IF(OR(十大股東!$H19="",十大股東!$H19="-"),"",十大股東!F19) ->  | L64: =IF(OR(十大股東!$H19="",十大股東!$H19="-"),"",十大股東!G19) ->  | M64: =IF(OR(十大股東!$H19="",十大股東!$H19="-"),"",十大股東!H19) -> 

Sheet 基本資料
A1: 2885 元大金
A2: 上市別 | B2: 發言人 | C2: 實收資本額(元) | D2: 上市日期 | E2: 上櫃日期 | F2: 興櫃日期 | G2: 電話 | H2: 公司地址 | I2: TSE新產業名 | J2: 主要產品比重 | K2: 員工人數
A3: TSE | B3: 陳修偉(資深副總經理) | C3: 120986477530 | D3: 2002-02-04 | G3: 02-27811999 | H3: 台北市松山區敦化南路一段66號4 樓、10樓、12樓及13樓 | I3: M2800 金融業 | J3: 2014/12:淨利息收益(24.3%),手續費收入(23.3%),保險業務淨收益(16.5%) | K3: 15295

Sheet 法人動向
A1: 2885 元大金
A2: 年月日 | B2: 外資買賣超日數 | C2: 投信買賣超日數 | D2: 自營買賣超日數 | E2: 合計買賣超(張)
A3: 2016-06-16 | B3: -4 | C3: 1 | D3: -1 | E3: -17421
A4: 2016-06-15 | B4: -3 | D4: 2 | E4: -8216
A5: 2016-06-14 | B5: -2 | D5: 1 | E5: -7065
A6: 2016-06-13 | B6: -1 | D6: -1 | E6: -37678
A7: 2016-06-08 | B7: 1 | C7: 1 | D7: 2 | E7: 1389
A8: 2016-06-07 | B8: -1 | D8: 1 | E8: -604
A9: 2016-06-06 | B9: 2 | D9: -1 | E9: 3493
A10: 2016-06-04 | B10: 1 | D10: 2 | E10: 394
A11: 2016-06-03 | B11: -1 | C11: 3 | D11: 1 | E11: -33708
A12: 2016-06-02 | B12: 5 | C12: 2 | D12: -1 | E12: 236474
A13: 2016-06-01 | B13: 4 | C13: 1 | D13: 2 | E13: 6650
A14: 2016-05-31 | B14: 3 | C14: -1 | D14: 1 | E14: 9387
A15: 2016-05-30 | B15: 2 | D15: -1 | E15: 7729
A16: 2016-05-27 | B16: 1 | D16: 2 | E16: 6586
A17: 2016-05-26 | B17: -1 | C17: -1 | D17: 1 | E17: -1400
A18: 2016-05-25 | B18: 1 | D18: -2 | E18: 1962
A19: 2016-05-24 | B19: -1 | D19: -1 | E19: -1278
A20: 2016-05-23 | B20: 1 | D20: 1 | E20: 6248
A21: 2016-05-20 | B21: -17 | D21: -1 | E21: -1635
A22: 2016-05-19 | B22: -16 | D22: 3 | E22: -3210
A23: 2016-05-18 | B23: -15 | D23: 2 | E23: -15108
A24: 2016-05-17 | B24: -14 | D24: 1 | E24: -16259
A25: 2016-05-16 | B25: -13 | D25: -1 | E25: -11594

Sheet 股息股利
A1: 2885 元大金
A2: 股東會年度 | B2: 股東會日期 | C2: 現金股利(元) | D2: 無償配股合計(元) | E2: 除權日(配股) | F2: 除息日
A3: 2015-12-31 | B3: 2016-06-16 | C3: 0.361 | D3: 0
A4: 2014-12-31 | B4: 2015-06-02 | C4: 0.617839 | D4: 0.26229 | E4: 2015-08-13 | F4: 2015-07-16
A5: 2013-12-31 | B5: 2014-05-27 | C5: 0.65 | D5: 0.25 | E5: 2014-08-20 | F5: 2014-06-26
A6: 2012-12-28 | B6: 2013-05-31 | C6: 0.55 | D6: 0 | F6: 2013-07-23
A7: 2011-12-30 | B7: 2012-06-21 | C7: 0.2 | D7: 0 | F7: 2012-07-25

Sheet 新聞
A1: 2885 元大金
A2: 年月 | B2: 則次 | C2: 日期 | D2: 新聞標題
A3: 2016-06-30 | B3: 1 | C3: 2016-06-08 | D3: 元大金 5月份營收計 5,886,594千元, 比去年同期成長 9.53 %, 累計105 年 1月至 5月月營收計 27,835,295千元, 比去年同期成長 14.30 %。
A4: 2016-06-30 | B4: 2 | C4: 2016-06-06 | D4: 元大金財務公告未經會計師核閱數， 累計 105/01 至 105 /05稅後盈餘 551,000萬元，每股稅後盈餘 .46元。
A5: 2016-06-30 | B5: 3 | C5: 2016-06-06 | D5: 元大金財務公告未經會計師核閱數， 105/05 合併稅前盈餘 141,618萬元，累計 105/01 至 105 /05合併稅前盈餘 675,269萬元，比去年同期衰退 6.61%。 累計 105/01 至 105 /05稅後盈餘 551,000萬元，每股稅後盈餘 .46元。
A6: 2016-06-30 | B6: 4 | C6: 2016-06-03 | D6: 凱雷釋股變現逾29億元 元大金爆33.2萬張史上最大量
A7: 2016-06-30 | B7: 5 | C7: 2016-06-01 | D7: 元大金財務公告累計 105/01 至 105 /03稅前盈餘 330,096萬元，比去年同期衰退 18.51%。 累計 105/01 至 105 /03稅後盈餘 331,246萬元，每股稅前盈餘 .30元，每股稅後盈餘 .31元。

Sheet 圖-籌碼分佈
A1: 2885 元大金 | E1: 籌碼分布圖
A2: Data Field | B2: 2016-06-16 | C2: 2016-06-15 | E2: 持股 | F2: 比例
A3: 外資總持股率％ | B3: 29.91 | C3: 30.07 | E3: 外資 | F3: =IF(B3="",C3,B3) -> 29.91
A4: 投信持股率％ | B4: 0.58 | C4: 0.58 | E4: 投信 | F4: =IF(B4="",C4,B4) -> 0.58
A5: 自營持股率％ | B5: 0 | C5: 0 | E5: 自營 | F5: =IF(B5="",C5,B5) -> 0
A6: 董監持股％ | B6: 4.13 | C6: 4.07 | E6: 董監 | F6: =IF(B6="",C6,B6) -> 4.13
E7: 其他 | F7: =100-SUM(F3:F6) -> 65.38

Sheet 累積報酬率
A1: 2885 元大金 | C1: Y9999 加權指數 | E1: =A1 -> 2885 元大金 | F1: =C1 -> Y9999 加權指數 | G1: =A1 -> 2885 元大金 | H1: =C1 -> Y9999 加權指數
A2: 年月日 | B2: 日報酬率 % | C2: 年月日 | D2: 日報酬率 % | E2: 計算過程 | F2: 計算過程 | G2: 累計報酬率 | H2: 累計報酬率
A3: 2015-06-10 | B3: 2.4096 | C3: 2015-06-10 | D3: 1.16 | E3: =1+B3/100 -> 1.024096 | F3: =1+D3/100 -> 1.0116 | G3: 0 | H3: 0
A4: 2015-06-11 | B4: -0.2941 | C4: 2015-06-11 | D4: 0.0429 | E4: =1+B4/100 -> 0.997059 | F4: =1+D4/100 -> 1.000429 | G4: =PRODUCT($E$4:E4)-1 -> -0.002941 | H4: =PRODUCT($F$4:F4)-1 -> 0.000429
A5: 2015-06-12 | B5: 0 | C5: 2015-06-12 | D5: -0.006 | E5: 1 | F5: 0.99994 | G5: =PRODUCT($E$4:E5)-1 -> -0.002941 | H5: =PRODUCT($F$4:F5)-1 -> 0.00036897426
A6: 2015-06-15 | B6: -1.1799 | C6: 2015-06-15 | D6: -0.4564 | E6: 0.988201 | F6: 0.995436 | G6: =PRODUCT($E$4:E6)-1 -> -0.01470529914 | H6: =PRODUCT($F$4:F6)-1 -> -0.004196709739
A7: 2015-06-16 | B7: 0.597 | C7: 2015-06-16 | D7: -0.5043 | E7: 1.00597 | F7: 0.994957 | G7: =PRODUCT($E$4:E7)-1 -> -0.008823089777 | H7: =PRODUCT($F$4:F7)-1 -> -0.009218545731
A8: 2015-06-17 | B8: -0.2967 | C8: 2015-06-17 | D8: -0.2491 | E8: 0.997033 | F8: 0.997509 | G8: =PRODUCT($E$4:E8)-1 -> -0.01176391167 | H8: =PRODUCT($F$4:F8)-1 -> -0.01168658233
A9: 2015-06-18 | B9: 0.2976 | C9: 2015-06-18 | D9: 0.3106 | E9: 1.002976 | F9: 1.003106 | G9: =PRODUCT($E$4:E9)-1 -> -0.008822921071 | H9: =PRODUCT($F$4:F9)-1 -> -0.008616880859
A10: 2015-06-22 | B10: 0.2967 | C10: 2015-06-22 | D10: 1.3386 | E10: 1.002967 | F10: 1.013386 | G10: =PRODUCT($E$4:E10)-1 -> -0.005882098677 | H10: =PRODUCT($F$4:F10)-1 -> 0.004653773574
A11: 2015-06-23 | B11: 0.5917 | C11: 2015-06-23 | D11: 0.5285 | E11: 1.005917 | F11: 1.005285 | G11: =PRODUCT($E$4:E11)-1 -> 9.694467673e-08 | H11: =PRODUCT($F$4:F11)-1 -> 0.009963368768
A12: 2015-06-24 | B12: -1.1765 | C12: 2015-06-24 | D12: 0.0657 | E12: 0.988235 | F12: 1.000657 | G12: =PRODUCT($E$4:E12)-1 -> -0.0117649042 | H12: =PRODUCT($F$4:F12)-1 -> 0.0106269147
A13: 2015-06-25 | B13: 1.7857 | C13: 2015-06-25 | D13: 0.841 | E13: 1.017857 | F13: 1.00841 | G13: =PRODUCT($E$4:E13)-1 -> 0.00588200991 | H13: =PRODUCT($F$4:F13)-1 -> 0.01912628705
A14: 2015-06-26 | B14: 0.2924 | C14: 2015-06-26 | D14: -0.1453 | E14: 1.002924 | F14: 0.998547 | G14: =PRODUCT($E$4:E14)-1 -> 0.008823208907 | H14: =PRODUCT($F$4:F14)-1 -> 0.01764549656
A15: 2015-06-29 | B15: -4.0816 | C15: 2015-06-29 | D15: -2.3933 | E15: 0.959184 | F15: 0.976067 | G15: =PRODUCT($E$4:E15)-1 -> -0.03235291919 | H15: =PRODUCT($F$4:F15)-1 -> -0.006709813111
A16: 2015-06-30 | B16: 1.5198 | C16: 2015-06-30 | D16: 0.9411 | E16: 1.015198 | F16: 1.009411 | G16: =PRODUCT($E$4:E16)-1 -> -0.01764661885 | H16: =PRODUCT($F$4:F16)-1 -> 0.002638040838
A17: 2015-07-01 | B17: 0.5988 | C17: 2015-07-01 | D17: 0.56 | E17: 1.005988 | F17: 1.0056 | G17: =PRODUCT($E$4:E17)-1 -> -0.01176428681 | H17: =PRODUCT($F$4:F17)-1 -> 0.008252813867
A18: 2015-07-02 | B18: 1.7857 | C18: 2015-07-02 | D18: 0.0428 | E18: 1.017857 | F18: 1.000428 | G18: =PRODUCT($E$4:E18)-1 -> 0.005882638323 | H18: =PRODUCT($F$4:F18)-1 -> 0.008684346071
A19: 2015-07-03 | B19: -1.462 | C19: 2015-07-03 | D19: -0.224 | E19: 0.98538 | F19: 0.99776 | G19: =PRODUCT($E$4:E19)-1 -> -0.008823365849 | H19: =PRODUCT($F$4:F19)-1 -> 0.006424893136
A20: 2015-07-06 | B20: -2.3739 | C20: 2015-07-06 | D20: -1.0928 | E20: 0.976261 | F20: 0.989072 | G20: =PRODUCT($E$4:E20)-1 -> -0.03235290797 | H20: =PRODUCT($F$4:F20)-1 -> -0.004573318096
A21: 2015-07-07 | B21: 2.1277 | C21: 2015-07-07 | D21: -0.0627 | E21: 1.021277 | F21: 0.999373 | G21: =PRODUCT($E$4:E21)-1 -> -0.01176428079 | H21: =PRODUCT($F$4:F21)-1 -> -0.005197450626
A22: 2015-07-08 | B22: -5.6548 | C22: 2015-07-08 | D22: -2.9627 | E22: 0.943452 | F22: 0.970373 | G22: =PRODUCT($E$4:E22)-1 -> -0.06764703424 | H22: =PRODUCT($F$4:F22)-1 -> -0.03467046576
A23: 2015-07-09 | B23: -3.7855 | C23: 2015-07-09 | D23: -0.6905 | E23: 0.962145 | F23: 0.993095 | G23: =PRODUCT($E$4:E23)-1 -> -0.1029412558 | H23: =PRODUCT($F$4:F23)-1 -> -0.04133606619
A24: 2015-07-13 | B24: 2.2951 | C24: 2015-07-13 | D24: 1.3438 | E24: 1.022951 | F24: 1.013438 | G24: =PRODUCT($E$4:E24)-1 -> -0.08235286052 | H24: =PRODUCT($F$4:F24)-1 -> -0.02845354025
A25: 2015-07-14 | B25: 2.2436 | C25: 2015-07-14 | D25: 0.0868 | E25: 1.022436 | F25: 1.000868 | G25: =PRODUCT($E$4:E25)-1 -> -0.0617645293 | H25: =PRODUCT($F$4:F25)-1 -> -0.02761023792
A26: 2015-07-15 | B26: -0.3135 | C26: 2015-07-15 | D26: 0.1376 | E26: 0.996865 | F26: 1.001376 | G26: =PRODUCT($E$4:E26)-1 -> -0.0647058975 | H26: =PRODUCT($F$4:F26)-1 -> -0.02627222961
A27: 2015-07-16 | B27: 1.0556 | C27: 2015-07-16 | D27: -0.1324 | E27: 1.010556 | F27: 0.998676 | G27: =PRODUCT($E$4:E27)-1 -> -0.05483293295 | H27: =PRODUCT($F$4:F27)-1 -> -0.02756144518
A28: 2015-07-17 | B28: 0.3236 | C28: 2015-07-17 | D28: 0.0417 | E28: 1.003236 | F28: 1.000417 | G28: =PRODUCT($E$4:E28)-1 -> -0.05177437232 | H28: =PRODUCT($F$4:F28)-1 -> -0.0271559383
A29: 2015-07-20 | B29: 0 | C29: 2015-07-20 | D29: -0.7847 | E29: 1 | F29: 0.992153 | G29: =PRODUCT($E$4:E29)-1 -> -0.05177437232 | H29: =PRODUCT($F$4:F29)-1 -> -0.03478984565
A30: 2015-07-21 | B30: -0.6452 | C30: 2015-07-21 | D30: 0.345 | E30: 0.993548 | F30: 1.00345 | G30: =PRODUCT($E$4:E30)-1 -> -0.05789232407 | H30: =PRODUCT($F$4:F30)-1 -> -0.03145987062
A31: 2015-07-22 | B31: 0.3247 | C31: 2015-07-22 | D31: -0.9689 | E31: 1.003247 | F31: 0.990311 | G31: =PRODUCT($E$4:E31)-1 -> -0.05483330045 | H31: =PRODUCT($F$4:F31)-1 -> -0.04084405593
A32: 2015-07-23 | B32: -0.6472 | C32: 2015-07-23 | D32: -1.4305 | E32: 0.993528 | F32: 0.985695 | G32: =PRODUCT($E$4:E32)-1 -> -0.06095041933 | H32: =PRODUCT($F$4:F32)-1 -> -0.05456478171
A33: 2015-07-24 | B33: 0.3257 | C33: 2015-07-24 | D33: -0.2646 | E33: 1.003257 | F33: 0.997354 | G33: =PRODUCT($E$4:E33)-1 -> -0.05789193485 | H33: =PRODUCT($F$4:F33)-1 -> -0.0570664033
A34: 2015-07-27 | B34: -4.2208 | C34: 2015-07-27 | D34: -2.4086 | E34: 0.957792 | F34: 0.975914 | G34: =PRODUCT($E$4:E34)-1 -> -0.09765643206 | H34: =PRODUCT($F$4:F34)-1 -> -0.07977790191
A35: 2015-07-28 | B35: 0 | C35: 2015-07-28 | D35: 0.3016 | E35: 1 | F35: 1.003016 | G35: =PRODUCT($E$4:E35)-1 -> -0.09765643206 | H35: =PRODUCT($F$4:F35)-1 -> -0.07700251206
A36: 2015-07-29 | B36: 1.0169 | C36: 2015-07-29 | D36: -0.2215 | E36: 1.010169 | F36: 0.997785 | G36: =PRODUCT($E$4:E36)-1 -> -0.08848050032 | H36: =PRODUCT($F$4:F36)-1 -> -0.0790469515
A37: 2015-07-30 | B37: 1.3423 | C37: 2015-07-30 | D37: 1.0277 | E37: 1.013423 | F37: 1.010277 | G37: =PRODUCT($E$4:E37)-1 -> -0.07624517407 | H37: =PRODUCT($F$4:F37)-1 -> -0.06958231702
A38: 2015-07-31 | B38: -0.6623 | C38: 2015-07-31 | D38: 0.1601 | E38: 0.993377 | F38: 1.001601 | G38: =PRODUCT($E$4:E38)-1 -> -0.08236320228 | H38: =PRODUCT($F$4:F38)-1 -> -0.06809271831
A39: 2015-08-03 | B39: -1.3333 | C39: 2015-08-03 | D39: -1.6264 | E39: 0.986667 | F39: 0.983736 | G39: =PRODUCT($E$4:E39)-1 -> -0.09459805371 | H39: =PRODUCT($F$4:F39)-1 -> -0.08324925834
A40: 2015-08-04 | B40: 1.0135 | C40: 2015-08-04 | D40: -0.159 | E40: 1.010135 | F40: 0.99841 | G40: =PRODUCT($E$4:E40)-1 -> -0.08542180498 | H40: =PRODUCT($F$4:F40)-1 -> -0.08470689202
A41: 2015-08-05 | B41: -0.3344 | C41: 2015-08-05 | D41: 0.3691 | E41: 0.996656 | F41: 1.003691 | G41: =PRODUCT($E$4:E41)-1 -> -0.08848015447 | H41: =PRODUCT($F$4:F41)-1 -> -0.08132854515
A42: 2015-08-06 | B42: -1.3423 | C42: 2015-08-06 | D42: -1.0853 | E42: 0.986577 | F42: 0.989147 | G42: =PRODUCT($E$4:E42)-1 -> -0.1007154854 | H42: =PRODUCT($F$4:F42)-1 -> -0.09129888645
A43: 2015-08-07 | B43: -1.0204 | C43: 2015-08-07 | D43: -0.086 | E43: 0.989796 | F43: 0.99914 | G43: =PRODUCT($E$4:E43)-1 -> -0.1098917845 | H43: =PRODUCT($F$4:F43)-1 -> -0.09208036941
A44: 2015-08-10 | B44: -0.6873 | C44: 2015-08-10 | D44: 0.2908 | E44: 0.993127 | F44: 1.002908 | G44: =PRODUCT($E$4:E44)-1 -> -0.1160094983 | H44: =PRODUCT($F$4:F44)-1 -> -0.08944013913
A45: 2015-08-11 | B45: -0.346 | C45: 2015-08-11 | D45: -0.8586 | E45: 0.99654 | F45: 0.991414 | G45: =PRODUCT($E$4:E45)-1 -> -0.1190681054 | H45: =PRODUCT($F$4:F45)-1 -> -0.09725820609
A46: 2015-08-12 | B46: -3.4722 | C46: 2015-08-12 | D46: -1.3195 | E46: 0.965278 | F46: 0.986805 | G46: =PRODUCT($E$4:E46)-1 -> -0.1496558227 | H46: =PRODUCT($F$4:F46)-1 -> -0.1091698841
A47: 2015-08-13 | B47: 0.036 | C47: 2015-08-13 | D47: 0.3424 | E47: 1.00036 | F47: 1.003424 | G47: =PRODUCT($E$4:E47)-1 -> -0.1493496988 | H47: =PRODUCT($F$4:F47)-1 -> -0.1061196817
A48: 2015-08-14 | B48: 5.9041 | C48: 2015-08-14 | D48: -0.0734 | E48: 1.059041 | F48: 0.999266 | G48: =PRODUCT($E$4:E48)-1 -> -0.09912645435 | H48: =PRODUCT($F$4:F48)-1 -> -0.1067757899
A49: 2015-08-17 | B49: -3.8328 | C49: 2015-08-17 | D49: -1.1103 | E49: 0.961672 | F49: 0.988897 | G49: =PRODUCT($E$4:E49)-1 -> -0.1336551356 | H49: =PRODUCT($F$4:F49)-1 -> -0.1166932583
A50: 2015-08-18 | B50: -2.1739 | C50: 2015-08-18 | D50: -0.4407 | E50: 0.978261 | F50: 0.995593 | G50: =PRODUCT($E$4:E50)-1 -> -0.1524886066 | H50: =PRODUCT($F$4:F50)-1 -> -0.1205859911
A51: 2015-08-19 | B51: -3.7037 | C51: 2015-08-19 | D51: -1.9002 | E51: 0.962963 | F51: 0.980998 | G51: =PRODUCT($E$4:E51)-1 -> -0.1838778861 | H51: =PRODUCT($F$4:F51)-1 -> -0.1372966161
A52: 2015-08-20 | B52: 0.7692 | C52: 2015-08-20 | D52: 0.0994 | E52: 1.007692 | F52: 1.000994 | G52: =PRODUCT($E$4:E52)-1 -> -0.1776002748 | H52: =PRODUCT($F$4:F52)-1 -> -0.1364390889
A53: 2015-08-21 | B53: -3.0534 | C53: 2015-08-21 | D53: -3.0249 | E53: 0.969466 | F53: 0.969751 | G53: =PRODUCT($E$4:E53)-1 -> -0.202711428 | H53: =PRODUCT($F$4:F53)-1 -> -0.1625609429
A54: 2015-08-24 | B54: -5.5118 | C54: 2015-08-24 | D54: -4.8361 | E54: 0.944882 | F54: 0.951639 | G54: =PRODUCT($E$4:E54)-1 -> -0.2466563795 | H54: =PRODUCT($F$4:F54)-1 -> -0.2030603332
A55: 2015-08-25 | B55: 3.75 | C55: 2015-08-25 | D55: 3.5801 | E55: 1.0375 | F55: 1.035801 | G55: =PRODUCT($E$4:E55)-1 -> -0.2184059937 | H55: =PRODUCT($F$4:F55)-1 -> -0.1745290962
A56: 2015-08-26 | B56: 1.6064 | C56: 2015-08-26 | D56: 0.5205 | E56: 1.016064 | F56: 1.005205 | G56: =PRODUCT($E$4:E56)-1 -> -0.2058504676 | H56: =PRODUCT($F$4:F56)-1 -> -0.1702325201
A57: 2015-08-27 | B57: 0.7905 | C57: 2015-08-27 | D57: 1.4122 | E57: 1.007905 | F57: 1.014122 | G57: =PRODUCT($E$4:E57)-1 -> -0.1995727156 | H57: =PRODUCT($F$4:F57)-1 -> -0.1585145438
A58: 2015-08-28 | B58: 1.9608 | C58: 2015-08-28 | D58: 2.4874 | E58: 1.019608 | F58: 1.024874 | G58: =PRODUCT($E$4:E58)-1 -> -0.1838779374 | H58: =PRODUCT($F$4:F58)-1 -> -0.1375834345
A59: 2015-08-31 | B59: 0.3846 | C59: 2015-08-31 | D59: 1.9421 | E59: 1.003846 | F59: 1.019421 | G59: =PRODUCT($E$4:E59)-1 -> -0.1807391319 | H59: =PRODUCT($F$4:F59)-1 -> -0.1208344424
A60: 2015-09-01 | B60: -0.3831 | C60: 2015-09-01 | D60: -1.9249 | E60: 0.996169 | F60: 0.980751 | G60: =PRODUCT($E$4:E60)-1 -> -0.1838777203 | H60: =PRODUCT($F$4:F60)-1 -> -0.1377575002
A61: 2015-09-02 | B61: 0.3846 | C61: 2015-09-02 | D61: 0.2211 | E61: 1.003846 | F61: 1.002211 | G61: =PRODUCT($E$4:E61)-1 -> -0.180738914 | H61: =PRODUCT($F$4:F61)-1 -> -0.1358510821
A62: 2015-09-03 | B62: -1.5326 | C62: 2015-09-03 | D62: 0.7549 | E62: 0.984674 | F62: 1.007549 | G62: =PRODUCT($E$4:E62)-1 -> -0.1932949094 | H62: =PRODUCT($F$4:F62)-1 -> -0.1293276219
A63: 2015-09-04 | B63: -0.3891 | C63: 2015-09-04 | D63: -1.1777 | E63: 0.996109 | F63: 0.988223 | G63: =PRODUCT($E$4:E63)-1 -> -0.1964337989 | H63: =PRODUCT($F$4:F63)-1 -> -0.1395815305
A64: 2015-09-07 | B64: 0.3906 | C64: 2015-09-07 | D64: -0.1755 | E64: 1.003906 | F64: 0.998245 | G64: =PRODUCT($E$4:E64)-1 -> -0.1932950694 | H64: =PRODUCT($F$4:F64)-1 -> -0.1410915649
A65: 2015-09-08 | B65: 0 | C65: 2015-09-08 | D65: 0.1871 | E65: 1 | F65: 1.001871 | G65: =PRODUCT($E$4:E65)-1 -> -0.1932950694 | H65: =PRODUCT($F$4:F65)-1 -> -0.1394845472
A66: 2015-09-09 | B66: 4.2802 | C66: 2015-09-09 | D66: 3.5671 | E66: 1.042802 | F66: 1.035671 | G66: =PRODUCT($E$4:E66)-1 -> -0.1587664849 | H66: =PRODUCT($F$4:F66)-1 -> -0.1087891005
A67: 2015-09-10 | B67: -0.3731 | C67: 2015-09-10 | D67: -0.2201 | E67: 0.996269 | F67: 0.997799 | G67: =PRODUCT($E$4:E67)-1 -> -0.1619051272 | H67: =PRODUCT($F$4:F67)-1 -> -0.1107506557
A68: 2015-09-11 | B68: -0.3745 | C68: 2015-09-11 | D68: 0.4492 | E68: =1+B68/100 -> 0.996255 | F68: =1+D68/100 -> 1.004492 | G68: =PRODUCT($E$4:E68)-1 -> -0.1650437925 | H68: =PRODUCT($F$4:F68)-1 -> -0.1067561476
A69: 2015-09-14 | B69: 0 | C69: 2015-09-14 | D69: 0.0177 | E69: 1 | F69: 1.000177 | G69: =PRODUCT($E$4:E69)-1 -> -0.1650437925 | H69: =PRODUCT($F$4:F69)-1 -> -0.1065980435
A70: 2015-09-15 | B70: -1.8797 | C70: 2015-09-15 | D70: -0.5694 | E70: 0.981203 | F70: 0.994306 | G70: =PRODUCT($E$4:E70)-1 -> -0.1807384643 | H70: =PRODUCT($F$4:F70)-1 -> -0.1116850742
A71: 2015-09-16 | B71: 0 | C71: 2015-09-16 | D71: 0.8874 | E71: 1 | F71: 1.008874 | G71: =PRODUCT($E$4:E71)-1 -> -0.1807384643 | H71: =PRODUCT($F$4:F71)-1 -> -0.1038021676
A72: 2015-09-17 | B72: 1.5326 | C72: 2015-09-17 | D72: 1.3465 | E72: 1.015326 | F72: 1.013465 | G72: =PRODUCT($E$4:E72)-1 -> -0.168182462 | H72: =PRODUCT($F$4:F72)-1 -> -0.09173486374
A73: 2015-09-18 | B73: -0.3774 | C73: 2015-09-18 | D73: 0.197 | E73: 0.996226 | F73: 1.00197 | G73: =PRODUCT($E$4:E73)-1 -> -0.1713217414 | H73: =PRODUCT($F$4:F73)-1 -> -0.08994558142
A74: 2015-09-21 | B74: -3.0303 | C74: 2015-09-21 | D74: -1.8329 | E74: 0.969697 | F74: 0.981671 | G74: =PRODUCT($E$4:E74)-1 -> -0.1964331787 | H74: =PRODUCT($F$4:F74)-1 -> -0.1066259689
A75: 2015-09-22 | B75: 0 | C75: 2015-09-22 | D75: 0.7088 | E75: 1 | F75: 1.007088 | G75: =PRODUCT($E$4:E75)-1 -> -0.1964331787 | H75: =PRODUCT($F$4:F75)-1 -> -0.1002937337
A76: 2015-09-23 | B76: -1.9531 | C76: 2015-09-23 | D76: -2.0619 | E76: 0.980469 | F76: 0.979381 | G76: =PRODUCT($E$4:E76)-1 -> -0.2121276422 | H76: =PRODUCT($F$4:F76)-1 -> -0.1188447772
A77: 2015-09-24 | B77: -0.3984 | C77: 2015-09-24 | D77: -0.8582 | E77: 0.996016 | F77: 0.991418 | G77: =PRODUCT($E$4:E77)-1 -> -0.2152665257 | H77: =PRODUCT($F$4:F77)-1 -> -0.1264068514
A78: 2015-09-25 | B78: -0.8 | C78: 2015-09-25 | D78: 0.1139 | E78: 0.992 | F78: 1.001139 | G78: =PRODUCT($E$4:E78)-1 -> -0.2215443935 | H78: =PRODUCT($F$4:F78)-1 -> -0.1254118288
A79: 2015-09-30 | B79: -1.6129 | C79: 2015-09-30 | D79: 0.6012 | E79: 0.983871 | F79: 1.006012 | G79: =PRODUCT($E$4:E79)-1 -> -0.234100104 | H79: =PRODUCT($F$4:F79)-1 -> -0.1201538047
A80: 2015-10-01 | B80: 1.2295 | C80: 2015-10-01 | D80: 1.402 | E80: 1.012295 | F80: 1.01402 | G80: =PRODUCT($E$4:E80)-1 -> -0.2246833648 | H80: =PRODUCT($F$4:F80)-1 -> -0.107818361
A81: 2015-10-02 | B81: -1.2146 | C81: 2015-10-02 | D81: 0.1096 | E81: 0.987854 | F81: 1.001096 | G81: =PRODUCT($E$4:E81)-1 -> -0.2341003606 | H81: =PRODUCT($F$4:F81)-1 -> -0.1068405299
A82: 2015-10-05 | B82: 0.8197 | C82: 2015-10-05 | D82: 0.5699 | E82: 1.008197 | F82: 1.005699 | G82: =PRODUCT($E$4:E82)-1 -> -0.2278222813 | H82: =PRODUCT($F$4:F82)-1 -> -0.1017504141
A83: 2015-10-06 | B83: 0.813 | C83: 2015-10-06 | D83: 0.4997 | E83: 1.00813 | F83: 1.004997 | G83: =PRODUCT($E$4:E83)-1 -> -0.2215444764 | H83: =PRODUCT($F$4:F83)-1 -> -0.09726186094
A84: 2015-10-07 | B84: 2.4194 | C84: 2015-10-07 | D84: 1.2048 | E84: 1.024194 | F84: 1.012048 | G84: =PRODUCT($E$4:E84)-1 -> -0.2027105235 | H84: =PRODUCT($F$4:F84)-1 -> -0.08638567184
A85: 2015-10-08 | B85: -1.9685 | C85: 2015-10-08 | D85: -0.58 | E85: 0.980315 | F85: 0.9942 | G85: =PRODUCT($E$4:E85)-1 -> -0.2184051668 | H85: =PRODUCT($F$4:F85)-1 -> -0.09168463494
A86: 2015-10-12 | B86: 0.8032 | C86: 2015-10-12 | D86: 1.5127 | E86: 1.008032 | F86: 1.015127 | G86: =PRODUCT($E$4:E86)-1 -> -0.2121273971 | H86: =PRODUCT($F$4:F86)-1 -> -0.07794454841
A87: 2015-10-13 | B87: 1.992 | C87: 2015-10-13 | D87: -0.0676 | E87: 1.01992 | F87: 0.999324 | G87: =PRODUCT($E$4:E87)-1 -> -0.1964329749 | H87: =PRODUCT($F$4:F87)-1 -> -0.0785678579
A88: 2015-10-14 | B88: -0.3906 | C88: 2015-10-14 | D88: -0.53 | E88: 0.996094 | F88: 0.9947 | G88: =PRODUCT($E$4:E88)-1 -> -0.1995717077 | H88: =PRODUCT($F$4:F88)-1 -> -0.08345144825
A89: 2015-10-15 | B89: 0.3922 | C89: 2015-10-15 | D89: 0.9271 | E89: 1.003922 | F89: 1.009271 | G89: =PRODUCT($E$4:E89)-1 -> -0.1964324279 | H89: =PRODUCT($F$4:F89)-1 -> -0.07495412663
A90: 2015-10-16 | B90: 1.1719 | C90: 2015-10-16 | D90: 0.0399 | E90: 1.011719 | F90: 1.000399 | G90: =PRODUCT($E$4:E90)-1 -> -0.1870154195 | H90: =PRODUCT($F$4:F90)-1 -> -0.07458503333
A91: 2015-10-19 | B91: 1.9305 | C91: 2015-10-19 | D91: 0.3085 | E91: 1.019305 | F91: 1.003085 | G91: =PRODUCT($E$4:E91)-1 -> -0.1713207522 | H91: =PRODUCT($F$4:F91)-1 -> -0.07173012815
A92: 2015-10-20 | B92: -0.7576 | C92: 2015-10-20 | D92: 0.256 | E92: 0.992424 | F92: 1.00256 | G92: =PRODUCT($E$4:E92)-1 -> -0.1775988262 | H92: =PRODUCT($F$4:F92)-1 -> -0.06935375728
A93: 2015-10-21 | B93: -0.7634 | C93: 2015-10-21 | D93: -0.5127 | E93: 0.992366 | F93: 0.994873 | G93: =PRODUCT($E$4:E93)-1 -> -0.1838770368 | H93: =PRODUCT($F$4:F93)-1 -> -0.07412518057
A94: 2015-10-22 | B94: 0.3846 | C94: 2015-10-22 | D94: -0.0089 | E94: 1.003846 | F94: 0.999911 | G94: =PRODUCT($E$4:E94)-1 -> -0.1807382278 | H94: =PRODUCT($F$4:F94)-1 -> -0.07420758343
A95: 2015-10-23 | B95: 0.3831 | C95: 2015-10-23 | D95: 0.7591 | E95: 1.003831 | F95: 1.007591 | G95: =PRODUCT($E$4:E95)-1 -> -0.177599636 | H95: =PRODUCT($F$4:F95)-1 -> -0.06717989319
A96: 2015-10-26 | B96: 1.5267 | C96: 2015-10-26 | D96: 0.8249 | E96: 1.015267 | F96: 1.008249 | G96: =PRODUCT($E$4:E96)-1 -> -0.1650440496 | H96: =PRODUCT($F$4:F96)-1 -> -0.05948506013
A97: 2015-10-27 | B97: -0.3759 | C97: 2015-10-27 | D97: -0.5036 | E97: 0.996241 | F97: 0.994964 | G97: =PRODUCT($E$4:E97)-1 -> -0.168182649 | H97: =PRODUCT($F$4:F97)-1 -> -0.06422149337
A98: 2015-10-28 | B98: -0.7547 | C98: 2015-10-28 | D98: -0.406 | E98: 0.992453 | F98: 0.99594 | G98: =PRODUCT($E$4:E98)-1 -> -0.1744603746 | H98: =PRODUCT($F$4:F98)-1 -> -0.06802075411
A99: 2015-10-29 | B99: -2.6616 | C99: 2015-10-29 | D99: -1.0952 | E99: 0.973384 | F99: 0.989048 | G99: =PRODUCT($E$4:E99)-1 -> -0.1964329373 | H99: =PRODUCT($F$4:F99)-1 -> -0.07822779081
A100: 2015-10-30 | B100: 0 | C100: 2015-10-30 | D100: -0.1957 | E100: 1 | F100: 0.998043 | G100: =PRODUCT($E$4:E100)-1 -> -0.1964329373 | H100: =PRODUCT($F$4:F100)-1 -> -0.08003169902
A101: 2015-11-02 | B101: 1.5625 | C101: 2015-11-02 | D101: 0.7068 | E101: 1.015625 | F101: 1.007068 | G101: =PRODUCT($E$4:E101)-1 -> -0.1838772019 | H101: =PRODUCT($F$4:F101)-1 -> -0.07352936307
A102: 2015-11-03 | B102: 1.9231 | C102: 2015-11-03 | D102: 1.1425 | E102: 1.019231 | F102: 1.011425 | G102: =PRODUCT($E$4:E102)-1 -> -0.1681823444 | H102: =PRODUCT($F$4:F102)-1 -> -0.06294443604
A103: 2015-11-04 | B103: 3.0189 | C103: 2015-11-04 | D103: 1.6507 | E103: 1.030189 | F103: 1.016507 | G103: =PRODUCT($E$4:E103)-1 -> -0.1430706012 | H103: =PRODUCT($F$4:F103)-1 -> -0.04747645985
A104: 2015-11-05 | B104: -0.3663 | C104: 2015-11-05 | D104: -0.0772 | E104: 0.996337 | F104: 0.999228 | G104: =PRODUCT($E$4:E104)-1 -> -0.1462095336 | H104: =PRODUCT($F$4:F104)-1 -> -0.04821180802
A105: 2015-11-06 | B105: -2.5735 | C105: 2015-11-06 | D105: -1.7696 | E105: 0.974265 | F105: 0.982304 | G105: =PRODUCT($E$4:E105)-1 -> -0.1681818312 | H105: =PRODUCT($F$4:F105)-1 -> -0.06505465187
A106: 2015-11-09 | B106: -1.1321 | C106: 2015-11-09 | D106: -0.5877 | E106: 0.988679 | F106: 0.994123 | G106: =PRODUCT($E$4:E106)-1 -> -0.1775988447 | H106: =PRODUCT($F$4:F106)-1 -> -0.07054932568
A107: 2015-11-10 | B107: 0 | C107: 2015-11-10 | D107: -1.2216 | E107: 1 | F107: 0.987784 | G107: =PRODUCT($E$4:E107)-1 -> -0.1775988447 | H107: =PRODUCT($F$4:F107)-1 -> -0.08190349511
A108: 2015-11-11 | B108: -1.5267 | C108: 2015-11-11 | D108: -1.4278 | E108: 0.984733 | F108: 0.985722 | G108: =PRODUCT($E$4:E108)-1 -> -0.1901544431 | H108: =PRODUCT($F$4:F108)-1 -> -0.09501207701
A109: 2015-11-12 | B109: 0.3876 | C109: 2015-11-12 | D109: 0.1554 | E109: 1.003876 | F109: 1.001554 | G109: =PRODUCT($E$4:E109)-1 -> -0.1870154818 | H109: =PRODUCT($F$4:F109)-1 -> -0.09360572578
A110: 2015-11-13 | B110: -0.3861 | C110: 2015-11-13 | D110: -1.1698 | E110: 0.996139 | F110: 0.988302 | G110: =PRODUCT($E$4:E110)-1 -> -0.190154415 | H110: =PRODUCT($F$4:F110)-1 -> -0.104208726
A111: 2015-11-16 | B111: -1.1628 | C111: 2015-11-16 | D111: -0.4094 | E111: 0.988372 | F111: 0.995906 | G111: =PRODUCT($E$4:E111)-1 -> -0.1995712994 | H111: =PRODUCT($F$4:F111)-1 -> -0.1078760955
A112: 2015-11-17 | B112: 1.1765 | C112: 2015-11-17 | D112: 1.495 | E112: 1.011765 | F112: 1.01495 | G112: =PRODUCT($E$4:E112)-1 -> -0.1901542558 | H112: =PRODUCT($F$4:F112)-1 -> -0.0945388431
A113: 2015-11-18 | B113: 0.3876 | C113: 2015-11-18 | D113: -0.9377 | E113: 1.003876 | F113: 0.990623 | G113: =PRODUCT($E$4:E113)-1 -> -0.1870152937 | H113: =PRODUCT($F$4:F113)-1 -> -0.1030293524
A114: 2015-11-19 | B114: 0.3861 | C114: 2015-11-19 | D114: 1.6394 | E114: 1.003861 | F114: 1.016394 | G114: =PRODUCT($E$4:E114)-1 -> -0.1838763597 | H114: =PRODUCT($F$4:F114)-1 -> -0.08832441557
A115: 2015-11-20 | B115: -0.3846 | C115: 2015-11-20 | D115: -0.1386 | E115: 0.996154 | F115: 0.998614 | G115: =PRODUCT($E$4:E115)-1 -> -0.1870151713 | H115: =PRODUCT($F$4:F115)-1 -> -0.08958799793
A116: 2015-11-23 | B116: -0.3861 | C116: 2015-11-23 | D116: 0.2396 | E116: 0.996139 | F116: 1.002396 | G116: =PRODUCT($E$4:E116)-1 -> -0.1901541057 | H116: =PRODUCT($F$4:F116)-1 -> -0.08740665078
A117: 2015-11-24 | B117: -0.7752 | C117: 2015-11-24 | D117: -1.0086 | E117: 0.992248 | F117: 0.989914 | G117: =PRODUCT($E$4:E117)-1 -> -0.196432031 | H117: =PRODUCT($F$4:F117)-1 -> -0.0966110673
A118: 2015-11-25 | B118: -0.7813 | C118: 2015-11-25 | D118: -0.1668 | E118: 0.992187 | F118: 0.998332 | G118: =PRODUCT($E$4:E118)-1 -> -0.2027103076 | H118: =PRODUCT($F$4:F118)-1 -> -0.09811792004
A119: 2015-11-26 | B119: 1.1811 | C119: 2015-11-26 | D119: 1.1778 | E119: 1.011811 | F119: 1.011778 | G119: =PRODUCT($E$4:E119)-1 -> -0.193293519 | H119: =PRODUCT($F$4:F119)-1 -> -0.0874955529
A120: 2015-11-27 | B120: -0.3891 | C120: 2015-11-27 | D120: -1.0195 | E120: 0.996109 | F120: 0.989805 | G120: =PRODUCT($E$4:E120)-1 -> -0.196432414 | H120: =PRODUCT($F$4:F120)-1 -> -0.09679853574
A121: 2015-11-30 | B121: -3.5156 | C121: 2015-11-30 | D121: -0.9262 | E121: 0.964844 | F121: 0.990738 | G121: =PRODUCT($E$4:E121)-1 -> -0.224682636 | H121: =PRODUCT($F$4:F121)-1 -> -0.1051639877
A122: 2015-12-01 | B122: 2.4291 | C122: 2015-12-01 | D122: 1.7149 | E122: 1.024291 | F122: 1.017149 | G122: =PRODUCT($E$4:E122)-1 -> -0.2058494019 | H122: =PRODUCT($F$4:F122)-1 -> -0.08981844492
A123: 2015-12-02 | B123: -0.7905 | C123: 2015-12-02 | D123: -0.0697 | E123: 0.992095 | F123: 0.999303 | G123: =PRODUCT($E$4:E123)-1 -> -0.2121271624 | H123: =PRODUCT($F$4:F123)-1 -> -0.09045284147
A124: 2015-12-03 | B124: 0.7968 | C124: 2015-12-03 | D124: -0.0158 | E124: 1.007968 | F124: 0.999842 | G124: =PRODUCT($E$4:E124)-1 -> -0.2058493916 | H124: =PRODUCT($F$4:F124)-1 -> -0.09059654992
A125: 2015-12-04 | B125: -1.9763 | C125: 2015-12-04 | D125: -0.6795 | E125: 0.980237 | F125: 0.993205 | G125: =PRODUCT($E$4:E125)-1 -> -0.2215441901 | H125: =PRODUCT($F$4:F125)-1 -> -0.09677594636
A126: 2015-12-07 | B126: 0.4032 | C126: 2015-12-07 | D126: 0.6628 | E126: 1.004032 | F126: 1.006628 | G126: =PRODUCT($E$4:E126)-1 -> -0.2184054563 | H126: =PRODUCT($F$4:F126)-1 -> -0.09078937733
A127: 2015-12-08 | B127: -1.6064 | C127: 2015-12-08 | D127: -1.306 | E127: 0.983936 | F127: 0.98694 | G127: =PRODUCT($E$4:E127)-1 -> -0.230960991 | H127: =PRODUCT($F$4:F127)-1 -> -0.1026636681
A128: 2015-12-09 | B128: -1.6327 | C128: 2015-12-09 | D128: -1.3692 | E128: 0.983673 | F128: 0.986308 | G128: =PRODUCT($E$4:E128)-1 -> -0.2435170909 | H128: =PRODUCT($F$4:F128)-1 -> -0.1149499971
A129: 2015-12-10 | B129: -0.4149 | C129: 2015-12-10 | D129: -0.1634 | E129: 0.995851 | F129: 0.998366 | G129: =PRODUCT($E$4:E129)-1 -> -0.2466557385 | H129: =PRODUCT($F$4:F129)-1 -> -0.1163961688
A130: 2015-12-11 | B130: 0 | C130: 2015-12-11 | D130: -1.2205 | E130: 1 | F130: 0.987795 | G130: =PRODUCT($E$4:E130)-1 -> -0.2466557385 | H130: =PRODUCT($F$4:F130)-1 -> -0.1271805536
A131: 2015-12-14 | B131: -1.25 | C131: 2015-12-14 | D131: -0.9331 | E131: 0.9875 | F131: 0.990669 | G131: =PRODUCT($E$4:E131)-1 -> -0.2560725418 | H131: =PRODUCT($F$4:F131)-1 -> -0.1353248318
A132: 2015-12-15 | B132: 0.8439 | C132: 2015-12-15 | D132: 0.4128 | E132: =1+B132/100 -> 1.008439 | F132: =1+D132/100 -> 1.004128 | G132: =PRODUCT($E$4:E132)-1 -> -0.249794538 | H132: =PRODUCT($F$4:F132)-1 -> -0.1317554527
A133: 2015-12-16 | B133: 0.4184 | C133: 2015-12-16 | D133: 1.3787 | E133: 1.004184 | F133: 1.013787 | G133: =PRODUCT($E$4:E133)-1 -> -0.2466556783 | H133: =PRODUCT($F$4:F133)-1 -> -0.1197849652
A134: 2015-12-17 | B134: 1.6667 | C134: 2015-12-17 | D134: 1.6495 | E134: 1.016667 | F134: 1.016495 | G134: =PRODUCT($E$4:E134)-1 -> -0.2340996885 | H134: =PRODUCT($F$4:F134)-1 -> -0.1052658182
A135: 2015-12-18 | B135: -2.0492 | C135: 2015-12-18 | D135: -0.7494 | E135: 0.979508 | F135: 0.992506 | G135: =PRODUCT($E$4:E135)-1 -> -0.2497945177 | H135: =PRODUCT($F$4:F135)-1 -> -0.1119709561
A136: 2015-12-21 | B136: 0 | C136: 2015-12-21 | D136: 0.3009 | E136: 1 | F136: 1.003009 | G136: =PRODUCT($E$4:E136)-1 -> -0.2497945177 | H136: =PRODUCT($F$4:F136)-1 -> -0.1092988767
A137: 2015-12-22 | B137: 0.4184 | C137: 2015-12-22 | D137: 0.1276 | E137: 1.004184 | F137: 1.001276 | G137: =PRODUCT($E$4:E137)-1 -> -0.2466556579 | H137: =PRODUCT($F$4:F137)-1 -> -0.1081623421
A138: 2015-12-23 | B138: 0.8333 | C138: 2015-12-23 | D138: 0.2769 | E138: 1.008333 | F138: 1.002769 | G138: =PRODUCT($E$4:E138)-1 -> -0.2403780395 | H138: =PRODUCT($F$4:F138)-1 -> -0.1056928436
A139: 2015-12-24 | B139: -0.4132 | C139: 2015-12-24 | D139: 0.1041 | E139: 0.995868 | F139: 1.001041 | G139: =PRODUCT($E$4:E139)-1 -> -0.2435167975 | H139: =PRODUCT($F$4:F139)-1 -> -0.1047618699
A140: 2015-12-25 | B140: 0.8299 | C140: 2015-12-25 | D140: 0.4675 | E140: 1.008299 | F140: 1.004675 | G140: =PRODUCT($E$4:E140)-1 -> -0.2372387434 | H140: =PRODUCT($F$4:F140)-1 -> -0.1005766316
A141: 2015-12-28 | B141: 0.4115 | C141: 2015-12-28 | D141: -0.0573 | E141: 1.004115 | F141: 0.999427 | G141: =PRODUCT($E$4:E141)-1 -> -0.2340999808 | H141: =PRODUCT($F$4:F141)-1 -> -0.1010920012
A142: 2015-12-29 | B142: -0.8197 | C142: 2015-12-29 | D142: -0.7726 | E142: 0.991803 | F142: 0.992274 | G142: =PRODUCT($E$4:E142)-1 -> -0.2403780633 | H142: =PRODUCT($F$4:F142)-1 -> -0.1080369644
A143: 2015-12-30 | B143: -0.4132 | C143: 2015-12-30 | D143: -0.1678 | E143: 0.995868 | F143: 0.998322 | G143: =PRODUCT($E$4:E143)-1 -> -0.2435168211 | H143: =PRODUCT($F$4:F143)-1 -> -0.1095336784
A144: 2015-12-31 | B144: 0.8299 | C144: 2015-12-31 | D144: 0.7013 | E144: 1.008299 | F144: 1.007013 | G144: =PRODUCT($E$4:E144)-1 -> -0.2372387672 | H144: =PRODUCT($F$4:F144)-1 -> -0.1032888381
A145: 2016-01-04 | B145: -2.4691 | C145: 2016-01-04 | D145: -2.6841 | E145: 0.975309 | F145: 0.973159 | G145: =PRODUCT($E$4:E145)-1 -> -0.2560721048 | H145: =PRODUCT($F$4:F145)-1 -> -0.1273574624
A146: 2016-01-05 | B146: -1.6878 | C146: 2016-01-05 | D146: -0.4825 | E146: 0.983122 | F146: 0.995175 | G146: =PRODUCT($E$4:E146)-1 -> -0.2686281198 | H146: =PRODUCT($F$4:F146)-1 -> -0.1315679626
A147: 2016-01-06 | B147: -0.4292 | C147: 2016-01-06 | D147: -1.0491 | E147: 0.995708 | F147: 0.989509 | G147: =PRODUCT($E$4:E147)-1 -> -0.2717671679 | H147: =PRODUCT($F$4:F147)-1 -> -0.1406786831
A148: 2016-01-07 | B148: -3.8793 | C148: 2016-01-07 | D148: -1.7312 | E148: 0.961207 | F148: 0.982688 | G148: =PRODUCT($E$4:E148)-1 -> -0.3000175042 | H148: =PRODUCT($F$4:F148)-1 -> -0.1555552538
A149: 2016-01-08 | B149: 0.4484 | C149: 2016-01-08 | D149: 0.5337 | E149: 1.004484 | F149: 1.005337 | G149: =PRODUCT($E$4:E149)-1 -> -0.2968787827 | H149: =PRODUCT($F$4:F149)-1 -> -0.1510484521
A150: 2016-01-11 | B150: -3.5714 | C150: 2016-01-11 | D150: -1.3371 | E150: 0.964286 | F150: 0.986629 | G150: =PRODUCT($E$4:E150)-1 -> -0.3219900538 | H150: =PRODUCT($F$4:F150)-1 -> -0.1623997833
A151: 2016-01-12 | B151: -0.463 | C151: 2016-01-12 | D151: -0.2564 | E151: 0.99537 | F151: 0.997436 | G151: =PRODUCT($E$4:E151)-1 -> -0.3251292399 | H151: =PRODUCT($F$4:F151)-1 -> -0.1645473902
A152: 2016-01-13 | B152: 0 | C152: 2016-01-13 | D152: 0.7229 | E152: 1 | F152: 1.007229 | G152: =PRODUCT($E$4:E152)-1 -> -0.3251292399 | H152: =PRODUCT($F$4:F152)-1 -> -0.1585079033
A153: 2016-01-14 | B153: -3.2558 | C153: 2016-01-14 | D153: -1.0445 | E153: 0.967442 | F153: 0.989555 | G153: =PRODUCT($E$4:E153)-1 -> -0.3471016821 | H153: =PRODUCT($F$4:F153)-1 -> -0.1672972883
A154: 2016-01-15 | B154: -2.4038 | C154: 2016-01-15 | D154: 0.2471 | E154: 0.975962 | F154: 1.002471 | G154: =PRODUCT($E$4:E154)-1 -> -0.3627960519 | H154: =PRODUCT($F$4:F154)-1 -> -0.1652396799
A155: 2016-01-18 | B155: 0.9852 | C155: 2016-01-18 | D155: 0.6335 | E155: 1.009852 | F155: 1.006335 | G155: =PRODUCT($E$4:E155)-1 -> -0.3565183186 | H155: =PRODUCT($F$4:F155)-1 -> -0.1599514733
A156: 2016-01-19 | B156: 0 | C156: 2016-01-19 | D156: 0.5595 | E156: 1 | F156: 1.005595 | G156: =PRODUCT($E$4:E156)-1 -> -0.3565183186 | H156: =PRODUCT($F$4:F156)-1 -> -0.1552514017
A157: 2016-01-20 | B157: -1.9512 | C157: 2016-01-20 | D157: -1.983 | E157: 0.980488 | F157: 0.98017 | G157: =PRODUCT($E$4:E157)-1 -> -0.3690739331 | H157: =PRODUCT($F$4:F157)-1 -> -0.1720027664
A158: 2016-01-21 | B158: -0.796 | C158: 2016-01-21 | D158: -0.456 | E158: 0.99204 | F158: 0.99544 | G158: =PRODUCT($E$4:E158)-1 -> -0.3740961046 | H158: =PRODUCT($F$4:F158)-1 -> -0.1757784338
A159: 2016-01-22 | B159: 2.3069 | C159: 2016-01-22 | D159: 1.2026 | E159: 1.023069 | F159: 1.012026 | G159: =PRODUCT($E$4:E159)-1 -> -0.3596571277 | H159: =PRODUCT($F$4:F159)-1 -> -0.1658663453
A160: 2016-01-25 | B160: 0.9804 | C160: 2016-01-25 | D160: 1.7788 | E160: 1.009804 | F160: 1.017788 | G160: =PRODUCT($E$4:E160)-1 -> -0.3533792061 | H160: =PRODUCT($F$4:F160)-1 -> -0.1510287758
A161: 2016-01-26 | B161: -2.4272 | C161: 2016-01-26 | D161: -0.8295 | E161: 0.975728 | F161: 0.991705 | G161: =PRODUCT($E$4:E161)-1 -> -0.369073986 | H161: =PRODUCT($F$4:F161)-1 -> -0.1580709921
A162: 2016-01-27 | B162: 0 | C162: 2016-01-27 | D162: 0.2703 | E162: 1 | F162: 1.002703 | G162: =PRODUCT($E$4:E162)-1 -> -0.369073986 | H162: =PRODUCT($F$4:F162)-1 -> -0.155795258
A163: 2016-01-28 | B163: 0 | C163: 2016-01-28 | D163: 0.7041 | E163: 1 | F163: 1.007041 | G163: =PRODUCT($E$4:E163)-1 -> -0.369073986 | H163: =PRODUCT($F$4:F163)-1 -> -0.1498512124
A164: 2016-01-29 | B164: 2.4876 | C164: 2016-01-29 | D164: 2.2201 | E164: 1.024876 | F164: 1.022201 | G164: =PRODUCT($E$4:E164)-1 -> -0.3533790705 | H164: =PRODUCT($F$4:F164)-1 -> -0.1309770592
A165: 2016-01-30 | B165: 4.8544 | C165: 2016-01-30 | D165: 0.7996 | E165: 1.048544 | F165: 1.007996 | G165: =PRODUCT($E$4:E165)-1 -> -0.3219895041 | H165: =PRODUCT($F$4:F165)-1 -> -0.1240283518
A166: 2016-02-01 | B166: 0 | C166: 2016-02-01 | D166: 0.1443 | E166: 1 | F166: 1.001443 | G166: =PRODUCT($E$4:E166)-1 -> -0.3219895041 | H166: =PRODUCT($F$4:F166)-1 -> -0.1227643247
A167: 2016-02-02 | B167: 0 | C167: 2016-02-02 | D167: -0.3153 | E167: 1 | F167: 0.996847 | G167: =PRODUCT($E$4:E167)-1 -> -0.3219895041 | H167: =PRODUCT($F$4:F167)-1 -> -0.1255302488
A168: 2016-02-03 | B168: -2.3148 | C168: 2016-02-03 | D168: -0.8392 | E168: 0.976852 | F168: 0.991608 | G168: =PRODUCT($E$4:E168)-1 -> -0.3376840911 | H168: =PRODUCT($F$4:F168)-1 -> -0.1328687989
A169: 2016-02-15 | B169: -0.9479 | C169: 2016-02-15 | D169: 0.0435 | E169: 0.990521 | F169: 1.000435 | G169: =PRODUCT($E$4:E169)-1 -> -0.3439621836 | H169: =PRODUCT($F$4:F169)-1 -> -0.1324915968
A170: 2016-02-16 | B170: 3.8278 | C170: 2016-02-16 | D170: 1.8045 | E170: 1.038278 | F170: 1.018045 | G170: =PRODUCT($E$4:E170)-1 -> -0.318850368 | H170: =PRODUCT($F$4:F170)-1 -> -0.1168374077
A171: 2016-02-17 | B171: -0.9217 | C171: 2016-02-17 | D171: 0.0265 | E171: 0.990783 | F171: 1.000265 | G171: =PRODUCT($E$4:E171)-1 -> -0.3251285242 | H171: =PRODUCT($F$4:F171)-1 -> -0.1166033696
A172: 2016-02-18 | B172: 0.9302 | C172: 2016-02-18 | D172: 1.2225 | E172: 1.009302 | F172: 1.012225 | G172: =PRODUCT($E$4:E172)-1 -> -0.3188508697 | H172: =PRODUCT($F$4:F172)-1 -> -0.1058038458
A173: 2016-02-19 | B173: -0.4608 | C173: 2016-02-19 | D173: 0.1247 | E173: 0.995392 | F173: 1.001247 | G173: =PRODUCT($E$4:E173)-1 -> -0.3219896049 | H173: =PRODUCT($F$4:F173)-1 -> -0.1046887832
A174: 2016-02-22 | B174: -0.463 | C174: 2016-02-22 | D174: 0.0197 | E174: 0.99537 | F174: 1.000197 | G174: =PRODUCT($E$4:E174)-1 -> -0.3251287931 | H174: =PRODUCT($F$4:F174)-1 -> -0.1045124069
A175: 2016-02-23 | B175: 0.4651 | C175: 2016-02-23 | D175: 0.0956 | E175: 1.004651 | F175: 1.000956 | G175: =PRODUCT($E$4:E175)-1 -> -0.3219899671 | H175: =PRODUCT($F$4:F175)-1 -> -0.1036563208
A176: 2016-02-24 | B176: -0.9259 | C176: 2016-02-24 | D176: -0.6213 | E176: 0.990741 | F176: 0.993787 | G176: =PRODUCT($E$4:E176)-1 -> -0.328267662 | H176: =PRODUCT($F$4:F176)-1 -> -0.109225304
A177: 2016-02-25 | B177: 0.9346 | C177: 2016-02-25 | D177: 1.0021 | E177: 1.009346 | F177: 1.010021 | G177: =PRODUCT($E$4:E177)-1 -> -0.3219896515 | H177: =PRODUCT($F$4:F177)-1 -> -0.1002988508
A178: 2016-02-26 | B178: -0.9259 | C178: 2016-02-26 | D178: 0.5415 | E178: 0.990741 | F178: 1.005415 | G178: =PRODUCT($E$4:E178)-1 -> -0.3282673494 | H178: =PRODUCT($F$4:F178)-1 -> -0.09542696909
A179: 2016-03-01 | B179: 1.4019 | C179: 2016-03-01 | D179: 0.8861 | E179: 1.014019 | F179: 1.008861 | G179: =PRODUCT($E$4:E179)-1 -> -0.3188503293 | H179: =PRODUCT($F$4:F179)-1 -> -0.08741154747
A180: 2016-03-02 | B180: 2.3041 | C180: 2016-03-02 | D180: 0.6877 | E180: 1.023041 | F180: 1.006877 | G180: =PRODUCT($E$4:E180)-1 -> -0.3031559598 | H180: =PRODUCT($F$4:F180)-1 -> -0.08113567668
A181: 2016-03-03 | B181: 4.5045 | C181: 2016-03-03 | D181: 0.7928 | E181: 1.045045 | F181: 1.007928 | G181: =PRODUCT($E$4:E181)-1 -> -0.27176662 | H181: =PRODUCT($F$4:F181)-1 -> -0.07385092032
A182: 2016-03-04 | B182: 2.5862 | C182: 2016-03-04 | D182: 0.3688 | E182: 1.025862 | F182: 1.003688 | G182: =PRODUCT($E$4:E182)-1 -> -0.2529330483 | H182: =PRODUCT($F$4:F182)-1 -> -0.07043528252
A183: 2016-03-07 | B183: 0 | C183: 2016-03-07 | D183: 0.1851 | E183: 1 | F183: 1.001851 | G183: =PRODUCT($E$4:E183)-1 -> -0.2529330483 | H183: =PRODUCT($F$4:F183)-1 -> -0.06871465822
A184: 2016-03-08 | B184: 0.4202 | C184: 2016-03-08 | D184: 0.055 | E184: 1.004202 | F184: 1.00055 | G184: =PRODUCT($E$4:E184)-1 -> -0.249793873 | H184: =PRODUCT($F$4:F184)-1 -> -0.06820245129
A185: 2016-03-09 | B185: -1.6736 | C185: 2016-03-09 | D185: -0.3486 | E185: 0.983264 | F185: 0.996514 | G185: =PRODUCT($E$4:E185)-1 -> -0.2623493227 | H185: =PRODUCT($F$4:F185)-1 -> -0.07145069754
A186: 2016-03-10 | B186: 1.7021 | C186: 2016-03-10 | D186: 0.308 | E186: 1.017021 | F186: 1.00308 | G186: =PRODUCT($E$4:E186)-1 -> -0.2497937705 | H186: =PRODUCT($F$4:F186)-1 -> -0.06859076569
A187: 2016-03-11 | B187: -0.4184 | C187: 2016-03-11 | D187: 0.5247 | E187: 0.995816 | F187: 1.005247 | G187: =PRODUCT($E$4:E187)-1 -> -0.2529326334 | H187: =PRODUCT($F$4:F187)-1 -> -0.06370366144
A188: 2016-03-14 | B188: -0.4202 | C188: 2016-03-14 | D188: 0.4797 | E188: 0.995798 | F188: 1.004797 | G188: =PRODUCT($E$4:E188)-1 -> -0.2560718105 | H188: =PRODUCT($F$4:F188)-1 -> -0.0592122479
A189: 2016-03-15 | B189: -3.3755 | C189: 2016-03-15 | D189: -1.5629 | E189: 0.966245 | F189: 0.984371 | G189: =PRODUCT($E$4:E189)-1 -> -0.2811831065 | H189: =PRODUCT($F$4:F189)-1 -> -0.07391581968
A190: 2016-03-16 | B190: 1.31 | C190: 2016-03-16 | D190: 1.0215 | E190: 1.0131 | F190: 1.010215 | G190: =PRODUCT($E$4:E190)-1 -> -0.2717666052 | H190: =PRODUCT($F$4:F190)-1 -> -0.06445586978
A191: 2016-03-17 | B191: 1.2931 | C191: 2016-03-17 | D191: 0.4069 | E191: 1.012931 | F191: 1.004069 | G191: =PRODUCT($E$4:E191)-1 -> -0.2623498192 | H191: =PRODUCT($F$4:F191)-1 -> -0.06064914071
A192: 2016-03-18 | B192: 0.4255 | C192: 2016-03-18 | D192: 0.8721 | E192: 1.004255 | F192: 1.008721 | G192: =PRODUCT($E$4:E192)-1 -> -0.2592111177 | H192: =PRODUCT($F$4:F192)-1 -> -0.05245706187
A193: 2016-03-21 | B193: 0 | C193: 2016-03-21 | D193: 0.0226 | E193: 1 | F193: 1.000226 | G193: =PRODUCT($E$4:E193)-1 -> -0.2592111177 | H193: =PRODUCT($F$4:F193)-1 -> -0.05224291716
A194: 2016-03-22 | B194: -2.1186 | C194: 2016-03-22 | D194: -0.3066 | E194: 0.978814 | F194: 0.996934 | G194: =PRODUCT($E$4:E194)-1 -> -0.2749054709 | H194: =PRODUCT($F$4:F194)-1 -> -0.05514874038
A195: 2016-03-23 | B195: 0.4329 | C195: 2016-03-23 | D195: -0.223 | E195: 1.004329 | F195: 0.99777 | G195: =PRODUCT($E$4:E195)-1 -> -0.2717665367 | H195: =PRODUCT($F$4:F195)-1 -> -0.05725575869
A196: 2016-03-24 | B196: 0 | C196: 2016-03-24 | D196: -0.2591 | E196: =1+B196/100 -> 1 | F196: =1+D196/100 -> 0.997409 | G196: =PRODUCT($E$4:E196)-1 -> -0.2717665367 | H196: =PRODUCT($F$4:F196)-1 -> -0.05969840902
A197: 2016-03-25 | B197: -0.8621 | C197: 2016-03-25 | D197: -0.4393 | E197: 0.991379 | F197: 0.995607 | G197: =PRODUCT($E$4:E197)-1 -> -0.2780446374 | H197: =PRODUCT($F$4:F197)-1 -> -0.06382915391
A198: 2016-03-28 | B198: 0.4348 | C198: 2016-03-28 | D198: -0.1668 | E198: 1.004348 | F198: 0.998332 | G198: =PRODUCT($E$4:E198)-1 -> -0.2749055755 | H198: =PRODUCT($F$4:F198)-1 -> -0.06539068688
A199: 2016-03-29 | B199: -1.2987 | C199: 2016-03-29 | D199: -0.8412 | E199: 0.987013 | F199: 0.991588 | G199: =PRODUCT($E$4:E199)-1 -> -0.2843223768 | H199: =PRODUCT($F$4:F199)-1 -> -0.07325262042
A200: 2016-03-30 | B200: 1.7544 | C200: 2016-03-30 | D200: 1.3889 | E200: 1.017544 | F200: 1.013889 | G200: =PRODUCT($E$4:E200)-1 -> -0.2717665285 | H200: =PRODUCT($F$4:F200)-1 -> -0.06038102606
... 52 more rows

Sheet 籌碼分析
A1: 2885 元大金
A2: 年月日 | B2: 外資買賣超(張) | C2: 投信買賣超(張) | D2: 自營買賣超(張) | F2: 年月日 | G2: 融資增減(張) | K2: 近20日籌碼變化
A3: 2016-05-19 | B3: -3225 | C3: 0 | D3: 15 | F3: 2016-05-19 | G3: -1346 | J3: 外資 | K3: =SUM(B3:B22) -> 164148
A4: 2016-05-20 | B4: -932 | C4: 0 | D4: -703 | F4: 2016-05-20 | G4: -7 | J4: 投信 | K4: =SUM(C3:C22) -> 1890
A5: 2016-05-23 | B5: 5402 | C5: 0 | D5: 846 | F5: 2016-05-23 | G5: -1259 | J5: 自營 | K5: =SUM(D3:D22) -> 2058
A6: 2016-05-24 | B6: -1245 | C6: 0 | D6: -33 | F6: 2016-05-24 | G6: 72 | J6: 融資 | K6: =SUM(G3:G22) -> 1496
A7: 2016-05-25 | B7: 2054 | C7: 0 | D7: -92 | F7: 2016-05-25 | G7: -383
A8: 2016-05-26 | B8: -1899 | C8: -13 | D8: 512 | F8: 2016-05-26 | G8: -216
A9: 2016-05-27 | B9: 6253 | C9: 0 | D9: 333 | F9: 2016-05-27 | G9: -1818
A10: 2016-05-30 | B10: 8120 | C10: 0 | D10: -391 | F10: 2016-05-30 | G10: 136
A11: 2016-05-31 | B11: 9167 | C11: -52 | D11: 272 | F11: 2016-05-31 | G11: -628
A12: 2016-06-01 | B12: 5705 | C12: 189 | D12: 756 | F12: 2016-06-01 | G12: 1099
A13: 2016-06-02 | B13: 236325 | C13: 430 | D13: -282 | F13: 2016-06-02 | G13: 1266
A14: 2016-06-03 | B14: -34472 | C14: 305 | D14: 459 | F14: 2016-06-03 | G14: 1752
A15: 2016-06-04 | B15: 199 | C15: 0 | D15: 195 | F15: 2016-06-04 | G15: -126
A16: 2016-06-06 | B16: 3727 | C16: 0 | D16: -234 | F16: 2016-06-06 | G16: -395
A17: 2016-06-07 | B17: -975 | C17: 0 | D17: 371 | F17: 2016-06-07 | G17: -137
A18: 2016-06-08 | B18: 729 | C18: 305 | D18: 355 | F18: 2016-06-08 | G18: -457
A19: 2016-06-13 | B19: -36968 | C19: 0 | D19: -710 | F19: 2016-06-13 | G19: 2856
A20: 2016-06-14 | B20: -7493 | C20: 0 | D20: 428 | F20: 2016-06-14 | G20: 441
A21: 2016-06-15 | B21: -8496 | C21: 0 | D21: 280 | F21: 2016-06-15 | G21: 302
A22: 2016-06-16 | B22: -17828 | C22: 726 | D22: -319 | F22: 2016-06-16 | G22: 344

Sheet 圖-報酬率
A1: 2885 元大金
A2: Data Field | B2: 2016-06-16
A3: 未調整收盤價(元) | B3: 10.25
A4: 券資比 | B4: 0.2
A5: 現金股利率 | B5: 3.52 | D5: 報酬率
A6: 股利殖利率-TSE | B6: 3.51 | D6: =IF(B7="",TEXT(C2,"YYYY/MM/DD 報酬率"),TEXT(B2,"YYYY/MM/DD 報酬率")) -> 2016/06/16 報酬率
A7: 日報酬率 % | B7: -0.9662 | D7: =IF(B7="",C7,B7) -> -0.9662
A8: 週報酬率 % | B8: -4.6512 | D8: =IF(B8="",C8,B8) -> -4.6512
A9: 月報酬率 % | B9: 0.4904 | D9: =IF(B9="",C9,B9) -> 0.4904
A10: 季報酬率 % | B10: -11.6374 | D10: =IF(B10="",C10,B10) -> -11.6374
A11: 年報酬率 % | B11: -35.0786 | D11: =IF(B11="",C11,B11) -> -35.0786

Sheet 圖-股價.PE.PB
A1: 2885 元大金
B2: 週股價走勢－40W | F2: 月股價走勢－52M | J2: PE BAND | O2: PB BAND
A3: 年月日 | B3: 成交量(千股)_週 | C3: 收盤價(元) | E3: 年月 | F3: 收盤價(元)_月 | G3: 本益比-TEJ | H3: 股價淨值比-TEJ | J3: 5*PE | K3: 10*PE | L3: 15*PE | M3: 20*PE | O3: 0.5*PB | P3: 1*PB | Q3: 2*PB | R3: 3*PB | S3: 4*PB
A4: 2015-09-04 | B4: 138937 | C4: 12.8 | E4: 2012-02-29 | F4: 17.35 | G4: 10.66 | H4: 1.35 | J4: =5*$F4/$G4 -> 8.137898687 | K4: =10*$F4/$G4 -> 16.27579737 | L4: =15*$F4/$G4 -> 24.41369606 | M4: =20*$F4/$G4 -> 32.55159475 | O4: =0.5*$F4/$H4 -> 6.425925926 | P4: =1*$F4/$H4 -> 12.85185185 | Q4: =2*$F4/$H4 -> 25.7037037 | R4: =3*$F4/$H4 -> 38.55555556 | S4: =4*$F4/$H4 -> 51.40740741
A5: 2015-09-11 | B5: 104712 | C5: 13.3 | E5: 2012-03-30 | F5: 15.35 | G5: 9.43 | H5: 1.2 | J5: =5*$F5/$G5 -> 8.138918346 | K5: =10*$F5/$G5 -> 16.27783669 | L5: =15*$F5/$G5 -> 24.41675504 | M5: =20*$F5/$G5 -> 32.55567338 | O5: =0.5*$F5/$H5 -> 6.395833333 | P5: =1*$F5/$H5 -> 12.79166667 | Q5: =2*$F5/$H5 -> 25.58333333 | R5: =3*$F5/$H5 -> 38.375 | S5: =4*$F5/$H5 -> 51.16666667
A6: 2015-09-18 | B6: 114450 | C6: 13.2 | E6: 2012-04-30 | F6: 14 | G6: 8.6 | H6: 1.09 | J6: 8.139534884 | K6: 16.27906977 | L6: 24.41860465 | M6: 32.55813953 | O6: 6.422018349 | P6: 12.8440367 | Q6: 25.68807339 | R6: 38.53211009 | S6: 51.37614679
A7: 2015-09-25 | B7: 130414 | C7: 12.4 | E7: 2012-05-31 | F7: 13.15 | G7: 8.08 | H7: 1.03 | J7: 8.137376238 | K7: 16.27475248 | L7: 24.41212871 | M7: 32.54950495 | O7: 6.383495146 | P7: 12.76699029 | Q7: 25.53398058 | R7: 38.30097087 | S7: 51.06796117
A8: 2015-10-02 | B8: 102462 | C8: 12.2 | E8: 2012-06-29 | F8: 13.55 | G8: 10.88 | H8: 0.9 | J8: 6.227022059 | K8: 12.45404412 | L8: 18.68106618 | M8: 24.90808824 | O8: 7.527777778 | P8: 15.05555556 | Q8: 30.11111111 | R8: 45.16666667 | S8: 60.22222222
A9: 2015-10-08 | B9: 93540 | C9: 12.45 | E9: 2012-07-31 | F9: 14 | G9: 11.24 | H9: 0.93 | J9: 6.227758007 | K9: 12.45551601 | L9: 18.68327402 | M9: 24.91103203 | O9: 7.52688172 | P9: 15.05376344 | Q9: 30.10752688 | R9: 45.16129032 | S9: 60.21505376
A10: 2015-10-16 | B10: 128969 | C10: 12.95 | E10: 2012-08-31 | F10: 13.9 | G10: 11.16 | H10: 0.92 | J10: 6.227598566 | K10: 12.45519713 | L10: 18.6827957 | M10: 24.91039427 | O10: 7.554347826 | P10: 15.10869565 | Q10: 30.2173913 | R10: 45.32608696 | S10: 60.43478261
A11: 2015-10-23 | B11: 112288 | C11: 13.1 | E11: 2012-09-28 | F11: 15.4 | G11: 12.36 | H11: 1.02 | J11: 6.229773463 | K11: 12.45954693 | L11: 18.68932039 | M11: 24.91909385 | O11: 7.549019608 | P11: 15.09803922 | Q11: 30.19607843 | R11: 45.29411765 | S11: 60.39215686
A12: 2015-10-30 | B12: 123400 | C12: 12.8 | E12: 2012-10-31 | F12: 13.2 | G12: 26.11 | H12: 0.88 | J12: 2.527767139 | K12: 5.055534278 | L12: 7.583301417 | M12: 10.11106856 | O12: 7.5 | P12: 15 | Q12: 30 | R12: 45 | S12: 60
A13: 2015-11-06 | B13: 216006 | C13: 13.25 | E13: 2012-11-30 | F13: 14.7 | G13: 29.08 | H13: 0.98 | J13: 2.527510316 | K13: 5.055020633 | L13: 7.582530949 | M13: 10.11004127 | O13: 7.5 | P13: 15 | Q13: 30 | R13: 45 | S13: 60
A14: 2015-11-13 | B14: 111519 | C14: 12.9 | E14: 2012-12-28 | F14: 14.95 | G14: 32.21 | H14: 0.98 | J14: 2.320707855 | K14: 4.641415709 | L14: 6.962123564 | M14: 9.282831419 | O14: 7.62755102 | P14: 15.25510204 | Q14: 30.51020408 | R14: 45.76530612 | S14: 61.02040816
A15: 2015-11-20 | B15: 131568 | C15: 12.95 | E15: 2013-01-31 | F15: 16 | G15: 34.47 | H15: 1.05 | J15: 2.320858718 | K15: 4.641717435 | L15: 6.962576153 | M15: 9.283434871 | O15: 7.619047619 | P15: 15.23809524 | Q15: 30.47619048 | R15: 45.71428571 | S15: 60.95238095
A16: 2015-11-27 | B16: 69861 | C16: 12.8 | E16: 2013-02-27 | F16: 15.35 | G16: 33.07 | H16: 1.01 | J16: 2.320834593 | K16: 4.641669187 | L16: 6.96250378 | M16: 9.283338373 | O16: 7.599009901 | P16: 15.1980198 | Q16: 30.3960396 | R16: 45.59405941 | S16: 60.79207921
A17: 2015-12-04 | B17: 113968 | C17: 12.4 | E17: 2013-03-29 | F17: 15.2 | G17: 32.36 | H17: 0.99 | J17: 2.348578492 | K17: 4.697156984 | L17: 7.045735476 | M17: 9.394313968 | O17: 7.676767677 | P17: 15.35353535 | Q17: 30.70707071 | R17: 46.06060606 | S17: 61.41414141
A18: 2015-12-11 | B18: 106399 | C18: 12 | E18: 2013-04-30 | F18: 15 | G18: 31.92 | H18: 0.98 | J18: 2.34962406 | K18: 4.69924812 | L18: 7.04887218 | M18: 9.398496241 | O18: 7.653061224 | P18: 15.30612245 | Q18: 30.6122449 | R18: 45.91836735 | S18: 61.2244898
A19: 2015-12-18 | B19: 83203 | C19: 11.95 | E19: 2013-05-31 | F19: 16.6 | G19: 35.33 | H19: 1.08 | J19: 2.349278234 | K19: 4.698556468 | L19: 7.047834701 | M19: 9.397112935 | O19: 7.685185185 | P19: 15.37037037 | Q19: 30.74074074 | R19: 46.11111111 | S19: 61.48148148
A20: 2015-12-25 | B20: 57539 | C20: 12.15 | E20: 2013-06-28 | F20: 15.6 | G20: 28.85 | H20: 0.98 | J20: 2.703639515 | K20: 5.407279029 | L20: 8.110918544 | M20: 10.81455806 | O20: 7.959183673 | P20: 15.91836735 | Q20: 31.83673469 | R20: 47.75510204 | S20: 63.67346939
A21: 2015-12-31 | B21: 34113 | C21: 12.15 | E21: 2013-07-31 | F21: 15.65 | G21: 28.95 | H21: 0.98 | J21: 2.702936097 | K21: 5.405872193 | L21: 8.10880829 | M21: 10.81174439 | O21: 7.984693878 | P21: 15.96938776 | Q21: 31.93877551 | R21: 47.90816327 | S21: 63.87755102
A22: 2016-01-08 | B22: 129011 | C22: 11.2 | E22: 2013-08-30 | F22: 15 | G22: 27.74 | H22: 0.94 | J22: 2.703677001 | K22: 5.407354001 | L22: 8.111031002 | M22: 10.814708 | O22: 7.978723404 | P22: 15.95744681 | Q22: 31.91489362 | R22: 47.87234043 | S22: 63.82978723
A23: 2016-01-15 | B23: 160930 | C23: 10.15 | E23: 2013-09-30 | F23: 15.15 | G23: 28.02 | H23: 0.95 | J23: 2.703426124 | K23: 5.406852248 | L23: 8.110278373 | M23: 10.8137045 | O23: 7.973684211 | P23: 15.94736842 | Q23: 31.89473684 | R23: 47.84210526 | S23: 63.78947368
A24: 2016-01-22 | B24: 136621 | C24: 10.2 | E24: 2013-10-31 | F24: 16 | G24: 24.6 | H24: 1.02 | J24: 3.25203252 | K24: 6.504065041 | L24: 9.756097561 | M24: 13.00813008 | O24: 7.843137255 | P24: 15.68627451 | Q24: 31.37254902 | R24: 47.05882353 | S24: 62.74509804
A25: 2016-01-30 | B25: 230839 | C25: 10.8 | E25: 2013-11-29 | F25: 16.05 | G25: 24.67 | H25: 1.02 | J25: 3.252938792 | K25: 6.505877584 | L25: 9.758816376 | M25: 13.01175517 | O25: 7.867647059 | P25: 15.73529412 | Q25: 31.47058824 | R25: 47.20588235 | S25: 62.94117647
A26: 2016-02-03 | B26: 86232 | C26: 10.55 | E26: 2013-12-31 | F26: 17.8 | G26: 24.7 | H26: 1.13 | J26: 3.603238866 | K26: 7.206477733 | L26: 10.8097166 | M26: 14.41295547 | O26: 7.876106195 | P26: 15.75221239 | Q26: 31.50442478 | R26: 47.25663717 | S26: 63.00884956
A27: 2016-02-19 | B27: 132303 | C27: 10.8 | E27: 2014-01-27 | F27: 16.85 | G27: 23.38 | H27: 1.07 | J27: 3.603507271 | K27: 7.207014542 | L27: 10.81052181 | M27: 14.41402908 | O27: 7.873831776 | P27: 15.74766355 | Q27: 31.4953271 | R27: 47.24299065 | S27: 62.99065421
A28: 2016-02-26 | B28: 111531 | C28: 10.7 | E28: 2014-02-27 | F28: 15.9 | G28: 22.06 | H28: 1.01 | J28: 3.603807797 | K28: 7.207615594 | L28: 10.81142339 | M28: 14.41523119 | O28: 7.871287129 | P28: 15.74257426 | Q28: 31.48514851 | R28: 47.22772277 | S28: 62.97029703
A29: 2016-03-04 | B29: 205365 | C29: 11.9 | E29: 2014-03-31 | F29: 15.35 | G29: 21.3 | H29: 0.97 | J29: 3.603286385 | K29: 7.20657277 | L29: 10.80985915 | M29: 14.41314554 | O29: 7.912371134 | P29: 15.82474227 | Q29: 31.64948454 | R29: 47.4742268 | S29: 63.29896907
A30: 2016-03-11 | B30: 167547 | C30: 11.9 | E30: 2014-04-30 | F30: 15.05 | G30: 20.88 | H30: 0.95 | J30: 3.603927203 | K30: 7.207854406 | L30: 10.81178161 | M30: 14.41570881 | O30: 7.921052632 | P30: 15.84210526 | Q30: 31.68421053 | R30: 47.52631579 | S30: 63.36842105
A31: 2016-03-18 | B31: 140804 | C31: 11.8 | E31: 2014-05-30 | F31: 15.65 | G31: 21.71 | H31: 0.99 | J31: 3.604329802 | K31: 7.208659604 | L31: 10.81298941 | M31: 14.41731921 | O31: 7.904040404 | P31: 15.80808081 | Q31: 31.61616162 | R31: 47.42424242 | S31: 63.23232323
A32: 2016-03-25 | B32: 105018 | C32: 11.5 | E32: 2014-06-30 | F32: 16.15 | G32: 16.48 | H32: 0.98 | J32: 4.899878641 | K32: 9.799757282 | L32: 14.69963592 | M32: 19.59951456 | O32: 8.239795918 | P32: 16.47959184 | Q32: 32.95918367 | R32: 49.43877551 | S32: 65.91836735
A33: 2016-04-01 | B33: 94753 | C33: 11.35 | E33: 2014-07-31 | F33: 16.8 | G33: 17.14 | H33: 1.02 | J33: 4.900816803 | K33: 9.801633606 | L33: 14.70245041 | M33: 19.60326721 | O33: 8.235294118 | P33: 16.47058824 | Q33: 32.94117647 | R33: 49.41176471 | S33: 65.88235294
A34: 2016-04-08 | B34: 114910 | C34: 10.85 | E34: 2014-08-29 | F34: 16.1 | G34: 16.84 | H34: 1.01 | J34: 4.780285036 | K34: 9.560570071 | L34: 14.34085511 | M34: 19.12114014 | O34: 7.97029703 | P34: 15.94059406 | Q34: 31.88118812 | R34: 47.82178218 | S34: 63.76237624
A35: 2016-04-15 | B35: 129164 | C35: 10.95 | E35: 2014-09-30 | F35: 15 | G35: 15.69 | H35: 0.94 | J35: 4.780114723 | K35: 9.560229446 | L35: 14.34034417 | M35: 19.12045889 | O35: 7.978723404 | P35: 15.95744681 | Q35: 31.91489362 | R35: 47.87234043 | S35: 63.82978723
A36: 2016-04-22 | B36: 78667 | C36: 10.75 | E36: 2014-10-31 | F36: 15.3 | G36: 9.55 | H36: 0.95 | J36: 8.010471204 | K36: 16.02094241 | L36: 24.03141361 | M36: 32.04188482 | O36: 8.052631579 | P36: 16.10526316 | Q36: 32.21052632 | R36: 48.31578947 | S36: 64.42105263
A37: 2016-04-29 | B37: 98967 | C37: 10.65 | E37: 2014-11-28 | F37: 15.2 | G37: 9.48 | H37: 0.94 | J37: 8.016877637 | K37: 16.03375527 | L37: 24.05063291 | M37: 32.06751055 | O37: 8.085106383 | P37: 16.17021277 | Q37: 32.34042553 | R37: 48.5106383 | S37: 64.68085106
A38: 2016-05-06 | B38: 121795 | C38: 10.15 | E38: 2014-12-31 | F38: 15.4 | G38: 9.72 | H38: 0.94 | J38: 7.9218107 | K38: 15.8436214 | L38: 23.7654321 | M38: 31.6872428 | O38: 8.191489362 | P38: 16.38297872 | Q38: 32.76595745 | R38: 49.14893617 | S38: 65.53191489
A39: 2016-05-13 | B39: 175342 | C39: 10.15 | E39: 2015-01-30 | F39: 15.2 | G39: 9.6 | H39: 0.93 | J39: 7.916666667 | K39: 15.83333333 | L39: 23.75 | M39: 31.66666667 | O39: 8.172043011 | P39: 16.34408602 | Q39: 32.68817204 | R39: 49.03225806 | S39: 65.37634409
A40: 2016-05-20 | B40: 136834 | C40: 10.15 | E40: 2015-02-26 | F40: 15.9 | G40: 10.04 | H40: 0.97 | J40: 7.918326693 | K40: 15.83665339 | L40: 23.75498008 | M40: 31.67330677 | O40: 8.195876289 | P40: 16.39175258 | Q40: 32.78350515 | R40: 49.17525773 | S40: 65.56701031
A41: 2016-05-27 | B41: 88919 | C41: 10.7 | E41: 2015-03-31 | F41: 15.75 | G41: 9.95 | H41: 0.97 | J41: 7.914572864 | K41: 15.82914573 | L41: 23.74371859 | M41: 31.65829146 | O41: 8.118556701 | P41: 16.2371134 | Q41: 32.4742268 | R41: 48.71134021 | S41: 64.94845361
A42: 2016-06-04 | B42: 516129 | C42: 10.65 | E42: 2015-04-30 | F42: 17.85 | G42: 11.27 | H42: 1.09 | J42: 7.919254658 | K42: 15.83850932 | L42: 23.75776398 | M42: 31.67701863 | O42: 8.188073394 | P42: 16.37614679 | Q42: 32.75229358 | R42: 49.12844037 | S42: 65.50458716
A43: 2016-06-08 | B43: 99002 | C43: 10.75 | E43: 2015-05-29 | F43: 18 | G43: 11.37 | H43: 1.1 | J43: 7.915567282 | K43: 15.83113456 | L43: 23.74670185 | M43: 31.66226913 | O43: 8.181818182 | P43: 16.36363636 | Q43: 32.72727273 | R43: 49.09090909 | S43: 65.45454545
E44: 2015-06-30 | F44: 16.7 | G44: 9.98 | H44: 0.97 | J44: 8.366733467 | K44: 16.73346693 | L44: 25.1002004 | M44: 33.46693387 | O44: 8.608247423 | P44: 17.21649485 | Q44: 34.43298969 | R44: 51.64948454 | S44: 68.86597938
E45: 2015-07-31 | F45: 15 | G45: 9.23 | H45: 0.9 | J45: 8.12567714 | K45: 16.25135428 | L45: 24.37703142 | M45: 32.50270856 | O45: 8.333333333 | P45: 16.66666667 | Q45: 33.33333333 | R45: 50 | S45: 66.66666667
E46: 2015-08-31 | F46: 13.05 | G46: 8.24 | H46: 0.8 | J46: 7.91868932 | K46: 15.83737864 | L46: 23.75606796 | M46: 31.67475728 | O46: 8.15625 | P46: 16.3125 | Q46: 32.625 | R46: 48.9375 | S46: 65.25
E47: 2015-09-30 | F47: 12.2 | G47: 7.7 | H47: 0.75 | J47: 7.922077922 | K47: 15.84415584 | L47: 23.76623377 | M47: 31.68831169 | O47: 8.133333333 | P47: 16.26666667 | Q47: 32.53333333 | R47: 48.8 | S47: 65.06666667
E48: 2015-10-30 | F48: 12.8 | G48: 11.12 | H48: 0.78 | J48: 5.755395683 | K48: 11.51079137 | L48: 17.26618705 | M48: 23.02158273 | O48: 8.205128205 | P48: 16.41025641 | Q48: 32.82051282 | R48: 49.23076923 | S48: 65.64102564
E49: 2015-11-30 | F49: 12.35 | G49: 10.73 | H49: 0.75 | J49: 5.754892824 | K49: 11.50978565 | L49: 17.26467847 | M49: 23.0195713 | O49: 8.233333333 | P49: 16.46666667 | Q49: 32.93333333 | R49: 49.4 | S49: 65.86666667
E50: 2015-12-31 | F50: 12.15 | G50: 10.01 | H50: 0.72 | J50: 6.068931069 | K50: 12.13786214 | L50: 18.20679321 | M50: 24.27572428 | O50: 8.4375 | P50: 16.875 | Q50: 33.75 | R50: 50.625 | S50: 67.5
E51: 2016-01-30 | F51: 10.8 | G51: 8.9 | H51: 0.64 | J51: 6.06741573 | K51: 12.13483146 | L51: 18.20224719 | M51: 24.26966292 | O51: 8.4375 | P51: 16.875 | Q51: 33.75 | R51: 50.625 | S51: 67.5
E52: 2016-02-26 | F52: 10.7 | G52: 8.82 | H52: 0.63 | J52: 6.065759637 | K52: 12.13151927 | L52: 18.19727891 | M52: 24.26303855 | O52: 8.492063492 | P52: 16.98412698 | Q52: 33.96825397 | R52: 50.95238095 | S52: 67.93650794
E53: 2016-03-31 | F53: 11.5 | G53: 10.62 | H53: 0.76 | J53: 5.414312618 | K53: 10.82862524 | L53: 16.24293785 | M53: 21.65725047 | O53: 7.565789474 | P53: 15.13157895 | Q53: 30.26315789 | R53: 45.39473684 | S53: 60.52631579
E54: 2016-04-29 | F54: 10.65 | G54: 9.83 | H54: 0.71 | J54: 5.417090539 | K54: 10.83418108 | L54: 16.25127162 | M54: 21.66836216 | O54: 7.5 | P54: 15 | Q54: 30 | R54: 45 | S54: 60
E55: 2016-05-31 | F55: 11 | G55: 10.15 | H55: 0.73 | J55: 5.418719212 | K55: 10.83743842 | L55: 16.25615764 | M55: 21.67487685 | O55: 7.534246575 | P55: 15.06849315 | Q55: 30.1369863 | R55: 45.20547945 | S55: 60.2739726

Sheet 月盈餘
A1: 2885 元大金 | B1: 單位:佰萬
A2: 年月 | B2: 以合併為主單月稅後盈餘(千元) | C2: 以合併為主累計稅後盈餘(千元) | D2: 以合併為主單月稅前盈餘(千元) | E2: 以合併為主累計稅前盈餘(千元) | F2: 合併盈餘(Y/N)
A3: 2016-05-31 | B3: 1039 | C3: 5510 | D3: 1416.179 | E3: 6752.689 | H3: =IF(A3="","",YEAR(A3)&MONTH(A3)) -> 20165 | I3: =IF(B3="","",B3) -> 1039 | L3: =YEAR(A39) -> 2013 | M3: =YEAR(A27) -> 2014 | N3: =YEAR(A15) -> 2015 | O3: =YEAR(A3) -> 2016
A4: 2016-04-29 | B4: 1006 | C4: 4471 | D4: 1106.655 | E4: 5336.51 | H4: =IF(A4="","",YEAR(A4)&MONTH(A4)) -> 20164 | I4: =IF(B4="","",B4) -> 1006 | K4: 1 | L4: =IF(ISERROR(VLOOKUP($L$3&K4,$H:$I,2,0)),"",VLOOKUP($L$3&K4,$H:$I,2,0)) -> 864 | M4: =IF(ISERROR(VLOOKUP($M$3&K4,$H:$I,2,0)),"",VLOOKUP($M$3&K4,$H:$I,2,0)) -> 838 | N4: =IF(ISERROR(VLOOKUP($N$3&K4,$H:$I,2,0)),"",VLOOKUP($N$3&K4,$H:$I,2,0)) -> 1190 | O4: =IF(ISERROR(VLOOKUP($O$3&K4,$H:$I,2,0)),"",VLOOKUP($O$3&K4,$H:$I,2,0)) -> 913
A5: 2016-03-31 | B5: 1751 | C5: 3312.457 | D5: 2104.681 | E5: 4077.143 | H5: 20163 | I5: 1751 | K5: 2 | L5: 332 | M5: 925 | N5: 963 | O5: 801
A6: 2016-02-26 | B6: 801 | C6: 1714 | D6: 799.093 | E6: 2125.174 | H6: 20162 | I6: 801 | K6: 3 | L6: 433 | M6: 1719 | N6: 1900 | O6: 1751
A7: 2016-01-30 | B7: 913 | C7: 913 | D7: 1326.081 | E7: 1326.081 | H7: 20161 | I7: 913 | K7: 4 | L7: 447 | M7: 568 | N7: 1406 | O7: 1006
A8: 2015-12-31 | B8: -558 | C8: 10814.545 | D8: -505.043 | E8: 13116.553 | H8: 201512 | I8: -558 | K8: 5 | L8: 700 | M8: 964 | N8: 1104 | O8: 1039
A9: 2015-11-30 | B9: 437 | C9: 11461 | D9: 520.602 | E9: 13732.868 | H9: 201511 | I9: 437 | K9: 6 | L9: 403 | M9: 1023 | N9: 1022
A10: 2015-10-30 | B10: 600 | C10: 11024 | D10: 704.427 | E10: 13212.267 | H10: 201510 | I10: 600 | K10: 7 | L10: 1105 | M10: 901 | N10: 1423
A11: 2015-09-30 | B11: 916 | C11: 10424.23 | D11: 1622.135 | E11: 12507.84 | H11: 20159 | I11: 916 | K11: 8 | L11: 561 | M11: 6350 | N11: 500
A12: 2015-08-31 | B12: 500 | C12: 9508 | D12: 189.657 | E12: 10885.705 | H12: 20158 | I12: 500 | K12: 9 | L12: 702 | M12: 611 | N12: 916
A13: 2015-07-31 | B13: 1423 | C13: 9008 | D13: 1932.688 | E13: 10696.047 | H13: 20157 | I13: 1423 | K13: 10 | L13: 803 | M13: 1215 | N13: 600
A14: 2015-06-30 | B14: 1022 | C14: 7585.412 | D14: 1532.738 | E14: 8763.36 | H14: 20156 | I14: 1022 | K14: 11 | L14: 512 | M14: 903 | N14: 437
A15: 2015-05-29 | B15: 1104 | C15: 6564 | D15: 1470.407 | E15: 7230.621 | H15: 20155 | I15: 1104 | K15: 12 | L15: 876 | M15: 523 | N15: -558
A16: 2015-04-30 | B16: 1406 | C16: 5459 | D16: 1070.913 | E16: 5760.214 | H16: 20154 | I16: 1406
A17: 2015-03-31 | B17: 1900 | C17: 4107.975 | D17: 2063.633 | E17: 4688.98 | H17: 20153 | I17: 1900
A18: 2015-02-26 | B18: 963 | C18: 2153 | D18: 1210.297 | E18: 2692.543 | H18: 20152 | I18: 963
A19: 2015-01-30 | B19: 1190 | C19: 1190 | D19: 1482.245 | E19: 1482.245 | H19: 20151 | I19: 1190
A20: 2014-12-31 | B20: 523 | C20: 16474.314 | D20: 461.212 | E20: 17890.78 | H20: 201412 | I20: 523
A21: 2014-11-28 | B21: 903 | C21: 16015 | D21: 912.308 | E21: 17543.934 | H21: 201411 | I21: 903
A22: 2014-10-31 | B22: 1215 | C22: 15113 | D22: 1345.708 | E22: 16631.626 | H22: 201410 | I22: 1215
A23: 2014-09-30 | B23: 611 | C23: 13897.657 | D23: 706.579 | E23: 15286.316 | H23: 20149 | I23: 611
A24: 2014-08-29 | B24: 6350 | C24: 13287 | D24: 6445.329 | E24: 14579.339 | H24: 20148 | I24: 6350
A25: 2014-07-31 | B25: 901 | C25: 6937 | D25: 1025.47 | E25: 8134.009 | H25: 20147 | I25: 901
A26: 2014-06-30 | B26: 1023 | C26: 11721.675 | D26: 1043.165 | E26: 12778.827 | H26: 20146 | I26: 1023
A27: 2014-05-30 | B27: 964 | C27: 5013 | D27: 1197.649 | E27: 6065.374 | H27: 20145 | I27: 964
A28: 2014-04-30 | B28: 568 | C28: 4049 | D28: 745.406 | E28: 4867.725 | H28: 20144 | I28: 568
A29: 2014-03-31 | B29: 1719 | C29: 3607.646 | D29: 2106.766 | E29: 4248.693 | H29: 20143 | I29: 1719
A30: 2014-02-27 | B30: 925 | C30: 1763 | D30: 973.26 | E30: 2015.553 | H30: 20142 | I30: 925
A31: 2014-01-27 | B31: 838 | C31: 838 | D31: 1042.293 | E31: 1042.293 | H31: 20141 | I31: 838
A32: 2013-12-31 | B32: 876 | C32: 7709.994 | D32: 926.584 | E32: 9096.871 | H32: 201312 | I32: 876
A33: 2013-11-29 | B33: 512 | C33: 6862 | D33: 596.218 | E33: 8187.602 | H33: 201311 | I33: 512
A34: 2013-10-31 | B34: 803 | C34: 6350 | D34: 878.066 | E34: 7591.384 | H34: 201310 | I34: 803
A35: 2013-09-30 | B35: 702 | C35: 5547.282 | D35: 748.54 | E35: 6713.318 | H35: 20139 | I35: 702
A36: 2013-08-30 | B36: 561 | C36: 4845 | D36: 663.502 | E36: 5964.778 | H36: 20138 | I36: 561
A37: 2013-07-31 | B37: 1105 | C37: 4285 | D37: 1256.913 | E37: 5301.276 | H37: 20137 | I37: 1105
A38: 2013-06-28 | B38: 403 | C38: 3179.135 | D38: 623.203 | E38: 4044.362 | H38: 20136 | I38: 403
A39: 2013-05-31 | B39: 700 | C39: 2776 | D39: 853.603 | E39: 3421.159 | H39: 20135 | I39: 700
A40: 2013-04-30 | B40: 447 | C40: 2076 | D40: 540.621 | E40: 2567.556 | H40: 20134 | I40: 447
A41: 2013-03-29 | B41: 433 | C41: 1619.851 | D41: 556.332 | E41: 2014.282 | H41: 20133 | I41: 433
A42: 2013-02-27 | B42: 332 | C42: 1196 | D42: 411.462 | E42: 1470.602 | H42: 20132 | I42: 332
A43: 2013-01-31 | B43: 864 | C43: 864 | D43: 1059.14 | E43: 1059.14 | H43: 20131 | I43: 864
I44: =IF(B44="","",B44) -> 

Sheet 十大股東
A1: 2885 元大金
A2: 年月日 | B2: 持股人姓名 | C2: 身份別 | D2: 持股數 | E2: 持股率 | F2: 選任持股比率 | G2: 質押╱持股數％ | H2: 十大股東
A3: 2016-05-31 | B3: 尊爵投資(股) 方俊龍 | C3: 董事 | D3: 404221 | E3: 3.37 | F3: 3.88 | G3: 32.12 | H3: 1
A4: 2016-05-31 | B4: 尊爵投資(股) 馬維辰 | C4: 董事 | D4: 404221 | E4: 3.37 | F4: 3.88 | G4: 32.12 | H4: 1
A5: 2016-05-31 | B5: 渣打梵加德指 渣打梵加德指 | C5: 大股東-年報或說明書(2015/09)揭露 | D5: 175771 | E5: 1.46 | F5: 0 | G5: 0 | H5: 10
A6: 2016-05-31 | B6: 元宏投資(股) 元宏投資 | C6: 大股東-年報或說明書(2015/09)揭露 | D6: 352374 | E6: 2.94 | F6: 0 | G6: 0 | H6: 2
A7: 2016-05-31 | B7: 元翔投資(股) 元翔投資 | C7: 大股東-年報或說明書(2015/09)揭露 | D7: 297159 | E7: 2.48 | F7: 0 | G7: 0 | H7: 3
A8: 2016-05-31 | B8: 裕陽投資(股) 裕陽投資 | C8: 大股東-年報或說明書(2015/09)揭露 | D8: 290578 | E8: 2.42 | F8: 0 | G8: 0 | H8: 4
A9: 2016-05-31 | B9: 兆豐管兆豐香 兆豐管兆豐香 | C9: 大股東-年報或說明書(2015/09)揭露 | D9: 288310 | E9: 2.4 | F9: 0 | G9: 0 | H9: 5
A10: 2016-05-31 | B10: 臺銀(股) 臺銀 | C10: 大股東-年報或說明書(2015/09)揭露 | D10: 242813 | E10: 2.02 | F10: 0 | G10: 0 | H10: 6
A11: 2016-05-31 | B11: 聯達投資(股) 聯達投資 | C11: 大股東-年報或說明書(2015/09)揭露 | D11: 237460 | E11: 1.98 | F11: 0 | G11: 0 | H11: 7
A12: 2016-05-31 | B12: 花旗台新加坡 花旗台新加坡 | C12: 大股東-年報或說明書(2015/09)揭露 | D12: 227905 | E12: 1.9 | F12: 0 | G12: 0 | H12: 8
A13: 2016-05-31 | B13: 元大託財產戶 元大託財產戶 | C13: 大股東-年報或說明書(2015/09)揭露 | D13: 178677 | E13: 1.49 | F13: 0 | G13: 0 | H13: 9

Sheet 銀行_基本資料
A1: 5852 元大銀
A2: 董事長 | B2: 總經理 | C2: 發言人 | D2: 實收資本額(元) | E2: 電話 | F2: 公司地址 | G2: TEJ子產業名 | H2: 主要產品比重 | I2: 員工人數
A3: 范志強 | B3: 張財育 | C3: 莊有德(執行副總經理) | D3: 39183617240 | E3: 02-21736699 | F3: 台北市大安區敦化南路一段66號1-3 樓 | G3: M28A 本國銀行 | H3: 2014/12:淨利息收益(61.4%),手續費收入(18.1%),透過損益按FV衡量(7.4%) | I3: 2754
A8: 標記 | B8: =IF(A1=綜合報表!E1,"無資料","OK") -> OK

Sheet 銀行_月營收
A1: 5852 元大銀 | B1: 單位:佰萬
A2: 年月 | B2: 以合併為主單月稅後盈餘(千元) | C2: 以合併為主累計稅後盈餘(千元) | D2: 以合併為主單月稅前盈餘(千元) | E2: 以合併為主累計稅前盈餘(千元) | F2: 合併盈餘(Y/N)
A3: 2016-05-31 | B3: 493 | C3: 2450 | D3: 553.671 | E3: 2802.834 | I3: =IF(A3="","",YEAR(A3)&MONTH(A3)) -> 20165 | J3: =IF(B3="","",B3) -> 493 | M3: =YEAR(A39) -> 2013 | N3: =YEAR(A27) -> 2014 | O3: =YEAR(A15) -> 2015 | P3: =YEAR(A3) -> 2016
A4: 2016-04-29 | B4: 507 | C4: 1957 | D4: 580.183 | E4: 2249.163 | I4: =IF(A4="","",YEAR(A4)&MONTH(A4)) -> 20164 | J4: =IF(B4="","",B4) -> 507 | L4: 1 | M4: =IF(ISERROR(VLOOKUP($M$3&L4,$I:$J,2,0)),"",VLOOKUP($M$3&L4,$I:$J,2,0)) -> 265 | N4: =IF(ISERROR(VLOOKUP($N$3&L4,$I:$J,2,0)),"",VLOOKUP($N$3&L4,$I:$J,2,0)) -> 351 | O4: =IF(ISERROR(VLOOKUP($O$3&L4,$I:$J,2,0)),"",VLOOKUP($O$3&L4,$I:$J,2,0)) -> 422 | P4: =IF(ISERROR(VLOOKUP($P$3&L4,$I:$J,2,0)),"",VLOOKUP($P$3&L4,$I:$J,2,0)) -> 481
A5: 2016-03-31 | B5: 537 | C5: 1450.078 | D5: 614.155 | E5: 1668.98 | I5: 20163 | J5: 537 | L5: 2 | M5: 210 | N5: 371 | O5: 327 | P5: 432
A6: 2016-02-26 | B6: 432 | C6: 913 | D6: 498.689 | E6: 1054.825 | I6: 20162 | J6: 432 | L6: 3 | M6: 229 | N6: 515 | O6: 567 | P6: 537
A7: 2016-01-30 | B7: 481 | C7: 481 | D7: 556.136 | E7: 556.136 | I7: 20161 | J7: 481 | L7: 4 | M7: 272 | N7: 340 | O7: 413 | P7: 507
A8: 2015-12-31 | B8: 40 | C8: 4949.974 | D8: 38.188 | E8: 5640.072 | I8: 201512 | J8: 40 | L8: 5 | M8: 283 | N8: 390 | O8: 541 | P8: 493
A9: 2015-11-30 | B9: 441 | C9: 4911 | D9: 502.733 | E9: 5607.904 | I9: 201511 | J9: 441 | L9: 6 | M9: 309 | N9: 358 | O9: 405
A10: 2015-10-30 | B10: 483 | C10: 4470 | D10: 561.066 | E10: 5105.171 | I10: 201510 | J10: 483 | L10: 7 | M10: 320 | N10: 502 | O10: 515
A11: 2015-09-30 | B11: 389 | C11: 3986.486 | D11: 503.543 | E11: 4539.352 | I11: 20159 | J11: 389 | L11: 8 | M11: 205 | N11: 365 | O11: 408
A12: 2015-08-31 | B12: 408 | C12: 3597 | D12: 483.64 | E12: 4040.562 | I12: 20158 | J12: 408 | L12: 9 | M12: 346 | N12: 417 | O12: 389
A13: 2015-07-31 | B13: 515 | C13: 3189 | D13: 638.837 | E13: 3556.922 | I13: 20157 | J13: 515 | L13: 10 | M13: 221 | N13: 304 | O13: 483
A14: 2015-06-30 | B14: 405 | C14: 2674.285 | D14: 515.414 | E14: 2918.085 | I14: 20156 | J14: 405 | L14: 11 | M14: 139 | N14: 370 | O14: 441
A15: 2015-05-29 | B15: 541 | C15: 2270 | D15: 520.254 | E15: 2402.671 | I15: 20155 | J15: 541 | L15: 12 | M15: 254 | N15: 265 | O15: 40
A16: 2015-04-30 | B16: 413 | C16: 1728 | D16: 432.111 | E16: 1882.417 | I16: 20154 | J16: 413
A17: 2015-03-31 | B17: 567 | C17: 1315.622 | D17: 613.045 | E17: 1450.497 | I17: 20153 | J17: 567
A18: 2015-02-26 | B18: 327 | C18: 749 | D18: 358.112 | E18: 837.261 | I18: 20152 | J18: 327
A19: 2015-01-30 | B19: 422 | C19: 422 | D19: 479.149 | E19: 479.149 | I19: 20151 | J19: 422
A20: 2014-12-31 | B20: 265 | C20: 4546.935 | D20: 298.452 | E20: 5010.738 | I20: 201412 | J20: 265
A21: 2014-11-28 | B21: 370 | C21: 4282 | D21: 362.849 | E21: 4714.447 | I21: 201411 | J21: 370
A22: 2014-10-31 | B22: 304 | C22: 3912 | D22: 355.312 | E22: 4351.598 | I22: 201410 | J22: 304
A23: 2014-09-30 | B23: 417 | C23: 3607.478 | D23: 474.811 | E23: 3995.455 | I23: 20149 | J23: 417
A24: 2014-08-29 | B24: 365 | C24: 3191 | D24: 400.63 | E24: 3521.475 | I24: 20148 | J24: 365
A25: 2014-07-31 | B25: 502 | C25: 2826 | D25: 546.958 | E25: 3120.845 | I25: 20147 | J25: 502
A26: 2014-06-30 | B26: 358 | C26: 2324.024 | D26: 413.577 | E26: 2573.888 | I26: 20146 | J26: 358
A27: 2014-05-30 | B27: 390 | C27: 1967 | D27: 430.408 | E27: 2160.31 | I27: 20145 | J27: 390
A28: 2014-04-30 | B28: 340 | C28: 1576 | D28: 401.994 | E28: 1729.902 | I28: 20144 | J28: 340
A29: 2014-03-31 | B29: 515 | C29: 1236.859 | D29: 554.592 | E29: 1327.909 | I29: 20143 | J29: 515
A30: 2014-02-27 | B30: 371 | C30: 722 | D30: 380.151 | E30: 773.317 | I30: 20142 | J30: 371
A31: 2014-01-27 | B31: 351 | C31: 351 | D31: 393.165 | E31: 393.165 | I31: 20141 | J31: 351
A32: 2013-12-31 | B32: 254 | C32: 3052.205 | D32: 264.804 | E32: 3408.722 | I32: 201312 | J32: 254
A33: 2013-11-29 | B33: 139 | C33: 2798 | D33: 163.15 | E33: 3143.918 | I33: 201311 | J33: 139
A34: 2013-10-31 | B34: 221 | C34: 2659 | D34: 233.524 | E34: 2980.768 | I34: 201310 | J34: 221
A35: 2013-09-30 | B35: 346 | C35: 2438.33 | D35: 394.253 | E35: 2747.245 | I35: 20139 | J35: 346
A36: 2013-08-30 | B36: 205 | C36: 2092 | D36: 232.738 | E36: 2352.991 | I36: 20138 | J36: 205
A37: 2013-07-31 | B37: 320 | C37: 1887 | D37: 365.561 | E37: 2120.253 | I37: 20137 | J37: 320
A38: 2013-06-28 | B38: 309 | C38: 1566.456 | D38: 308.479 | E38: 1754.693 | I38: 20136 | J38: 309
A39: 2013-05-31 | B39: 283 | C39: 1258 | D39: 321.885 | E39: 1446.214 | I39: 20135 | J39: 283
A40: 2013-04-30 | B40: 272 | C40: 975 | D40: 301.175 | E40: 1124.328 | I40: 20134 | J40: 272
A41: 2013-03-29 | B41: 229 | C41: 703.201 | D41: 265.398 | E41: 823.153 | I41: 20133 | J41: 229
A42: 2013-02-27 | B42: 210 | C42: 474 | D42: 237.694 | E42: 557.755 | I42: 20132 | J42: 210
A43: 2013-01-31 | B43: 265 | C43: 265 | D43: 320.062 | E43: 320.062 | I43: 20131 | J43: 265
J44: =IF(B44="","",B44) -> 

Sheet 銀行_備呆&逾放
A1: 5852 元大銀 | I1: Z7777 本國小計 | J1: Z7777 本國小計 | K1: Z7777 本國小計 | L1: Z7777 本國小計 | N1: =A1 -> 5852 元大銀 | O1: =L1 -> Z7777 本國小計 | R1: =MIDB(A1,FIND(" ",A1)+1,20) -> 元大銀 | S1: =MIDB(L1,FIND(" ",L1)+1,20) -> 本國小計 | T1: =MIDB(A1,FIND(" ",A1)+1,20) -> 元大銀 | U1: =MIDB(O1,FIND(" ",O1)+1,20) -> 本國小計
A2: 年月 | B2: 放款 | C2: 逾期放款 | D2: 備抵呆帳 | E2: 逾放比率 | H2: 年月 | I2: 放款 | J2: 逾期放款 | K2: 備抵呆帳 | L2: 逾放比率 | N2: 呆帳覆蓋率 | O2: 呆帳覆蓋率 | R2: =E2 -> 逾放比率 | S2: =L2 -> 逾放比率 | T2: =N2 -> 呆帳覆蓋率 | U2: =O2 -> 呆帳覆蓋率
A3: 2016-04-29 | B3: 481214 | C3: 1080 | D3: 6258 | E3: 0.22 | H3: 2016-04-29 | I3: 25339186 | J3: 70050 | K3: 334813 | L3: 0.28 | N3: =D3/C3*100 -> 579.4444444 | O3: =K3/J3*100 -> 477.9628837 | Q3: =H3 -> 2016-04-29 | R3: =E3 -> 0.22 | S3: =L3 -> 0.28 | T3: =N3 -> 579.4444444 | U3: =O3 -> 477.9628837
A4: 2016-03-31 | B4: 488972 | C4: 963 | D4: 6373 | E4: 0.2 | H4: 2016-03-31 | I4: 25369824 | J4: 65748 | K4: 335679 | L4: 0.26 | N4: =D4/C4*100 -> 661.7860852 | O4: =K4/J4*100 -> 510.5539332 | Q4: =H4 -> 2016-03-31 | R4: 0.2 | S4: 0.26 | T4: =N4 -> 661.7860852 | U4: 510.5539332
A5: 2016-02-26 | B5: 484805 | C5: 955 | D5: 6336 | E5: 0.2 | H5: 2016-02-26 | I5: 25374287 | J5: 65300 | K5: 333546 | L5: 0.26 | N5: 663.4554974 | O5: 510.7901991 | Q5: 2016-02-26 | R5: 0.2 | S5: 0.26 | T5: 663.4554974 | U5: 510.7901991
A6: 2016-01-30 | B6: 482680 | C6: 886 | D6: 6349 | E6: 0.18 | H6: 2016-01-30 | I6: 25425952 | J6: 62437 | K6: 334589 | L6: 0.25 | N6: 716.5914221 | O6: 535.8825696 | Q6: 2016-01-30 | R6: 0.18 | S6: 0.25 | T6: 716.5914221 | U6: 535.8825696
A7: 2015-12-31 | B7: 483653 | C7: 884 | D7: 6368 | E7: 0.18 | H7: 2015-12-31 | I7: 25429098 | J7: 59859 | K7: 332476 | L7: 0.23 | N7: 720.361991 | O7: 555.4319317 | Q7: 2015-12-31 | R7: 0.18 | S7: 0.23 | T7: 720.361991 | U7: 555.4319317
A8: 2015-11-30 | B8: 483199 | C8: 896 | D8: 6079 | E8: 0.19 | H8: 2015-11-30 | I8: 25321912 | J8: 61672 | K8: 328709 | L8: 0.24 | N8: 678.4598214 | O8: 532.9955247 | Q8: 2015-11-30 | R8: 0.19 | S8: 0.24 | T8: 678.4598214 | U8: 532.9955247
A9: 2015-10-30 | B9: 483445 | C9: 908 | D9: 6031 | E9: 0.19 | H9: 2015-10-30 | I9: 25224440 | J9: 62692 | K9: 326472 | L9: 0.25 | N9: 664.2070485 | O9: 520.7554393 | Q9: 2015-10-30 | R9: 0.19 | S9: 0.25 | T9: 664.2070485 | U9: 520.7554393
A10: 2015-09-30 | B10: 483249 | C10: 916 | D10: 6002 | E10: 0.19 | H10: 2015-09-30 | I10: 25356368 | J10: 64007 | K10: 325878 | L10: 0.25 | N10: 655.2401747 | O10: 509.128689 | Q10: 2015-09-30 | R10: 0.19 | S10: 0.25 | T10: 655.2401747 | U10: 509.128689
A11: 2015-08-31 | B11: 487959 | C11: 910 | D11: 6021 | E11: 0.19 | H11: 2015-08-31 | I11: 25278936 | J11: 64509 | K11: 324444 | L11: 0.25 | N11: 661.6483516 | O11: 502.9437753 | Q11: 2015-08-31 | R11: 0.19 | S11: 0.25 | T11: 661.6483516 | U11: 502.9437753
A12: 2015-07-31 | B12: 481775 | C12: 919 | D12: 5936 | E12: 0.19 | H12: 2015-07-31 | I12: 25151931 | J12: 63365 | K12: 320197 | L12: 0.25 | N12: 645.9194777 | O12: 505.3215498 | Q12: 2015-07-31 | R12: 0.19 | S12: 0.25 | T12: 645.9194777 | U12: 505.3215498
A13: 2015-06-30 | B13: 474560 | C13: 954 | D13: 5823 | E13: 0.2 | H13: 2015-06-30 | I13: 24903201 | J13: 63029 | K13: 315862 | L13: 0.25 | N13: 610.3773585 | O13: 501.1375716 | Q13: 2015-06-30 | R13: 0.2 | S13: 0.25 | T13: 610.3773585 | U13: 501.1375716
A14: 2015-05-29 | B14: 467375 | C14: 968 | D14: 5691 | E14: 0.21 | H14: 2015-05-29 | I14: 24947275 | J14: 64884 | K14: 318289 | L14: 0.26 | N14: 587.9132231 | O14: 490.5508292 | Q14: 2015-05-29 | R14: 0.21 | S14: 0.26 | T14: 587.9132231 | U14: 490.5508292

Sheet 銀行_存放比與BIS
A1: 5852 元大銀
A2: 年月 | B2: 放款毛額 | C2: 存款及匯款 | D2: 第一類資本占風險性資產比 | E2: 資本適足率 (BIS) | F2: 合併(Y/N) | G2: 存放比 | K2: 第一類資本占風險性資產比 | L2: 資本適足率 (BIS) | M2: 存放比
A3: 2013-03-29 | B3: 384152445 | C3: 464227410 | F3: Y | G3: =B3/C3*100 -> 82.75091835 | J3: =IF(A3="",NA(),A3) -> 2013-03-29 | K3: =IF(D3="",NA(),D3) ->  | L3: =IF(E3="",NA(),E3) ->  | M3: =IF(G3="",NA(),G3) -> 82.75091835
A4: 2013-06-28 | B4: 384369856 | C4: 472012856 | D4: 10.47 | E4: 13.48 | F4: Y | G4: =B4/C4*100 -> 81.43207354 | J4: =IF(A4="",NA(),A4) -> 2013-06-28 | K4: 10.47 | L4: 13.48 | M4: 81.43207354
A5: 2013-09-30 | B5: 392633177 | C5: 501625738 | F5: Y | G5: 78.27213543 | J5: 2013-09-30 | M5: 78.27213543
A6: 2013-12-31 | B6: 402385412 | C6: 496482959 | D6: 10.18 | E6: 12.92 | F6: Y | G6: 81.04717487 | J6: 2013-12-31 | K6: 10.18 | L6: 12.92 | M6: 81.04717487
A7: 2014-03-31 | B7: 408633154 | C7: 523711591 | F7: Y | G7: 78.02637196 | J7: 2014-03-31 | M7: 78.02637196
A8: 2014-06-30 | B8: 419253819 | C8: 545275150 | D8: 9.52 | E8: 11.63 | F8: Y | G8: 76.88848813 | J8: 2014-06-30 | K8: 9.52 | L8: 11.63 | M8: 76.88848813
A9: 2014-09-30 | B9: 430979774 | C9: 563172242 | F9: Y | G9: 76.52716911 | J9: 2014-09-30 | M9: 76.52716911
A10: 2014-12-31 | B10: 451137723 | C10: 579860129 | D10: 9.19 | E10: 12.83 | F10: Y | J10: 2014-12-31 | K10: 1900-01-09T04:33:36 | L10: 1900-01-12T19:55:12
A11: 2015-03-31 | B11: 458307093 | C11: 625441214 | F11: Y | J11: 2015-03-31
A12: 2015-06-30 | B12: 475426887 | C12: 634945902 | D12: 8.44 | E12: 11.49 | F12: Y | J12: 2015-06-30 | K12: 1900-01-08T10:33:36 | L12: 1900-01-11T11:45:36
A13: 2015-09-30 | B13: 484326004 | C13: 651815736 | F13: Y | J13: 2015-09-30
A14: 2015-12-31 | B14: 484698354 | C14: 661165107 | D14: 9.49 | E14: 12.98 | F14: Y | J14: 2015-12-31 | K14: 1900-01-09T11:45:36 | L14: 1900-01-12T23:31:12
A15: 2016-03-31 | B15: 490157346 | C15: 659948208 | F15: Y | J15: 2016-03-31

Sheet 銀行_存放款
A1: 5852 元大銀
A2: Data Field | B2: 2016-03-31 | E2: Data Field | F2: 2016-04-29 | K2: =B2 -> 2016-03-31 | L2: =B2 -> 2016-03-31 | P2: =L2 -> 2016-03-31 | T2: =E2 -> Data Field | U2: =F2 -> 2016-04-29
A3: 放款- 公庫- 擔保 | B3: 0 | E3: 活期性存款 | F3: 266551 | I3: =RANK(K3,$K$3:$K$14,0) -> 7 | J3: =A3 -> 放款- 公庫- 擔保 | K3: =B3 -> 0 | L3: =B3/$B$15*100 -> 0 | N3: 1 | O3: =VLOOKUP(N3,$I:$L,2,0) -> 放款- 企金- 無擔保 | P3: =VLOOKUP(O3,$J:$L,3,0) -> 33.95409502 | T3: =E3 -> 活期性存款 | U3: =F3/$F$8*100 -> 40.12642297
A4: 放款- 公庫- 無擔保 | B4: 0 | E4: 定期性存款 | F4: 256706 | I4: =RANK(K4,$K$3:$K$14,0) -> 7 | J4: =A4 -> 放款- 公庫- 無擔保 | K4: 0 | L4: 0 | N4: 2 | O4: =VLOOKUP(N4,$I:$L,2,0) -> 放款- 企金- 擔保 | P4: =VLOOKUP(O4,$J:$L,3,0) -> 27.71821439 | T4: =E4 -> 定期性存款 | U4: =F4/$F$8*100 -> 38.64436275
A5: 放款- 金服- 擔保 | B5: 0 | E5: 外匯存款總和 | F5: 141021 | I5: 7 | J5: 放款- 金服- 擔保 | K5: 0 | L5: 0 | N5: 3 | O5: =VLOOKUP(N5,$I:$L,2,0) -> 放款- 消金- 住宅 | P5: =VLOOKUP(O5,$J:$L,3,0) -> 22.39244008 | T5: =E5 -> 外匯存款總和 | U5: =F5/$F$8*100 -> 21.22921427
A6: 放款- 金服- 無擔保 | B6: 0 | E6: 儲存會金 | I6: 7 | J6: 放款- 金服- 無擔保 | K6: 0 | L6: 0 | N6: 4 | O6: =VLOOKUP(N6,$I:$L,2,0) -> 放款- 消金- 擔保 | P6: =VLOOKUP(O6,$J:$L,3,0) -> 15.30692024 | T6: =E6 -> 儲存會金 | U6: =F6/$F$8*100 -> 0
A7: 放款- 企金- 擔保 | B7: 135862864 | E7: 公庫存款 | F7: 0 | I7: 2 | J7: 放款- 企金- 擔保 | K7: 135862864 | L7: 27.71821439 | N7: 5 | O7: =VLOOKUP(N7,$I:$L,2,0) -> 放款- 消金- 無擔 | P7: =VLOOKUP(O7,$J:$L,3,0) -> 0.3162700738 | T7: =E7 -> 公庫存款 | U7: =F7/$F$8*100 -> 0
A8: 放款- 企金- 無擔保 | B8: 166428491 | E8: 月底存款合計 | F8: 664278 | I8: 1 | J8: 放款- 企金- 無擔保 | K8: 166428491 | L8: 33.95409502
A9: 放款- 消金- 住宅 | B9: 109758190 | I9: 3 | J9: 放款- 消金- 住宅 | K9: 109758190 | L9: 22.39244008
A10: 放款- 消金- 現金卡 | B10: 0 | I10: 7 | J10: 放款- 消金- 現金卡 | K10: 0 | L10: 0
A11: 放款- 消金- 信貸 | B11: 1529586 | I11: 6 | J11: 放款- 消金- 信貸 | K11: 1529586 | L11: 0.3120602012
A12: 放款- 消金- 擔保 | B12: 75027994 | I12: 4 | J12: 放款- 消金- 擔保 | K12: 75027994 | L12: 15.30692024
A13: 放款- 消金- 無擔 | B13: 1550221 | I13: 5 | J13: 放款- 消金- 無擔 | K13: 1550221 | L13: 0.3162700738
A14: 放款- 其他放款業務 | B14: 0 | I14: 7 | J14: 放款- 其他放款業務 | K14: 0 | L14: 0
A15: 放款- 總額 | B15: 490157346

Sheet 銀行_NIM&NIS
A1: 5852 元大銀
A2: 年月 | B2: 淨利息收益率(NIM)_母公司 | C2: 存放款利差(NIS)_母公司
A3: 2013-12-31 | B3: 0.29 | C3: 1.51
A4: 2014-03-31 | B4: 0.29 | C4: 1.52
A5: 2014-06-30 | B5: 0.3 | C5: 1.56
A6: 2014-09-30 | B6: 0.29 | C6: 1.56
A7: 2014-12-31 | B7: 0.28 | C7: 1.49
A8: 2015-03-31 | B8: 0.26 | C8: 1.47
A9: 2015-06-30 | B9: 0.27 | C9: 1.5
A10: 2015-09-30 | B10: 0.28 | C10: 1.58
A11: 2015-12-31 | B11: 0.28 | C11: 1.6
A12: 2016-03-31 | B12: 0.27 | C12: 1.59

Sheet 保險_基本資料
A1: Z1435 元大人壽保險
A2: 董事長 | B2: 總經理 | C2: 發言人 | D2: 實收資本額(元) | E2: 電話 | F2: 公司地址 | G2: TEJ子產業名 | H2: 主要產品比重 | I2: 員工人數
A3: 江朝國 | B3: 高添福 | C3: 高添福(執行副總經理) | D3: 0 | E3: 02-27195277 | F3: 台北市松山區民生東路三段133 號14樓 | G3: M28I 壽險業 | H3: 2014/12:個人壽險保費收入(80%),利息收入(14.9%),兌換利益(11.5%) | I3: 995
A6: 標記 | B6: =IF(A1=綜合報表!F1,"無資料","資料") -> 資料

Sheet 保險_月營收
A1: Z1435 元大人壽保險 | B1: 單位:佰萬
A2: 年月 | B2: 以合併為主單月稅後盈餘(千元) | C2: 以合併為主累計稅後盈餘(千元) | D2: 以合併為主單月稅前盈餘(千元) | E2: 以合併為主累計稅前盈餘(千元) | F2: 合併盈餘(Y/N)
A3: 2016-05-31 | H3: =IF(A3="","",YEAR(A3)&MONTH(A3)) -> 20165 | I3: =IF(B3="","",B3) ->  | L3: =YEAR(A39) -> 2013 | M3: =YEAR(A27) -> 2014 | N3: =YEAR(A15) -> 2015 | O3: =YEAR(A3) -> 2016
A4: 2016-04-29 | H4: =IF(A4="","",YEAR(A4)&MONTH(A4)) -> 20164 | I4: =IF(B4="","",B4) ->  | K4: 1 | L4: =IF(ISERROR(VLOOKUP($L$3&K4,$H:$I,2,0)),"",VLOOKUP($L$3&K4,$H:$I,2,0)) ->  | M4: =IF(ISERROR(VLOOKUP($M$3&K4,$H:$I,2,0)),"",VLOOKUP($M$3&K4,$H:$I,2,0)) ->  | N4: =IF(ISERROR(VLOOKUP($N$3&K4,$H:$I,2,0)),"",VLOOKUP($N$3&K4,$H:$I,2,0)) ->  | O4: =IF(ISERROR(VLOOKUP($O$3&K4,$H:$I,2,0)),"",VLOOKUP($O$3&K4,$H:$I,2,0)) -> 
A5: 2016-03-31 | C5: -385 | E5: -457 | H5: 20163 | K5: 2
A6: 2016-02-26 | H6: 20162 | K6: 3
A7: 2016-01-30 | H7: 20161 | K7: 4
A8: 2015-12-31 | C8: -2263 | E8: -2730 | H8: 201512 | K8: 5
A9: 2015-11-30 | H9: 201511 | K9: 6
A10: 2015-10-30 | H10: 201510 | K10: 7
A11: 2015-09-30 | C11: -215 | E11: -295 | H11: 20159 | K11: 8
A12: 2015-08-31 | H12: 20158 | K12: 9
A13: 2015-07-31 | H13: 20157 | K13: 10
A14: 2015-06-30 | C14: 72 | E14: 56 | H14: 20156 | K14: 11
A15: 2015-05-29 | H15: 20155 | K15: 12
A16: 2015-04-30 | H16: 20154
A17: 2015-03-31 | C17: 64 | E17: 68 | H17: 20153
A18: 2015-02-26 | H18: 20152
A19: 2015-01-30 | H19: 20151
A20: 2014-12-31 | C20: -252 | E20: -386 | H20: 201412
A21: 2014-11-28 | H21: 201411
A22: 2014-10-31 | H22: 201410
A23: 2014-09-30 | C23: -336 | E23: -302 | H23: 20149
A24: 2014-08-29 | H24: 20148
A25: 2014-07-31 | H25: 20147
A26: 2014-06-30 | C26: -289 | E26: -277 | H26: 20146
A27: 2014-05-30 | H27: 20145
A28: 2014-04-30 | H28: 20144
A29: 2014-03-31 | C29: 99 | E29: 138 | H29: 20143
A30: 2014-02-27 | H30: 20142
A31: 2014-01-27 | H31: 20141
A32: 2013-12-31 | C32: 131 | E32: 195 | H32: 201312
A33: 2013-11-29 | H33: 201311
A34: 2013-10-31 | H34: 201310
A35: 2013-09-30 | C35: 338 | E35: 385 | H35: 20139
A36: 2013-08-30 | H36: 20138
A37: 2013-07-31 | H37: 20137
A38: 2013-06-28 | C38: 256 | E38: 305 | H38: 20136
A39: 2013-05-31 | H39: 20135
A40: 2013-04-30 | H40: 20134
A41: 2013-03-29 | C41: 234 | E41: 276 | H41: 20133
A42: 2013-02-27 | H42: 20132
A43: 2013-01-31 | H43: 20131
I44: =IF(B44="","",B44) -> 

Sheet 保險業_營運狀況
A1: Z1435 元大人壽保險
A2: Data Field | B2: 2014-06-30 | C2: 2014-09-30 | D2: 2014-12-31 | E2: 2015-03-31 | F2: 2015-06-30 | G2: 2015-09-30 | H2: 2015-12-31 | I2: 2016-03-31
A3: 新契約費用率- 壽險 | B3: 29.85 | C3: 29.46 | D3: 30.38 | E3: 28.61 | F3: 20.67 | G3: 20.56 | H3: 22.69 | I3: 26.25
A4: 資金運用比率- 壽險 | B4: 99.04 | C4: 98.96 | D4: 97.16 | E4: 98.66 | F4: 99.26 | G4: 98.81 | H4: 97.96 | I4: 95.74
A5: 繼續率- 13個月- 壽險 | B5: 88.36 | C5: 87.09 | D5: 86.76 | E5: 85.97 | F5: 90.61 | G5: 96.91 | H5: 97.5 | I5: 97.76
A6: 繼續率- 25個月- 壽險 | B6: 83.41 | C6: 83.8 | D6: 83.64 | E6: 82.81 | F6: 83.11 | G6: 81.17 | H6: 80.62 | I6: 79.67
A7: 合併(Y/N) | B7: N | C7: N | D7: N | E7: N | F7: N | G7: N | H7: N | I7: N
A10: Data Field | B10: 2014-06-30 | C10: 2014-09-30 | D10: 2014-12-31 | E10: 2015-03-31 | F10: 2015-06-30 | G10: 2015-09-30 | H10: 2015-12-31 | I10: 2016-03-31
A11: 新契約費用率- 壽險 | B11: 29.85 | C11: 29.46 | D11: 30.38 | E11: 28.61 | F11: 20.67 | G11: 20.56 | H11: 22.69 | I11: 26.25
A12: 資金運用比率- 壽險 | B12: 99.04 | C12: 98.96 | D12: 97.16 | E12: 98.66 | F12: 99.26 | G12: 98.81 | H12: 97.96 | I12: 95.74
A13: 繼續率- 13個月- 壽險 | B13: 88.36 | C13: 87.09 | D13: 86.76 | E13: 85.97 | F13: 90.61 | G13: 96.91 | H13: 97.5 | I13: 97.76
A14: 繼續率- 25個月- 壽險 | B14: 83.41 | C14: 83.8 | D14: 83.64 | E14: 82.81 | F14: 83.11 | G14: 81.17 | H14: 80.62 | I14: 79.67
B16: =YEAR(B17) -> 2014 | C16: 2014 | D16: 2014 | E16: 2015 | F16: 2015 | G16: 2015 | H16: 2015 | I16: =YEAR(I17) -> 2016
B17: =B2 -> 2014-06-30 | C17: 2014-09-30 | D17: 2014-12-31 | E17: 2015-03-31 | F17: 2015-06-30 | G17: 2015-09-30 | H17: 2015-12-31 | I17: 2016-03-31
A18: =A3 -> 新契約費用率- 壽險 | B18: =IF(B$16>=2013,HLOOKUP(B$17,$2:$7,2,0),HLOOKUP(B$17,$10:$14,2,0)) -> 29.85 | C18: 29.46 | D18: 30.38 | E18: 28.61 | F18: 20.67 | G18: 20.56 | H18: 22.69 | I18: 26.25
A19: =A4 -> 資金運用比率- 壽險 | B19: =IF(B$16>=2013,HLOOKUP(B$17,$2:$7,3,0),HLOOKUP(B$17,$10:$14,3,0)) -> 99.04 | C19: 98.96 | D19: 97.16 | E19: 98.66 | F19: 99.26 | G19: 98.81 | H19: 97.96 | I19: 95.74
A20: =A5 -> 繼續率- 13個月- 壽險 | B20: =IF(B$16>=2013,HLOOKUP(B$17,$2:$7,4,0),HLOOKUP(B$17,$10:$14,4,0)) -> 88.36 | C20: 87.09 | D20: 86.76 | E20: 85.97 | F20: 90.61 | G20: 96.91 | H20: 97.5 | I20: 97.76
A21: =A6 -> 繼續率- 25個月- 壽險 | B21: =IF(B$16>=2013,HLOOKUP(B$17,$2:$7,5,0),HLOOKUP(B$17,$10:$14,5,0)) -> 83.41 | C21: 83.8 | D21: 83.64 | E21: 82.81 | F21: 83.11 | G21: 81.17 | H21: 80.62 | I21: 79.67

Sheet 財務比率分析
A1: 2885 元大金 | I1: 合併財務
A2: Data Field | B2: 2014-06-30 | C2: 2014-09-30 | D2: 2014-12-31 | E2: 2015-03-31 | F2: 2015-06-30 | G2: 2015-09-30 | H2: 2015-12-31 | I2: 2016-03-31
A3: 淨利息收益 | B3: 3276132 | C3: 3519421 | D3: 3412294 | E3: 3748664 | F3: 4003971 | G3: 4143462 | H3: 3948247 | I3: 4175522
A4: 手續費淨收益 | B4: 2726668 | C4: 3701768 | D4: 3167767 | E4: 3647065 | F4: 4598553 | G4: 3446529 | H4: 1590951 | I4: 3397124
A5: 保險業務收益 | B5: 3180944 | C5: 3022471 | D5: 1628260 | E5: 1725829 | F5: 4312233 | G5: 7432611 | H5: 11308536 | I5: 4564454
A6: ROE－稅後 | B6: 4.66 | C6: 1.16 | D6: 1.38 | E6: 2.26 | F6: 2.02 | G6: 1.72 | H6: 0.29 | I6: 1.69
A7: ROA(A)稅後息前% | B7: 0.73 | C7: 0.17 | D7: 0.2 | E7: 0.31 | F7: 0.27 | G7: 0.22 | H7: 0.04 | I7: 0.2
A8: 資產總額 | B8: 1206511670 | C8: 1252331096 | D8: 1291764563 | E8: 1411136604 | F8: 1473858895 | G8: 1493247378 | H8: 1551145202 | I8: 2041887921
A9: 總資產成長率 | B9: 43.59 | C9: 45.71 | D9: 49.32 | E9: 40.5 | F9: 22.16 | G9: 19.24 | H9: 20.08 | I9: 44.7
A10: 每股盈餘（元） | B10: 0.8 | C10: 0.21 | D10: 0.25 | E10: 0.41 | F10: 0.33 | G10: 0.26 | H10: 0.04 | I10: 0.31

Sheet 合併財務報表(累)
A1: 2885 元大金 | B1: 合併財報 | N1: 合併財報 | V1: 合併財報
A2: Data Field | B2: 2012-12-28 | C2: 2013-12-31 | D2: 2014-12-31 | E2: 2015-12-31 | F2: 2016-03-31 | N2: Data Field | O2: 2012-12-28 | P2: 2013-12-31 | Q2: 2014-12-31 | R2: 2015-12-31 | S2: 2016-03-31 | V2: Data Field | W2: 2012-12-28 | X2: 2013-12-31 | Y2: 2014-12-31 | Z2: 2015-12-31 | AA2: 2016-03-31
A3: 現金及約當現金 | B3: 36695058 | C3: 27229111 | D3: 47061183 | E3: 41773169 | F3: 59389025 | N3: 淨利息收益 | O3: 10171744 | P3: 9461591 | Q3: 13361073 | R3: 15844344 | S3: 4175522 | V3: 稅後淨利成長率 | W3: -52 | X3: 19.95 | Y3: 103.38 | Z3: -26.97 | AA3: -17.03
A4: 存放及拆放同業 | B4: 75523478 | C4: 85619265 | D4: 79450468 | E4: 80771635 | F4: 94684626 | N4: 手續費淨收益 | O4: 10652821 | P4: 10110462 | Q4: 12366026 | R4: 13283098 | S4: 3397124 | V4: ROA(A)稅後息前% | W4: 0.84 | X4: 0.96 | Y4: 1.52 | Z4: 0.84 | AA4: 0.2
A5: 公平價值變動－損益－金資 | B5: 86217206 | C5: 91573183 | D5: 260202179 | E5: 364746108 | F5: 404145595 | N5: 保險業務收益 | O5: 0 | P5: 0 | Q5: 9092537 | R5: 24779209 | S5: 4564454 | V5: ROE－稅後 | W5: 4.23 | X5: 5.01 | Y5: 9.48 | Z5: 6.27 | AA5: 1.69
A6: 附賣回票券及債券投資 | B6: 201015 | C6: 250724 | D6: 17643207 | E6: 27052332 | F6: 34990259 | N6: FV變動-損益-金資及金債利益 | O6: 3651926 | P6: 3205456 | Q6: 4240248 | R6: 7986529 | S6: 3342670 | V6: 自有資本比率 | W6: 147.61 | X6: 148.68 | Y6: 146.66 | Z6: 141.87
A7: 應收款項 | B7: 70389705 | C7: 98302239 | D7: 120807089 | E7: 118852607 | F7: 151651866 | N7: 備供出售金融資產已實現利益 | O7: 220100 | P7: 1017848 | Q7: 2528770 | R7: 2997025 | S7: 1674285 | V7: 每股淨值 (B) | W7: 15.33 | X7: 16.01 | Y7: 16.73 | Z7: 17.02 | AA7: 16.8
A8: 貼現及放款 | B8: 375712974 | C8: 397268743 | D8: 451629582 | E8: 485843127 | F8: 766313349 | N8: 持至到期日金融資產已實現利益 | O8: 0 | P8: 0 | Q8: 31440 | R8: 32589 | S8: 13455 | V8: 每股盈餘（元） | W8: 0.61 | X8: 0.78 | Y8: 1.62 | Z8: 1.02 | AA8: 0.31
A9: 備供出售－金融資產 | B9: 55519030 | C9: 43612700 | D9: 114343183 | E9: 136286218 | F9: 222376798 | N9: 權益法認列投資損益 | O9: 7766 | P9: -123359 | Q9: -17384 | R9: 57079 | S9: 87725 | V9: 普通股每股現金股利(元) | W9: 0.55 | X9: 0.65 | Y9: 0.64 | Z9: 0.36
A10: 持至到期－金融資產 | B10: 2472129 | C10: 7204646 | D10: 51295128 | E10: 83479054 | F10: 88944779 | N10: 股利收入 | O10: 436525 | P10: 0 | Q10: 0 | R10: 0 | S10: 0
A11: 採權益法之長期股權投資 | B11: 495769 | C11: 805483 | D11: 1927479 | E11: 2054034 | F11: 2308198 | N11: 不動產投資損益 | O11: 0 | P11: 14473 | Q11: 1596178 | R11: 288664 | S11: 42266
A12: 其他金融資產 | B12: 35933660 | C12: 60599155 | D12: 76858249 | E12: 129945260 | F12: 120740748 | N12: 兌換損益 | O12: -702399 | P12: 1798205 | Q12: 2418976 | R12: 1858669 | S12: -2209833
A13: 不動產投資 | B13: 0 | C13: 4222882 | D13: 7976225 | E13: 6396805 | F13: 6228448 | N13: 資產減損/ 迴轉 | O13: -149049 | P13: 8404 | Q13: -380822 | R13: -308679 | S13: -98577
A14: 固定資產 | B14: 13224427 | C14: 12417996 | D14: 13379104 | E14: 17311422 | F14: 20738361 | N14: 待處分資產減損損失 | O14: 0 | P14: 0 | Q14: 0 | R14: 0 | S14: 0
A15: 無形資產 | B15: 27287092 | C15: 25497006 | D15: 27042475 | E15: 26198945 | F15: 36882641 | N15: 待處分長投減損 | O15: 0 | P15: 0 | Q15: 0 | R15: 0 | S15: 0
A16: 其他資產 | B16: 7348176 | C16: 9181869 | D16: 22115916 | E16: 30434486 | F16: 32493228 | N16: 租金收支 | O16: 89264 | P16: 68949 | Q16: 0 | R16: 0 | S16: 0
A17: 資產總額 | B17: 788559333 | C17: 865094056 | D17: 1291764563 | E17: 1551145202 | F17: 2041887921 | N17: 處分固定資產損益 | O17: 717458 | P17: 0 | Q17: 0 | R17: 0 | S17: 0
A18: 央行及同業存款 | B18: 13070340 | C18: 13072480 | D18: 5681005 | E18: 32744363 | F18: 53617517 | N18: 處分擔保品損益 | O18: 25493 | P18: 0 | Q18: 0 | R18: 0 | S18: 0
A19: 央行及同業融資 | B19: 0 | C19: 0 | D19: 0 | E19: 0 | F19: 0 | N19: 攤銷出售不良債權損失 | O19: 533924 | P19: 797888 | Q19: 1020640 | R19: 412499 | S19: 82306
A20: 附買回票債券負債 | B20: 30678684 | C20: 23440116 | D20: 89313850 | E20: 154992859 | F20: 159780242 | N20: 其他各項提存 | O20: 0 | P20: 0 | Q20: 0 | R20: 0 | S20: 0
A21: 存款及匯款 | B21: 435399630 | C21: 470505829 | D21: 555769170 | E21: 625561930 | F21: 946326152 | N21: 收回呆帳及過期帳 | O21: 0 | P21: 0 | Q21: 0 | R21: 0 | S21: 0
A22: 什項負債 | B22: 17286508 | C22: 14180114 | D22: 14350786 | E22: 24645625 | F22: 20317803 | N22: 處分投資損益 | O22: -679 | P22: 0 | Q22: 0 | R22: 0 | S22: 0
A23: 負債總額 | B23: 632638758 | C23: 703461593 | D23: 1106726165 | E23: 1353781152 | F23: 1823867518 | N23: 提存保險準備金(置淨收益) | O23: 0 | P23: 0 | Q23: 0 | R23: 0 | S23: 0
A24: 普通股股本 | B24: 100162105 | C24: 98937235 | D24: 101410666 | E24: 107129605 | F24: 119986478 | N24: 其他非利息淨損益 | O24: 2816878 | P24: 2337652 | Q24: 8352251 | R24: 2557006 | S24: 1369940
A25: 資本公積合計 | B25: 34766307 | C25: 33634947 | D25: 33648021 | E25: 35845672 | F25: 37916488 | N25: 淨收益 | O25: 28471772 | P25: 28697569 | Q25: 54609933 | R25: 69788032 | S25: 16441337
A26: 法定盈餘公積 | B26: 3646713 | C26: 4259700 | D26: 5030700 | E26: 6677902 | F26: 6677902 | N26: 信用卡呆帳費用 | O26: 38162 | P26: -9121 | Q26: 392778 | R26: 599536 | S26: 400935
A27: 特別盈餘公積 | B27: 2437871 | C27: 2772158 | D27: 909427 | E27: 6549234 | F27: 6549234 | N27: 放款呆帳費用 | O27: 562763 | P27: 731672 | Q27: 864276 | R27: 495351 | S27: -94051
A28: 未分配盈餘 | B28: 14406709 | C28: 15653335 | D28: 24180163 | E28: 18234604 | F28: 21502618 | N28: 提存各項保險責任金 | O28: 0 | P28: 0 | Q28: 9681361 | R28: 24874422 | S28: 4500653
A29: 少數股權 | B29: 3090675 | C29: 3221217 | D29: 15337405 | E29: 15253874 | F29: 18581035 | N29: 營業費用合計(I/S) | O29: 19434985 | P29: 18878147 | Q29: 25780738 | R29: 30702170 | S29: 7556657
A30: 股東權益總額 | B30: 155920575 | C30: 161632463 | D30: 185038398 | E30: 197364050 | F30: 218020403 | N30: 繼續營業部門稅前純益 | O30: 8435862 | P30: 9096871 | Q30: 17890780 | R30: 13116553 | S30: 4077143
A31: 應付商業本票 | B31: 5430915 | C31: 8509446 | D31: 14825780 | E31: 4762459 | F31: 49277316 | N31: 所得稅費用 | O31: 1919060 | P31: 1019550 | Q31: 1463407 | R31: 1119078 | S31: 564967
A32: 公平價值－損益－金融負債 | B32: 13127988 | C32: 29582483 | D32: 85309269 | E32: 96786712 | F32: 111475222 | N32: 合併總損益 | O32: 6516802 | P32: 8077321 | Q32: 16427373 | R32: 11997475 | S32: 3512176
A33: 應付款項 | B33: 65974035 | C33: 68133258 | D33: 132686510 | E33: 144143105 | F33: 164972392 | N33: 本期稅後淨利 (母公司) | O33: 6129872 | P33: 7709994 | Q33: 16474314 | R33: 10814545 | S33: 3312457
A34: 待處分子公司負債 | B34: 0 | C34: 0 | D34: 0 | E34: 0 | F34: 0 | N34: 少數股權淨利(損) | O34: 386930 | P34: 367327 | Q34: -46941 | R34: 1182930 | S34: 199719
A35: 與待出售非流動資產相關負 | B35: 0 | C35: 0 | D35: 0 | E35: 0 | F35: 0 | N35: 每股盈餘（元） | O35: 0.61 | P35: 0.78 | Q35: 1.62 | R35: 1.02 | S35: 0.31
A36: 應付公司債/金融債 | B36: 30837029 | C36: 31002148 | D36: 54683089 | E36: 58044635 | F36: 74356789
A37: 其他借款(長短期) | B37: 2338328 | C37: 1106179 | D37: 9250609 | E37: 29166061 | F37: 30559415
A38: 特別股負債 | B38: 0 | C38: 0 | D38: 0 | E38: 0 | F38: 3824663
A39: 應計退休金負債 | B39: 1275883 | C39: 1910880 | D39: 3075415 | E39: 3589799 | F39: 0
A40: 其他金融負債 | B40: 16752860 | C40: 41772374 | D40: 40635589 | E40: 53530171 | F40: 74187153
A41: 營業及負債準備 | B41: 466558 | C41: 246286 | D41: 101145093 | E41: 125813433 | F41: 135172854
A44: 其它負債(準備金) | B44: =SUM($B$31:$B$41) -> 136203596 | C44: =SUM($C$31:$C$41) -> 182263054 | D44: =SUM($D$31:$D$41) -> 441611354 | E44: =SUM($E$31:$E$41) -> 515836375 | N44: 其他收益 | O44: =SUM(O6:O24) -> 7647207 | P44: =SUM(P6:P24) -> 9125516 | Q44: =SUM(Q6:Q24) -> 19790297 | R44: =SUM(R6:R24) -> 15881381

Sheet 合併財務報表(單)
A1: 2885 元大金
A2: Data Field | B2: 2014-06-30 | C2: 2014-09-30 | D2: 2014-12-31 | E2: 2015-03-31 | F2: 2015-06-30 | G2: 2015-09-30 | H2: 2015-12-31 | I2: 2016-03-31
A3: 利息收入 | B3: 4579136 | C3: 5579960 | D3: 5629688 | E3: 5916785 | F3: 6277218 | G3: 6251170 | H3: 6191672 | I3: 6502115
A4: 利息支出 | B4: 1303004 | C4: 2060539 | D4: 2217394 | E4: 2168121 | F4: 2273247 | G4: 2107708 | H4: 2243425 | I4: 2326593
A5: 淨利息收益 | B5: 3276132 | C5: 3519421 | D5: 3412294 | E5: 3748664 | F5: 4003971 | G5: 4143462 | H5: 3948247 | I5: 4175522
A6: 手續費淨收益 | B6: 2726668 | C6: 3701768 | D6: 3167767 | E6: 3647065 | F6: 4598553 | G6: 3446529 | H6: 1590951 | I6: 3397124
A7: 保險業務收益 | B7: 3180944 | C7: 3022471 | D7: 1628260 | E7: 1725829 | F7: 4312233 | G7: 7432611 | H7: 11308536 | I7: 4564454
A8: FV變動-損益-金資及金債利益 | B8: 2056439 | C8: 1108945 | D8: 485501 | E8: 3051415 | F8: 2574008 | G8: -483865 | H8: 2844971 | I8: 3342670
A9: 備供出售金融資產已實現利益 | B9: 407412 | C9: 640454 | D9: 47626 | E9: 506455 | F9: 618717 | G9: 1494923 | H9: 376930 | I9: 1674285
A10: 持至到期日金融資產已實現利益 | B10: 27150 | C10: 3912 | D10: -7068 | E10: 5523 | F10: 24215 | G10: 2851 | H10: 0 | I10: 13455
A11: 權益法認列投資損益 | B11: -7239 | C11: 11116 | D11: -421 | E11: -1353 | F11: 73068 | G11: 40882 | H11: -55518 | I11: 87725
A12: 股利收入 | B12: 0 | C12: 0 | D12: 0 | E12: 0 | F12: 0 | G12: 0 | H12: 0 | I12: 0
A13: 不動產投資損益 | B13: -109659 | C13: 336385 | D13: 1349172 | E13: 51781 | F13: 97535 | G13: 40812 | H13: 98536 | I13: 42266
A14: 兌換損益 | B14: -500303 | C14: 428184 | D14: 1469899 | E14: 375805 | F14: -508170 | G14: 2682337 | H14: -691303 | I14: -2209833
A15: 資產減損/ 迴轉 | B15: 27997 | C15: -17672 | D15: -225811 | E15: -60619 | F15: -20573 | G15: -61970 | H15: -165517 | I15: -98577
A16: 待處分資產減損損失 | B16: 0 | C16: 0 | D16: 0 | E16: 0 | F16: 0 | G16: 0 | H16: 0 | I16: 0
A17: 待處分長投減損 | B17: 0 | C17: 0 | D17: 0 | E17: 0 | F17: 0 | G17: 0 | H17: 0 | I17: 0
A18: 租金收支 | B18: 0 | C18: 0 | D18: 0 | E18: 0 | F18: 0 | G18: 0 | H18: 0 | I18: 0
A19: 處分固定資產損益 | B19: 0 | C19: 0 | D19: 0 | E19: 0 | F19: 0 | G19: 0 | H19: 0 | I19: 0
A20: 處分擔保品損益 | B20: 0 | C20: 0 | D20: 0 | E20: 0 | F20: 0 | G20: 0 | H20: 0 | I20: 0
A21: 攤銷出售不良債權損失 | B21: 283256 | C21: 129667 | D21: 106957 | E21: 106840 | F21: 107505 | G21: 91396 | H21: 106758 | I21: 82306
A22: 其他各項提存 | B22: 0 | C22: 0 | D22: 0 | E22: 0 | F22: 0 | G22: 0 | H22: 0 | I22: 0
A23: 收回呆帳及過期帳 | B23: 0 | C23: 0 | D23: 0 | E23: 0 | F23: 0 | G23: 0 | H23: 0 | I23: 0
A24: 處分投資損益 | B24: 0 | C24: 0 | D24: 0 | E24: 0 | F24: 0 | G24: 0 | H24: 0 | I24: 0
A25: 提存保險準備金(置淨收益) | B25: 0 | C25: 0 | D25: 0 | E25: 0 | F25: 0 | G25: 0 | H25: 0 | I25: 0
A26: 其他非利息淨損益 | B26: 6182868 | C26: 728950 | D26: 890767 | E26: 787470 | F26: 664021 | G26: 347736 | H26: 757779 | I26: 1369940
A27: 淨收益 | B27: 17551665 | C27: 13613601 | D27: 12324943 | E27: 13944875 | F27: 16545083 | G27: 19177704 | H27: 20120370 | I27: 16441337
A28: 信用卡呆帳費用 | B28: 1449 | C28: 555186 | D28: -218348 | E28: 65547 | F28: 17600 | G28: 135332 | H28: 381057 | I28: 400935
A29: 放款呆帳費用 | B29: 7186 | C29: -440110 | D29: 905015 | E29: -49680 | F29: 216848 | G29: -26606 | H29: 354789 | I29: -94051
A30: 提存各項保險責任金 | B30: 3107666 | C30: 3170005 | D30: 1885496 | E30: 1821569 | F30: 4456639 | G30: 7459769 | H30: 11136445 | I30: 4500653
A31: 營業費用- 用人費用 | B31: 3398453 | C31: 4235735 | D31: 3947005 | E31: 4378117 | F31: 4665826 | G31: 4552092 | H31: 4247077 | I31: 4238852
A32: 營業費用- 折舊及攤銷 | B32: 545757 | C32: 661455 | D32: 636634 | E32: 619926 | F32: 527660 | G32: 508661 | H32: 495877 | I32: 486041
A33: 營業費用- 業務及管理費 | B33: 1961020 | C33: 2923841 | D33: 2564677 | E33: 2420416 | F33: 2586130 | G33: 2803976 | H33: 2896412 | I33: 2831764
A34: 營業費用合計(I/S) | B34: 5905230 | C34: 7821031 | D34: 7148316 | E34: 7418459 | F34: 7779616 | G34: 7864729 | H34: 7639366 | I34: 7556657
A35: 繼續營業部門稅前純益 | B35: 8530134 | C35: 2507489 | D35: 2604464 | E35: 4688980 | F35: 4074380 | G35: 3744480 | H35: 608713 | I35: 4077143
A36: 所得稅費用 | B36: 490703 | C36: 423177 | D36: 90777 | E36: 455876 | F36: 217047 | G36: 408571 | H36: 37584 | I36: 564967
A37: 繼續營業部門純益 | B37: 8039431 | C37: 2084312 | D37: 2513687 | E37: 4233104 | F37: 3857333 | G37: 3335909 | H37: 571129 | I37: 3512176
A38: 停業單位損益 | B38: 0 | C38: 0 | D38: 0 | E38: 0 | F38: 0 | G38: 0 | H38: 0 | I38: 0
A39: 非常項目 | B39: 0 | C39: 0 | D39: 0 | E39: 0 | F39: 0 | G39: 0 | H39: 0 | I39: 0
A40: 累計影響數 | B40: 0 | C40: 0 | D40: 0 | E40: 0 | F40: 0 | G40: 0 | H40: 0 | I40: 0
A41: 子公司董監酬勞及紅利 | B41: 0 | C41: 0 | D41: 0 | E41: 0 | F41: 0 | G41: 0 | H41: 0 | I41: 0
A42: 合併總損益 | B42: 8039431 | C42: 2084312 | D42: 2513687 | E42: 4233104 | F42: 3857333 | G42: 3335909 | H42: 571129 | I42: 3512176
A43: 本期稅後淨利 (母公司) | B43: 8114029 | C43: 2175982 | D43: 2576657 | E43: 4107975 | F43: 3477437 | G43: 2838818 | H43: 390315 | I43: 3312457
A44: 少數股權淨利(損) | B44: -74598 | C44: -91670 | D44: -62970 | E44: 125129 | F44: 379896 | G44: 497091 | H44: 180814 | I44: 199719
A45: 每股盈餘（元） | B45: 0.8 | C45: 0.21 | D45: 0.25 | E45: 0.41 | F45: 0.33 | G45: 0.26 | H45: 0.04 | I45: 0.31
A46: 每股盈餘－完全稀釋
A47: 加權平均股本 | B47: 101410670 | C47: 101410670 | D47: 101410670 | E47: 101410670 | F47: 104422590 | G47: 105334840 | H47: 105783370 | I47: 108253050
A48: 發放特別股股息 | B48: 0 | C48: 0 | D48: 0 | E48: 0 | F48: 0 | G48: 0 | H48: 0 | I48: 0
A49: 稅前淨利(無保留意見) | B49: 8530134 | C49: 2507489 | D49: 2604464 | E49: 4688980 | F49: 4074380 | G49: 3744480 | H49: 608713 | I49: 4077143
A50: 稅後淨利(無保留意見) | B50: 8114029 | C50: 2175982 | D50: 2576657 | E50: 4107975 | F50: 3477437 | G50: 2838818 | H50: 390315 | I50: 3312457
A51: 每股盈餘－員工分紅費用化
A52: 庫藏股數－母公司 | B52: 0 | C52: 0 | D52: 0 | E52: 0 | F52: 0 | G52: 0 | H52: 15621 | I52: 15621
A53: 庫藏股數－子公司持有 | B53: 0 | C53: 0 | D53: 0 | E53: 0 | F53: 0 | G53: 0 | H53: 0 | I53: 110254
A54: 稅前息前淨利 | B54: 9833138 | C54: 4568028 | D54: 4821858 | E54: 6857101 | F54: 6347627 | G54: 5852188 | H54: 2852138 | I54: 6403736
A55: 稅前息前折舊前淨利 | B55: 10378895 | C55: 5229483 | D55: 5458492 | E55: 7477027 | F55: 6875287 | G55: 6360849 | H55: 3348015 | I55: 6889777
A56: 常續性稅後淨利 | B56: 8039431 | C56: 2084312 | D56: 2513687 | E56: 4233104 | F56: 3857333 | G56: 3335909 | H56: 571129 | I56: 3512176

Sheet 金融業與保險業
A1: 5852 元大銀 | I1: Z1435 元大人壽保險
A2: Data Field | B2: 2013-12-31 | C2: 2014-12-31 | D2: 2015-12-31 | E2: 2016-03-31 | I2: Data Field | J2: 2013-12-31 | K2: 2014-12-31 | L2: 2015-12-31 | M2: 2016-03-31
A3: 合併(Y/N) | B3: Y | C3: Y | D3: Y | E3: Y | I3: 合併(Y/N) | J3: N | K3: N | L3: N | M3: N
A4: 淨利息收益 | B4: 6115427 | C4: 7000215 | D4: 7745571 | E4: 2108550 | I4: 保費收入 | J4: 10125865 | K4: 13538045 | L4: 30264276 | M4: 5690034
A5: 手續費淨收益 | B5: 1689385 | C5: 2063634 | D5: 2580988 | E5: 749358 | I5: 手續費收入 | J5: 38936 | K5: 32370 | L5: 30289 | M5: 7056
A6: 淨收益 | B6: 9368593 | C6: 11400848 | D6: 12932764 | E6: 3603509 | I6: 利息收入 | J6: 2313434 | K6: 2512274 | L6: 3400981 | M6: 974732
A7: 信用卡呆帳費用 | B7: 0 | C7: 0 | D7: 0 | E7: 0 | I7: 營業收入淨額 | J7: 13244110 | K7: 16900944 | L7: 34044079 | M7: 6482764
A8: 放款呆帳費用 | B8: 720371 | C8: 757128 | D8: 886889 | E8: 306772 | I8: 營業費用 | J8: 839188 | K8: 956350 | L8: 1269345 | M8: 288815
A9: 營業費用合計(I/S) | B9: 5239500 | C9: 5632982 | D9: 6405803 | E9: 1627757 | I9: 本期稅後淨利 (母公司) | J9: 130596 | K9: -251600 | L9: -2263406 | M9: -385416
A10: 繼續營業部門稅前純益 | B10: 3408722 | C10: 5010738 | D10: 5640072 | E10: 1668980 | I10: 每股盈餘（元） | J10: 0.2 | K10: -0.72 | L10: -2.79 | M10: -0.48
A11: 所得稅費用 | B11: 356517 | C11: 468340 | D11: 696099 | E11: 218902 | I11: 保險業資本適足率(以上) | J11: 150 | K11: 300 | L11: 410.38
A12: 本期稅後淨利 (母公司) | B12: 3052205 | C12: 4546935 | D12: 4949974 | E12: 1450078 | I12: 保險業資本適足率(以下) | J12: 200
A13: 每股盈餘（元） | B13: 0.84 | C13: 1.21 | D13: 1.26 | E13: 0.37
A14: 自有資本比率 | B14: 12.92 | C14: 12.83 | D14: 12.98
A15: 第一類資本占風險性資產比 | B15: 10.18 | C15: 9.19 | D15: 9.49
A16: 逾期放款比率 | B16: 0.31 | C16: 0.21 | D16: 0.2 | E16: 0.21
A17: 備抵呆帳覆蓋率 | B17: 404.96 | C17: 606.61 | D17: 671.17 | E17: 621.02
